Workbook

Sheet Principal
C9: Informes por Meta | I9: Informes Gráficos
C22: EDITADO POR LA SECRETARÍA DISTRITAL DE PLANEACIÓN

Sheet Gráficas ODS (hidden)
A1: Año_corte | B1: 2021_1 | D1: =VLOOKUP(B1,FECHAS,2,0) -> Marzo 31 de 2021
A2: Nombre Localidad | B2: Usaquén
A4: Nombre_ODS Conpes 3918 de 2018 | B4: Suma de Total Compromisos 2021-2024
A5: Ciudades y comunidades sostenibles | B5: 288719280 | D5: =GETPIVOTDATA("Total Compromisos 2021-2024",$A$4,"Nombre_ODS Conpes 3918 de 2018","Ciudades y comunidades sostenibles")/GETPIVOTDATA("Total Compromisos 2021-2024",$A$4) -> 0.02438914533
A6: Educación de calidad | B6: 266810000 | D6: =GETPIVOTDATA("Total Compromisos 2021-2024",$A$4,"Nombre_ODS Conpes 3918 de 2018","Educación de calidad")/GETPIVOTDATA("Total Compromisos 2021-2024",$A$4) -> 0.02253839045
A7: Fin de la pobreza | B7: 4909084000 | D7: =GETPIVOTDATA("Total Compromisos 2021-2024",$A$4,"Nombre_ODS Conpes 3918 de 2018","Fin de la pobreza")/GETPIVOTDATA("Total Compromisos 2021-2024",$A$4) -> 0.4146878002
A8: Igualdad de género | B8: 96566000
A9: Salud y Bienestar | B9: 83808000
A10: Industria, innovación e infraestructura | B10: 214066000
A11: Paz, justicia e instituciones sólidas | B11: 5358073124
A12: Acción por el Clima | B12: 52000000
A13: Trabajo decente y crecimiento económico | B13: 403897280
A14: Producción y consumo responsables | B14: 93500000
A15: Reducción de las desigualdades | B15: 71500000
A16: Total general | B16: 11838023684
A23: Año_corte | B23: 2021_1
A24: Nombre Localidad | B24: Usaquén
A26: Cod | B26: Nombre_ODS | C26: Compromisos 2021 | D26: Compromisos 2022 | E26: Compromisos 2023 | F26: Compromisos 2024
A27: 1 | B27: Fin de la pobreza | C27: 4909084000 | D27: 0 | E27: 0 | F27: 0 | G27: 1
A28: 3 | B28: Salud y Bienestar | C28: 83808000 | D28: 0 | E28: 0 | F28: 0 | G28: 2
A29: 4 | B29: Educación de calidad | C29: 266810000 | D29: 0 | E29: 0 | F29: 0 | G29: 3
A30: 5 | B30: Igualdad de género | C30: 96566000 | D30: 0 | E30: 0 | F30: 0 | G30: 4
A31: 8 | B31: Trabajo decente y crecimiento económico | C31: 403897280 | D31: 0 | E31: 0 | F31: 0 | G31: 5
A32: 9 | B32: Industria, innovación e infraestructura | C32: 214066000 | D32: 0 | E32: 0 | F32: 0 | G32: 6
A33: 10 | B33: Reducción de las desigualdades | C33: 71500000 | D33: 0 | E33: 0 | F33: 0 | G33: 7
A34: 11 | B34: Ciudades y comunidades sostenibles | C34: 288719280 | D34: 0 | E34: 0 | F34: 0 | G34: 8
A35: 12 | B35: Producción y consumo responsables | C35: 93500000 | D35: 0 | E35: 0 | F35: 0 | G35: 9
A36: 13 | B36: Acción por el Clima | C36: 52000000 | D36: 0 | E36: 0 | F36: 0 | G36: 10
A37: 15 | B37: Vida de ecosistemas terrestres | C37: 0 | D37: 0 | E37: 0 | F37: 0
A38: 16 | B38: Paz, justicia e instituciones sólidas | C38: 5358073124 | D38: 0 | E38: 0 | F38: 0
A39: Total general | C39: 11838023684 | D39: 0 | E39: 0 | F39: 0
A43: Compromisos en millones de pesos
V51: Año_corte | W51: 2021_1
V52: Nombre Localidad | W52: Usaquén
V54: COD | W54: Esferas ODS | X54: Compromisos 2021 | Y54: Compromisos 2022 | Z54: Compromisos 2023 | AA54: Compromisos 2024
V55: 1 | W55: Las Personas | X55: 5356268000 | Y55: 0 | Z55: 0 | AA55: 0
V56: 2 | W56: La Paz | X56: 5358073124 | Y56: 0 | Z56: 0 | AA56: 0
V57: 3 | W57: La Prosperidad | X57: 978182560 | Y57: 0 | Z57: 0 | AA57: 0
V58: 4 | W58: El Planeta | X58: 145500000 | Y58: 0 | Z58: 0 | AA58: 0
V59: Total general | X59: 11838023684 | Y59: 0 | Z59: 0 | AA59: 0
V61: Compromisos en millones de pesos

Sheet ODS
B12: Objetivos de Desarrollo Sostenible (ODS) FDL
B14: ='Gráficas ODS'!$D$1 -> Marzo 31 de 2021
B16: Localidad: | D16: ='Gráficas ODS'!$B$2 -> Usaquén | G16: *Cifras en millones de pesos
B40: Esferas ODS | C40: Codigo_ODS | D40: Nombre_ODS | E40: Cod_meta ODS | F40: Nombre Meta ODS | G40: Código Proyecto | H40: Meta proyecto | I40: Apropiacion inicial POAI 2021 | J40: Compromisos 2021 | K40: Apropiación inicial 2022 | L40: Compromisos 2022 | M40: Apropiación inicial POAI 2023 | N40: Compromisos 2023 | O40: Apropiación inicial POAI 2024 | P40: Compromisos 2024 | Q40: Giros 2021
B41: Las Personas | C41: 1 | D41: Fin de la pobreza | E41: 1.2 | F41: De aquí a 2030, reducir al menos a la mitad la proporción de hombres, mujeres y niños de todas las edades que viven en la pobreza en todas sus dimensiones con arreglo a las definiciones nacionales | G41: 1960 | H41: Atender 977 hogares con apoyos que contribuyan al ingreso mínimo garantizado. | I41: 5406826000 | J41: 4447080000 | K41: 0 | L41: 0 | M41: 0 | N41: 0 | O41: 0 | P41: 0 | Q41: 4331333333
B42: Las Personas | C42: 1 | D42: Fin de la pobreza | E42: 1.2 | F42: De aquí a 2030, reducir al menos a la mitad la proporción de hombres, mujeres y niños de todas las edades que viven en la pobreza en todas sus dimensiones con arreglo a las definiciones nacionales | G42: 1960 | H42: Beneficiar 950 personas mayores con apoyo económico tipo C. | I42: 1802275000 | J42: 462004000 | K42: 0 | L42: 0 | M42: 0 | N42: 0 | O42: 0 | P42: 0 | Q42: 4017566
B43: Las Personas | C43: 1 | D43: Fin de la pobreza | E43: 1.2 | F43: De aquí a 2030, reducir al menos a la mitad la proporción de hombres, mujeres y niños de todas las edades que viven en la pobreza en todas sus dimensiones con arreglo a las definiciones nacionales | G43: 1988 | H43: Dotar 11 Sedes de atención a la primera infancia y/o adolescencia (jardines infantiles y Centros Amar). | I43: 0 | K43: 0 | L43: 0 | M43: 0 | N43: 0 | O43: 0 | P43: 0
B44: Las Personas | C44: 4 | D44: Educación de calidad | E44: 4.2 | F44: De aquí a 2030, asegurar que todas las niñas y todos los niños tengan acceso a servicios de atención y desarrollo en la primera infancia y educación preescolar de calidad, a fin de que estén preparados para la enseñanza primaria. | G44: 1943 | H44: Implementar 12 Proyectos para el desarrollo integral de la primera infancia y la relación escuela, familia y comunidad. | I44: 360455000 | J44: 36000000 | K44: 0 | L44: 0 | M44: 0 | N44: 0 | O44: 0 | P44: 0 | Q44: 3300000
B45: Las Personas | C45: 4 | D45: Educación de calidad | E45: 4.3 | F45: De aquí a 2030, asegurar el acceso igualitario de todos los hombres y las mujeres a una formación técnica, profesional y superior de calidad, incluida la enseñanza universitaria. | G45: 1687 | H45: Beneficiar 250 estudiantes de programas de educación superior con apoyo de sostenimiento para la permanencia | I45: 101711000 | K45: 0 | L45: 0 | M45: 0 | N45: 0 | O45: 0 | P45: 0
B46: Las Personas | C46: 4 | D46: Educación de calidad | E46: 4.3 | F46: De aquí a 2030, asegurar el acceso igualitario de todos los hombres y las mujeres a una formación técnica, profesional y superior de calidad, incluida la enseñanza universitaria. | G46: 1687 | H46: Beneficiar 250 personas con apoyo para la educación superior | I46: 3142385000 | J46: 212810000 | K46: 0 | L46: 0 | M46: 0 | N46: 0 | O46: 0 | P46: 0 | Q46: 581466
B47: Las Personas | C47: 4 | D47: Educación de calidad | E47: 4.7 | F47: De aquí a 2030, asegurar que todos los alumnos adquieran los conocimientos teóricos y prácticos necesarios para promover el desarrollo sostenible, entre otras cosas mediante la educación para el desarrollo sostenible y los estilos de vida sostenibles, los derechos humanos, la igualdad de género, la promoción de una cultura de paz y no violencia, la ciudadanía mundial y la valoración de la diversidad cultural y la contribución de la cultura al desarrollo sostenible | G47: 1947 | H47: Dotar 10 sedes educativas urbanas | I47: 0 | K47: 0 | L47: 0 | M47: 0 | N47: 0 | O47: 0 | P47: 0
B48: Las Personas | C48: 4 | D48: Educación de calidad | E48: 4.7 | F48: De aquí a 2030, asegurar que todos los alumnos adquieran los conocimientos teóricos y prácticos necesarios para promover el desarrollo sostenible, entre otras cosas mediante la educación para el desarrollo sostenible y los estilos de vida sostenibles, los derechos humanos, la igualdad de género, la promoción de una cultura de paz y no violencia, la ciudadanía mundial y la valoración de la diversidad cultural y la contribución de la cultura al desarrollo sostenible | G48: 1939 | H48: Capacitar 680 personas en los campos deportivos | I48: 194253000 | J48: 18000000 | K48: 0 | L48: 0 | M48: 0 | N48: 0 | O48: 0 | P48: 0 | Q48: 0
B49: Las Personas | C49: 5 | D49: Igualdad de género | E49: 5.2 | F49: Eliminar todas las formas de violencia contra todas las mujeres y las niñas en los ámbitos público y privado, incluidas la trata y la explotación sexual y otros tipos de explotación | G49: 1991 | H49: Vincular 2500 personas en acciones para la prevención del feminicidio y la violencia contra la mujer. | I49: 485631000 | J49: 46400000 | K49: 0 | L49: 0 | M49: 0 | N49: 0 | O49: 0 | P49: 0 | Q49: 0
B50: Las Personas | C50: 5 | D50: Igualdad de género | E50: 5.4 | F50: Reconocer y valorar los cuidados y el trabajo doméstico no remunerados mediante servicios públicos, infraestructuras y políticas de protección social, y promoviendo la responsabilidad compartida en el hogar y la familia, según proceda en cada país | G50: 1989 | H50: Vincular 711 mujeres cuidadoras a estrategias de cuidado | I50: 291379000 | J50: 24000000 | K50: 0 | L50: 0 | M50: 0 | N50: 0 | O50: 0 | P50: 0 | Q50: 0
B51: Las Personas | C51: 5 | D51: Igualdad de género | E51: 5.c | F51: Aprobar y fortalecer políticas acertadas y leyes aplicables para promover la igualdad de género y el empoderamiento de todas las mujeres y las niñas a todos los niveles | G51: 1991 | H51: Capacitar 1530 personas para la construcción de ciudadanía y desarrollo de capacidades para el ejercicio de derechos de las mujeres | I51: 242816000 | J51: 26166000 | K51: 0 | L51: 0 | M51: 0 | N51: 0 | O51: 0 | P51: 0 | Q51: 0
B52: Las Personas | C52: 3 | D52: Salud y Bienestar | E52: 3.d | F52: Reforzar la capacidad de todos los países, en particular los países en desarrollo, en materia de alerta temprana, reducción de riesgos y gestión de los riesgos para la salud nacional y mundial | G52: 1939 | H52: Vincular 9142 personas en actividades recreodeportivas comunitarias | I52: 498569000 | J52: 47808000 | K52: 0 | L52: 0 | M52: 0 | N52: 0 | O52: 0 | P52: 0 | Q52: 0
B53: Las Personas | C53: 3 | D53: Salud y Bienestar | E53: 3.d | F53: Reforzar la capacidad de todos los países, en particular los países en desarrollo, en materia de alerta temprana, reducción de riesgos y gestión de los riesgos para la salud nacional y mundial | G53: 1939 | H53: Beneficiar 680 Personas con artículos deportivos entregados | I53: 279520000 | J53: 36000000 | K53: 0 | L53: 0 | M53: 0 | N53: 0 | O53: 0 | P53: 0 | Q53: 0
B54: La Prosperidad | C54: 11 | D54: Ciudades y comunidades sostenibles | E54: 11.4 | F54: Redoblar los esfuerzos para proteger y salvaguardar el patrimonio cultural y natural del mundo | G54: 1992 | H54: Capacitar 680 personas en los campos artísticos, interculturales, culturales y/o patrimoniales. | I54: 194253000 | K54: 0 | L54: 0 | M54: 0 | N54: 0 | O54: 0 | P54: 0
B55: La Prosperidad | C55: 11 | D55: Ciudades y comunidades sostenibles | E55: 11.4 | F55: Redoblar los esfuerzos para proteger y salvaguardar el patrimonio cultural y natural del mundo | G55: 1992 | H55: Realizar 16 eventos de promoción de actividades culturales | I55: 447228000 | K55: 0 | L55: 0 | M55: 0 | N55: 0 | O55: 0 | P55: 0
B56: La Prosperidad | C56: 11 | D56: Ciudades y comunidades sostenibles | E56: 11.4 | F56: Redoblar los esfuerzos para proteger y salvaguardar el patrimonio cultural y natural del mundo | G56: 1992 | H56: Otorgar 50 estímulos de apoyo al sector artístico y cultural | I56: 582758000 | J56: 45000000 | K56: 0 | L56: 0 | M56: 0 | N56: 0 | O56: 0 | P56: 0 | Q56: 0
B57: La Prosperidad | C57: 11 | D57: Ciudades y comunidades sostenibles | E57: 11.5 | F57: De aquí a 2030, reducir significativamente el número de muertes causadas por los desastres, incluidos los relacionados con el agua, y de personas afectadas por ellos, y reducir considerablemente las pérdidas económicas directas provocadas por los desastres en comparación con el producto interno bruto mundial, haciendo especial hincapié en la protección de los pobres y las personas en situaciones de vulnerabilidad | G57: 1940 | H57: Realizar 1 acción efectiva para el fortalecimiento de las capacidades locales para la respuesta a emergencias y desastres | I57: 0 | K57: 0 | L57: 0 | M57: 0 | N57: 0 | O57: 0 | P57: 0
B58: La Prosperidad | C58: 11 | D58: Ciudades y comunidades sostenibles | E58: 11.7 | F58: De aquí a 2030, proporcionar acceso universal a zonas verdes y espacios públicos seguros, inclusivos y accesibles, en particular para las mujeres y los niños, las personas de edad y las personas con discapacidad | G58: 1945 | H58: Intervenir 30 Parques vecinales y/o de bolsillo con acciones de mejoramiento, mantenimiento y/o dotación | I58: 700514000 | J58: 118400000 | K58: 0 | L58: 0 | M58: 0 | N58: 0 | O58: 0 | P58: 0 | Q58: 2786667
B59: La Prosperidad | C59: 11 | D59: Ciudades y comunidades sostenibles | E59: 11.7 | F59: De aquí a 2030, proporcionar acceso universal a zonas verdes y espacios públicos seguros, inclusivos y accesibles, en particular para las mujeres y los niños, las personas de edad y las personas con discapacidad | G59: 1954 | H59: Intervenir 1700 metros cuadrados de elementos del sistema de espacio público peatonal con acciones de construcción y/o conservación. | I59: 0 | K59: 0 | L59: 0 | M59: 0 | N59: 0 | O59: 0 | P59: 0
B60: La Prosperidad | C60: 11 | D60: Ciudades y comunidades sostenibles | E60: 11.3 | F60: De aquí a 2030, aumentar la urbanización inclusiva y sostenible y la capacidad para la planificación y la gestión participativas, integradas y sostenibles de los asentamientos | G60: 1944 | H60: Construir 167 m2 de muros y techos verdes | I60: 0 | K60: 0 | L60: 0 | M60: 0 | N60: 0 | O60: 0 | P60: 0
B61: La Prosperidad | C61: 11 | D61: Ciudades y comunidades sostenibles | E61: 11.3 | F61: De aquí a 2030, aumentar la urbanización inclusiva y sostenible y la capacidad para la planificación y la gestión participativas, integradas y sostenibles de los asentamientos | G61: 1944 | H61: Intervenir 9000 m2 de jardinería y coberturas verdes | I61: 0 | K61: 0 | L61: 0 | M61: 0 | N61: 0 | O61: 0 | P61: 0
B62: La Prosperidad | C62: 11 | D62: Ciudades y comunidades sostenibles | E62: 11.3 | F62: De aquí a 2030, aumentar la urbanización inclusiva y sostenible y la capacidad para la planificación y la gestión participativas, integradas y sostenibles de los asentamientos humanos en todos los países | G62: 1933 | H62: Atender 4000 animales en urgencias, brigadas médicoveterinarias, acciones de esterilización, educación y adopción. | I62: 485631000 | J62: 90000000 | K62: 0 | L62: 0 | M62: 0 | N62: 0 | O62: 0 | P62: 0 | Q62: 0
B63: La Prosperidad | C63: 11 | D63: Ciudades y comunidades sostenibles | E63: 11.3 | F63: De aquí a 2030, aumentar la urbanización inclusiva y sostenible y la capacidad para la planificación y la gestión participativas, integradas y sostenibles de los asentamientos humanos en todos los países | G63: 1950 | H63: Intervenir 3 sedes de salones comunales | I63: 0 | K63: 0 | L63: 0 | M63: 0 | N63: 0 | O63: 0 | P63: 0
B64: La Prosperidad | C64: 11 | D64: Ciudades y comunidades sostenibles | E64: 11.3 | F64: De aquí a 2030, aumentar la urbanización inclusiva y sostenible y la capacidad para la planificación y la gestión participativas, integradas y sostenibles de los asentamientos humanos en todos los países | G64: 1950 | H64: Dotar 38 sedes de salones comunales | I64: 0 | K64: 0 | L64: 0 | M64: 0 | N64: 0 | O64: 0 | P64: 0
B65: La Prosperidad | C65: 11 | D65: Ciudades y comunidades sostenibles | E65: 11.2 | F65: De aquí a 2030, proporcionar acceso a sistemas de transporte seguros, asequibles, accesibles y sostenibles para todos y mejorar la seguridad vial, en particular mediante la ampliación del transporte público, prestando especial atención a las necesidades de las personas en situación de vulnerabilidad, las mujeres, los niños, las personas con discapacidad y las personas de edad | G65: 1954 | H65: Intervenir 800 metros lineales de Ciclo-infraestructura con acciones de construcción y/o conservación. | I65: 383338000 | J65: 35319280 | K65: 0 | L65: 0 | M65: 0 | N65: 0 | O65: 0 | P65: 0 | Q65: 2207455
B66: La Prosperidad | C66: 9 | D66: Industria, innovación e infraestructura | E66: 9.1 | F66: Desarrollar infraestructuras fiables, sostenibles, resilientes y de calidad, incluidas infraestructuras regionales y transfronterizas, para apoyar el desarrollo económico y el bienestar humano, haciendo especial hincapié en el acceso asequible y equitativo para todos | G66: 1992 | H66: Intervenir 1 sede cultural con dotación y/o adecuación | I66: 582758000 | J66: 61366000 | K66: 0 | L66: 0 | M66: 0 | N66: 0 | O66: 0 | P66: 0 | Q66: 3960000
B67: La Prosperidad | C67: 9 | D67: Industria, innovación e infraestructura | E67: 9.1 | F67: Desarrollar infraestructuras fiables, sostenibles, resilientes y de calidad, incluidas infraestructuras regionales y transfronterizas, para apoyar el desarrollo económico y el bienestar humano, haciendo especial hincapié en el acceso asequible y equitativo para todos | G67: 1954 | H67: Intervenir 500 metros cuadrados de Puentes vehiculares y/o peatonales de escala local sobre cuerpos de agua con acciones de construcción y/o conservación. | I67: 0 | K67: 0 | L67: 0 | M67: 0 | N67: 0 | O67: 0 | P67: 0
B68: La Prosperidad | C68: 9 | D68: Industria, innovación e infraestructura | E68: 9.1 | F68: Desarrollar infraestructuras fiables, sostenibles, resilientes y de calidad, incluidas infraestructuras regionales y transfronterizas, para apoyar el desarrollo económico y el bienestar humano, haciendo especial hincapié en el acceso asequible y equitativo para todos | G68: 1954 | H68: Intervenir 2 Kilómetros-carril de malla vial urbana (local y/o intermedia) con acciones de construcción y/o conservación. | I68: 2913788000 | J68: 152700000 | K68: 0 | L68: 0 | M68: 0 | N68: 0 | O68: 0 | P68: 0 | Q68: 5750000
B69: La Prosperidad | C69: 9 | D69: Industria, innovación e infraestructura | E69: 9.1 | F69: Desarrollar infraestructuras fiables, sostenibles, resilientes y de calidad, incluidas infraestructuras regionales y transfronterizas, para apoyar el desarrollo económico y el bienestar humano, haciendo especial hincapié en el acceso asequible y equitativo para todos | G69: 0 | H69: Construir 1 sede administrativa local | I69: 0 | K69: 0 | L69: 0 | M69: 0 | N69: 0 | O69: 0 | P69: 0
B70: La Prosperidad | C70: 8 | D70: Trabajo decente y crecimiento económico | E70: 8.3 | F70: Promover políticas orientadas al desarrollo que apoyen las actividades productivas, la creación de puestos de trabajo decentes, el emprendimiento, la creatividad y la innovación, y fomentar la formalización y el crecimiento de las microempresas y las pequeñas y medianas empresas, incluso mediante el acceso a servicios financieros | G70: 1990 | H70: Financiar 65 proyectos del sector cultural y creativo | I70: 485631000 | J70: 35319280 | K70: 0 | L70: 0 | M70: 0 | N70: 0 | O70: 0 | P70: 0 | Q70: 0
B71: La Prosperidad | C71: 8 | D71: Trabajo decente y crecimiento económico | E71: 8.3 | F71: Promover políticas orientadas al desarrollo que apoyen las actividades productivas, la creación de puestos de trabajo decentes, el emprendimiento, la creatividad y la innovación, y fomentar la formalización y el crecimiento de las microempresas y las pequeñas y medianas empresas, incluso mediante el acceso a servicios financieros | G71: 1941 | H71: Promover en 208 Mipymes y/o emprendimientos la transformación empresarial y/o productiva | I71: 1068389000 | J71: 102580000 | K71: 0 | L71: 0 | M71: 0 | N71: 0 | O71: 0 | P71: 0 | Q71: 5151333
B72: La Prosperidad | C72: 8 | D72: Trabajo decente y crecimiento económico | E72: 8.3 | F72: Promover políticas orientadas al desarrollo que apoyen las actividades productivas, la creación de puestos de trabajo decentes, el emprendimiento, la creatividad y la innovación, y fomentar la formalización y el crecimiento de las microempresas y las pequeñas y medianas empresas, incluso mediante el acceso a servicios financieros | G72: 1941 | H72: Revitalizar 211 Mipymes y/o emprendimientos potencializadas dentro de las aglomeraciones económicas que fomentan el empleo y/o nuevas actividades económicas | I72: 971263000 | J72: 50166000 | K72: 0 | L72: 0 | M72: 0 | N72: 0 | O72: 0 | P72: 0 | Q72: 0
B73: La Prosperidad | C73: 8 | D73: Trabajo decente y crecimiento económico | E73: 8.3 | F73: Promover políticas orientadas al desarrollo que apoyen las actividades productivas, la creación de puestos de trabajo decentes, el emprendimiento, la creatividad y la innovación, y fomentar la formalización y el crecimiento de las microempresas y las pequeñas y medianas empresas, incluso mediante el acceso a servicios financieros | G73: 1941 | H73: Apoyar 267 Mipymes y/o emprendimientos culturales y creativos | I73: 1408331000 | J73: 163500000 | K73: 0 | L73: 0 | M73: 0 | N73: 0 | O73: 0 | P73: 0 | Q73: 3250000
B74: La Prosperidad | C74: 8 | D74: Trabajo decente y crecimiento económico | E74: 8.3 | F74: Promover políticas orientadas al desarrollo que apoyen las actividades productivas, la creación de puestos de trabajo decentes, el emprendimiento, la creatividad y la innovación, y fomentar la formalización y el crecimiento de las microempresas y las pequeñas y medianas empresas, incluso mediante el acceso a servicios financieros | G74: 1941 | H74: Promover en 210 Mipymes y/o emprendimientos procesos de reconversión hacia actividades sostenibles | I74: 874137000 | J74: 52332000 | K74: 0 | L74: 0 | M74: 0 | N74: 0 | O74: 0 | P74: 0 | Q74: 0
B75: La Prosperidad | C75: 10 | D75: Reducción de las desigualdades | E75: 10.2 | F75: De aquí a 2030, potenciar y promover la inclusión social, económica y política de todas las personas, independientemente de su edad, sexo, discapacidad, raza, etnia, origen, religión o situación económica u otra condición | G75: 1988 | H75: Dotar 1 centro de atención especializado | I75: 0 | K75: 0 | L75: 0 | M75: 0 | N75: 0 | O75: 0 | P75: 0
B76: La Prosperidad | C76: 10 | D76: Reducción de las desigualdades | E76: 10.2 | F76: De aquí a 2030, potenciar y promover la inclusión social, económica y política de todas las personas, independientemente de su edad, sexo, discapacidad, raza, etnia, origen, religión o situación económica u otra condición | G76: 1988 | H76: Dotar 1 Centro de Desarrollo comunitario. | I76: 0 | K76: 0 | L76: 0 | M76: 0 | N76: 0 | O76: 0 | P76: 0
B77: La Prosperidad | C77: 10 | D77: Reducción de las desigualdades | E77: 10.2 | F77: De aquí a 2030, potenciar y promover la inclusión social, económica y política de todas las personas, independientemente de su edad, sexo, discapacidad, raza, etnia, origen, religión o situación económica u otra condición | G77: 1961 | H77: Beneficiar 711 personas con discapacidad a través de Dispositivos de Asistencia Personal - Ayudas Técnicas (no incluidas en los Planes de Beneficios). | I77: 331715000 | J77: 71500000 | K77: 0 | L77: 0 | M77: 0 | N77: 0 | O77: 0 | P77: 0 | Q77: 0
B78: La Paz | C78: 16 | D78: Paz, justicia e instituciones sólidas | E78: 16.1 | F78: Reducir significativamente todas las formas de violencia y las correspondientes tasas de mortalidad en todo el mundo | G78: 1988 | H78: Formar 1020 personas en prevención de violencia intrafamiliar y/o violencia sexual. | I78: 485631000 | J78: 50000000 | K78: 0 | L78: 0 | M78: 0 | N78: 0 | O78: 0 | P78: 0 | Q78: 0
B79: La Paz | C79: 16 | D79: Paz, justicia e instituciones sólidas | E79: 16.1 | F79: Reducir significativamente todas las formas de violencia y las correspondientes tasas de mortalidad en todo el mundo | G79: 1948 | H79: Implementar 4 estrategias de atención de movilizaciones y aglomeraciones en el territorio a través de equipos de gestores de convivencia bajo el direccionamiento estratégico de la Secretaria de Seguridad, Convivencia y Justicia. | I79: 463593000 | J79: 282000000 | K79: 0 | L79: 0 | M79: 0 | N79: 0 | O79: 0 | P79: 0 | Q79: 0
B80: La Paz | C80: 16 | D80: Paz, justicia e instituciones sólidas | E80: 16.1 | F80: Reducir significativamente todas las formas de violencia y las correspondientes tasas de mortalidad en todo el mundo | G80: 1959 | H80: Realizar 4 acuerdos para la vinculación de la ciudadanía en los programas adelantados por el IDRD y acuerdos con vendedores informales o estacionarios | I80: 0 | K80: 0 | L80: 0 | M80: 0 | N80: 0 | O80: 0 | P80: 0
B81: La Paz | C81: 16 | D81: Paz, justicia e instituciones sólidas | E81: 16.1 | F81: Reducir significativamente todas las formas de violencia y las correspondientes tasas de mortalidad en todo el mundo | G81: 1959 | H81: Realizar 4 acuerdos para el uso del EP con fines culturales, deportivos, recreacionales o de mercados temporales. | I81: 194253000 | J81: 28000000 | K81: 0 | L81: 0 | M81: 0 | N81: 0 | O81: 0 | P81: 0 | Q81: 0
B82: La Paz | C82: 16 | D82: Paz, justicia e instituciones sólidas | E82: 16.1 | F82: Reducir significativamente todas las formas de violencia y las correspondientes tasas de mortalidad en todo el mundo | G82: 1959 | H82: Realizar 1 acuerdo para promover la formalización de vendedores informales a círculos económicos productivos de la ciudad que incluya formación para el trabajo. | I82: 254918000 | J82: 80400000 | K82: 0 | L82: 0 | M82: 0 | N82: 0 | O82: 0 | P82: 0 | Q82: 0
B83: La Paz | C83: 16 | D83: Paz, justicia e instituciones sólidas | E83: 16.3 | F83: Promover el estado de derecho en los planos nacional e internacional y garantizar la igualdad en el acceso a la justicia para todos | G83: 1946 | H83: Vincular 150 personas a procesos de construcción de memoria, verdad, reparación integral a víctimas, paz y reconciliación. | I83: 194253000 | K83: 0 | L83: 0 | M83: 0 | N83: 0 | O83: 0 | P83: 0
B84: La Paz | C84: 16 | D84: Paz, justicia e instituciones sólidas | E84: 16.3 | F84: Promover el estado de derecho en los planos nacional e internacional y garantizar la igualdad de acceso a la justicia para todos | G84: 1951 | H84: Implementar 2 estrategias locales de acciones pedagógicas del Código Nacional de Seguridad y Convivencia Ciudadana en la localidad. | I84: 0 | K84: 0 | L84: 0 | M84: 0 | N84: 0 | O84: 0 | P84: 0
B85: La Paz | C85: 16 | D85: Paz, justicia e instituciones sólidas | E85: 16.3 | F85: Promover el estado de derecho en los planos nacional e internacional y garantizar la igualdad de acceso a la justicia para todos | G85: 1951 | H85: Atender 150 personas en estrategias de acceso a la justicia integral en la ciudad. | I85: 0 | K85: 0 | L85: 0 | M85: 0 | N85: 0 | O85: 0 | P85: 0
B86: La Paz | C86: 16 | D86: Paz, justicia e instituciones sólidas | E86: 16.a | F86: Fortalecer las instituciones nacionales pertinentes, incluso mediante la cooperación internacional, para crear a todos los niveles, particularmente en los países en desarrollo, la capacidad de prevenir la violencia y combatir el terrorismo y la delincuencia | G86: 1956 | H86: Suministrar 1 dotación logística a organismos de seguridad | I86: 0 | K86: 0 | L86: 0 | M86: 0 | N86: 0 | O86: 0 | P86: 0
B87: La Paz | C87: 16 | D87: Paz, justicia e instituciones sólidas | E87: 16.a | F87: Fortalecer las instituciones nacionales pertinentes, incluso mediante la cooperación internacional, para crear a todos los niveles, particularmente en los países en desarrollo, la capacidad de prevenir la violencia y combatir el terrorismo y la delincuencia | G87: 1956 | H87: Suministrar 2 dotaciones tecnológicas a organismos de seguridad. | I87: 1651147000 | J87: 355300000 | K87: 0 | L87: 0 | M87: 0 | N87: 0 | O87: 0 | P87: 0 | Q87: 9873334
B88: La Paz | C88: 16 | D88: Paz, justicia e instituciones sólidas | E88: 16.7 | F88: Garantizar la adopción en todos los niveles de decisiones inclusivas, participativas y representativas que respondan a las necesidades | G88: 1950 | H88: Capacitar 734 personas a través de procesos de formación para la participación de manera virtual y presencial. | I88: 300052000 | J88: 204373280 | K88: 0 | L88: 0 | M88: 0 | N88: 0 | O88: 0 | P88: 0 | Q88: 0
B89: La Paz | C89: 16 | D89: Paz, justicia e instituciones sólidas | E89: 16.7 | F89: Garantizar la adopción en todos los niveles de decisiones inclusivas, participativas y representativas que respondan a las necesidades | G89: 1950 | H89: Fortalecer 43 Organizaciones, JAC e Instancias de participación ciudadana | I89: 417488000 | J89: 100000000 | K89: 0 | L89: 0 | M89: 0 | N89: 0 | O89: 0 | P89: 0 | Q89: 4766667
B90: La Paz | C90: 16 | D90: Paz, justicia e instituciones sólidas | E90: 16.6 | F90: Garantizar el acceso público a la información y proteger las libertades fundamentales, de conformidad con las leyes nacionales y los acuerdos internacionales | G90: 1949 | H90: Realizar 4 estrategias de fortalecimiento institucional. | I90: 5406826000 | J90: 2643777464 | K90: 0 | L90: 0 | M90: 0 | N90: 0 | O90: 0 | P90: 0 | Q90: 90863412
B91: La Paz | C91: 16 | D91: Paz, justicia e instituciones sólidas | E91: 16.6 | F91: Garantizar el acceso público a la información y proteger las libertades fundamentales, de conformidad con las leyes nacionales y los acuerdos internacionales | G91: 1949 | H91: Realizar 1 rendición de cuenta anual | I91: 28735000 | K91: 0 | L91: 0 | M91: 0 | N91: 0 | O91: 0 | P91: 0
B92: La Paz | C92: 16 | D92: Paz, justicia e instituciones sólidas | E92: 16.6 | F92: Garantizar el acceso público a la información y proteger las libertades fundamentales, de conformidad con las leyes nacionales y los acuerdos internacionales | G92: 1952 | H92: Realizar 4 acciones de inspección, vigilancia y control. | I92: 1441820000 | J92: 1614222380 | K92: 0 | L92: 0 | M92: 0 | N92: 0 | O92: 0 | P92: 0 | Q92: 11893206
B93: El Planeta | C93: 15 | D93: Vida de ecosistemas terrestres | E93: 15.1 | F93: De aquí a 2020, asegurar la conservación, el restablecimiento y el uso sostenible de los ecosistemas terrestres y los ecosistemas interiores de agua dulce y sus servicios, en particular los bosques, los humedales, las montañas y las zonas áridas, en consonancia con las obligaciones contraídas en virtud de acuerdos internacionales | G93: 1942 | H93: Mantener 8000 árboles urbanos y/o rurales | I93: 194253000 | K93: 0 | L93: 0 | M93: 0 | N93: 0 | O93: 0 | P93: 0
B94: El Planeta | C94: 15 | D94: Vida de ecosistemas terrestres | E94: 15.1 | F94: De aquí a 2020, asegurar la conservación, el restablecimiento y el uso sostenible de los ecosistemas terrestres y los ecosistemas interiores de agua dulce y sus servicios, en particular los bosques, los humedales, las montañas y las zonas áridas, en consonancia con las obligaciones contraídas en virtud de acuerdos internacionales | G94: 1942 | H94: Plantar 340 árboles urbanos y/o rurales. | I94: 0 | K94: 0 | L94: 0 | M94: 0 | N94: 0 | O94: 0 | P94: 0
B95: El Planeta | C95: 15 | D95: Vida de ecosistemas terrestres | E95: 15.1 | F95: De aquí a 2020, asegurar la conservación, el restablecimiento y el uso sostenible de los ecosistemas terrestres y los ecosistemas interiores de agua dulce y sus servicios, en particular los bosques, los humedales, las montañas y las zonas áridas, en consonancia con las obligaciones contraídas en virtud de acuerdos internacionales | G95: 1935 | H95: Intervenir 6 hectáreas con procesos de restauración, rehabilitación o recuperación ecológica. | I95: 0 | K95: 0 | L95: 0 | M95: 0 | N95: 0 | O95: 0 | P95: 0
B96: El Planeta | C96: 13 | D96: Acción por el Clima | E96: 13.1 | F96: Fortalecer la resiliencia y la capacidad de adaptación a los riesgos relacionados con el clima y los desastres naturales en todos los países | G96: 1940 | H96: Desarrollar 1 intervención para la reducción del riesgo y adaptación al cambio climático | I96: 0 | K96: 0 | L96: 0 | M96: 0 | N96: 0 | O96: 0 | P96: 0
B97: El Planeta | C97: 13 | D97: Acción por el Clima | E97: 13.3 | F97: Mejorar la educación, la sensibilización y la capacidad humana e institucional respecto de la mitigación del cambio climático, la adaptación a él, la reducción de sus efectos y la alerta temprana | G97: 1944 | H97: Implementar 6 PROCEDAS. | I97: 194253000 | J97: 52000000 | K97: 0 | L97: 0 | M97: 0 | N97: 0 | O97: 0 | P97: 0 | Q97: 0
B98: El Planeta | C98: 12 | D98: Producción y consumo responsables | E98: 12.2 | F98: De aquí a 2030, lograr la gestión sostenible y el uso eficiente de los recursos naturales | G98: 1932 | H98: Implementar 4 acciones de fomento para la agricultura urbana | I98: 194253000 | J98: 49500000 | K98: 0 | L98: 0 | M98: 0 | N98: 0 | O98: 0 | P98: 0 | Q98: 0
B99: El Planeta | C99: 12 | D99: Producción y consumo responsables | E99: 12.5 | F99: De aquí a 2030, reducir considerablemente la generación de desechos mediante actividades de prevención, reducción, reciclado y reutilización | G99: 1955 | H99: Capacitar 2500 personas en separación en la fuente y reciclaje. | I99: 388505000 | J99: 44000000 | K99: 0 | L99: 0 | M99: 0 | N99: 0 | O99: 0 | P99: 0 | Q99: 5316667

Sheet Anexo ODS (hidden)
G1: 1 | H1: 2 | I1: 3 | J1: 4 | K1: 5 | L1: 6 | M1: 7 | N1: 8 | O1: 9 | P1: 10
A2: No PROYECTO DE INVERSIÓN | B2: COMPETENCIA | C2: SECTOR | D2: LINEA | E2: CONCEPTO | F2: ESTRUCTURA META | G2: INDICADOR DE PRODUCTO | H2: PROPOSITO | I2: PROGRAMA PDD | J2: COMPONENTE PROYECTO | K2: CODIGO ESFERA ODS | L2: ESFERA ODS | M2: CODIGO ODS | N2: ODS | O2: CÓDIGO META ODS (Conpes 3918 de 2018) | P2: META ODS (Conpes 3918 de 2018) | Q2: CÓDIGO META EQUIVALENTE PDD | R2: META EQUIVALENTE PDD | S2: CÓDIGO META EQUIVALENTE PDD - 2 | T2: META EQUIVALENTE PDD - 2
A3: 1 | B3: 11. Realizar inversiones complementarias a los programas y proyectos de la Administración Distrital en los sectores de Salud, Integración Social, Educación, Mujer, poblaciones, ruralidad, de conformidad con la reglamentación que se expida para el efecto. | C3: INTEGRACIÓN SOCIAL | D3: Sistema Bogotá Solidaria (20%) | E3: Ingreso mínimo garantizado | F3: Atender XXX hogares con apoyos que contribuyan al ingreso mínimo garantizado. | G3: Hogares atendidos con apoyos que contribuyan al ingreso mínimo garantizado | H3: Propósito 1. Hacer un nuevo contrato social con igualdad de oportunidades para la inclusión social, productiva y política | I3: Subsidios y transferencias para la equidad | J3: INGRESO MÍNIMO | K3: 1 | L3: Las Personas | M3: 1 | N3: Fin de la pobreza | O3: 1.2 | P3: De aquí a 2030, reducir al menos a la mitad la proporción de hombres, mujeres y niños de todas las edades que viven en la pobreza en todas sus dimensiones con arreglo a las definiciones nacionales | Q3: 12 | R3: Contribuir con el ingreso mínimo garantizado de la población vulnerable a través de las intervenciones de las Alcaldías Locales de conformidad con la reglamentación vigente | S3: 902 | T3: Reducir la incidencia de la pobreza monetaria en Bogotá
A4: 1 | B4: 11. Realizar inversiones complementarias a los programas y proyectos de la Administración Distrital en los sectores de Salud, Integración Social, Educación, Mujer, poblaciones, ruralidad, de conformidad con la reglamentación que se expida para el efecto. | C4: INTEGRACIÓN SOCIAL | D4: Sistema Bogotá Solidaria (20%) | E4: Subsidio tipo C adulto mayor. | F4: Beneficiar XXX personas mayores con apoyo económico tipo C. | G4: Número de personas mayores con apoyo económico tipo C | H4: Propósito 1. Hacer un nuevo contrato social con igualdad de oportunidades para la inclusión social, productiva y política | I4: Subsidios y transferencias para la equidad | J4: SUBSIDIO TIPO C | K4: 1 | L4: Las Personas | M4: 1 | N4: Fin de la pobreza | O4: 1.2 | P4: De aquí a 2030, reducir al menos a la mitad la proporción de hombres, mujeres y niños de todas las edades que viven en la pobreza en todas sus dimensiones con arreglo a las definiciones nacionales | Q4: 902 | R4: Reducir la incidencia de la pobreza monetaria en Bogotá | S4: 901 | T4: Mantener la incidencia de la pobreza multidimensional en Bogotá.
A5: 2 | B5: 11. Realizar inversiones complementarias a los programas y proyectos de la Administración Distrital en los sectores de Salud, Integración Social, Educación, Mujer, poblaciones, ruralidad, de conformidad con la reglamentación que se expida para el efecto. | C5: EDUCACIÓN | D5: Educación superior y primera infancia (10%) | E5: Apoyo para educación inicial. | F5: Implementar XXX Proyectos para el desarrollo integral de la primera infancia y la relación escuela, familia y comunidad. | G5: Proyectos para el desarrollo integral de la primera infancia y la relación escuela, familia y comunidad. | H5: Propósito 1. Hacer un nuevo contrato social con igualdad de oportunidades para la inclusión social, productiva y política | I5: Educación inicial: Bases sólidas para la vida | J5: EDUCACIÓN INICIAL | K5: 1 | L5: Las Personas | M5: 4 | N5: Educación de calidad | O5: 4.2 | P5: De aquí a 2030, asegurar que todas las niñas y todos los niños tengan acceso a servicios de atención y desarrollo en la primera infancia y educación preescolar de calidad, a fin de que estén preparados para la enseñanza primaria. | Q5: 86 | R5: Promover la atención de 93.000 beneficiarios de primera infancia a través de la realización de experiencias artísticas a favor de los derechos culturales
A6: 3 | B6: 11. Realizar inversiones complementarias a los programas y proyectos de la Administración Distrital en los sectores de Salud, Integración Social, Educación, Mujer, poblaciones, ruralidad, de conformidad con la reglamentación que se expida para el efecto. | C6: EDUCACIÓN | D6: Infraestructura | E6: Dotación pedagógica a colegios. | F6: Dotar XXX sedes educativas urbanas y rurales. | G6: Sedes educativas urbanas y rurales dotadas | H6: Propósito 1. Hacer un nuevo contrato social con igualdad de oportunidades para la inclusión social, productiva y política | I6: Formación integral: más y mejor tiempo en los colegios | J6: DOTACIÓN | K6: 1 | L6: Las Personas | M6: 4 | N6: Educación de calidad | O6: 4.7 | P6: De aquí a 2030, asegurar que todos los alumnos adquieran los conocimientos teóricos y prácticos necesarios para promover el desarrollo sostenible, entre otras cosas mediante la educación para el desarrollo sostenible y los estilos de vida sostenibles, los derechos humanos, la igualdad de género, la promoción de una cultura de paz y no violencia, la ciudadanía mundial y la valoración de la diversidad cultural y la contribución de la cultura al desarrollo sostenible | Q6: 100 | R6: Realizar 1 proceso integral de formación a lo largo de la vida con énfasis en el arte, la cultura | S6: 91 | T6: Entregar 35 colegios nuevos o restituidos, de los cuales 15 corresponden a terminación de colegios que se encuentran en ejecución de obra al inicio de la administración y 20 colegios nuevos o restituidos, con comedores escolares y ambientes de aprendizaje adecuados para la jornada única, el desarrollo de la primera infancia, y la transformación pedagógica, y realizar la intervención del 100% de instituciones educativas priorizadas en materia de mejoramientos y con dotaciones para el aprendizaje y el cierre de brechas digitales, contribuyendo al plan de reactivación económica de la ciudad a raíz de la emergencia de la CODIV-19
A7: 4 | B7: 11. Realizar inversiones complementarias a los programas y proyectos de la Administración Distrital en los sectores de Salud, Integración Social, Educación, Mujer, poblaciones, ruralidad, de conformidad con la reglamentación que se expida para el efecto. | C7: EDUCACIÓN | D7: Educación superior y primera infancia (10%) | E7: Apoyo para educación superior. | F7: Beneficiar XXX personas con apoyo para la educación superior. | G7: Personas beneficiadas con apoyo para la educación superior | H7: Propósito 1. Hacer un nuevo contrato social con igualdad de oportunidades para la inclusión social, productiva y política | I7: Jóvenes con capacidades: Proyecto de vida para la ciudadanía, la innovación y el trabajo del siglo XXI | J7: APOYO EDUCACIÓN SUPERIOR | K7: 1 | L7: Las Personas | M7: 4 | N7: Educación de calidad | O7: 4.3 | P7: De aquí a 2030, asegurar el acceso igualitario de todos los hombres y las mujeres a una formación técnica, profesional y superior de calidad, incluida la enseñanza universitaria. | Q7: 115 | R7: Ofrecer a través de las IES, 20 mil cupos nuevos de educación superior mediante un modelo inclusivo y flexible que brinde alternativas de acceso, permanencia y pertinencia a programas de educación superior o educación postmedia, promoviendo el trabajo colaborativo y la conformación de redes entre las Instituciones de Educación Superior de la ciudad-región
A8: 4 | B8: 11. Realizar inversiones complementarias a los programas y proyectos de la Administración Distrital en los sectores de Salud, Integración Social, Educación, Mujer, poblaciones, ruralidad, de conformidad con la reglamentación que se expida para el efecto. | C8: EDUCACIÓN | D8: Educación superior y primera infancia (10%) | E8: Apoyo para educación superior. | F8: Beneficiar XXX estudiantes de programas de educación superior con apoyo de sostenimiento para la permanencia. | G8: Número de estudiantes de programas de educación superior con apoyo de sostenimiento para la permanencia. | H8: Propósito 1. Hacer un nuevo contrato social con igualdad de oportunidades para la inclusión social, productiva y política | I8: Jóvenes con capacidades: Proyecto de vida para la ciudadanía, la innovación y el trabajo del siglo XXI | J8: SOSTENIMIENTO | K8: 1 | L8: Las Personas | M8: 4 | N8: Educación de calidad | O8: 4.3 | P8: De aquí a 2030, asegurar el acceso igualitario de todos los hombres y las mujeres a una formación técnica, profesional y superior de calidad, incluida la enseñanza universitaria. | Q8: 115 | R8: Ofrecer a través de las IES, 20 mil cupos nuevos de educación superior mediante un modelo inclusivo y flexible que brinde alternativas de acceso, permanencia y pertinencia a programas de educación superior o educación postmedia, promoviendo el trabajo colaborativo y la conformación de redes entre las Instituciones de Educación Superior de la ciudad-región
A9: 5 | B9: 11. Realizar inversiones complementarias a los programas y proyectos de la Administración Distrital en los sectores de Salud, Integración Social, Educación, Mujer, poblaciones, ruralidad, de conformidad con la reglamentación que se expida para el efecto. | C9: INTEGRACIÓN SOCIAL | D9: Infraestructura | E9: Dotación Casas de Juventud. | F9: Dotar XXX sedes de casas de juventud. | G9: Sedes de Casas de juventud dotadas | H9: Propósito 1. Hacer un nuevo contrato social con igualdad de oportunidades para la inclusión social, productiva y política | I9: Jóvenes con capacidades: Proyecto de vida para la ciudadanía, la innovación y el trabajo del siglo XXI | J9: DOTACIÓN | K9: 1 | L9: Las Personas | M9: 1 | N9: Fin de la Pobreza | O9: 1.2 | P9: De aquí a 2030, reducir al menos a la mitad la proporción de hombres, mujeres y niños de todas las edades que viven en la pobreza en todas sus dimensiones con arreglo a las definiciones nacionales | Q9: 114 | R9: Incrementar en 100% el número de jóvenes atendidos con estrategias móviles, canales virtuales y servicios sociales con especial énfasis en jóvenes NiNis y vulnerables, acordes a las necesidades de la población, teniendo en cuenta los impactos de la emergencia social y sanitaria sobre esta población
A10: 5 | B10: 11. Realizar inversiones complementarias a los programas y proyectos de la Administración Distrital en los sectores de Salud, Integración Social, Educación, Mujer, poblaciones, ruralidad, de conformidad con la reglamentación que se expida para el efecto. | C10: INTEGRACIÓN SOCIAL | D10: Infraestructura | E10: Dotación a Jardines Infantiles, Centros Amar y Forjar. | F10: Dotar XXX sedes de atención a adolescentes y jóvenes vinculados al sistema de responsabilidad penal adolescente (Centros Forjar). | G10: Sedes de atención a adolescentes y jovenes vinculados al sistema de responsabilidad penal adolescente dotados. | H10: Propósito 1. Hacer un nuevo contrato social con igualdad de oportunidades para la inclusión social, productiva y política | I10: Jóvenes con capacidades: Proyecto de vida para la ciudadanía, la innovación y el trabajo del siglo XXI | J10: DOTACIÓN | K10: 2 | L10: La Paz | M10: 16 | N10: Paz, justicia e instituciones sólidas | O10: 16.3 | P10: Promover el estado de derecho en los planos nacional e internacional y garantizar la igualdad de acceso a la justicia para todos | Q10: 110 | R10: Atender 2.400 adolescentes y jóvenes con sanciones no privativas de la libertad o en apoyo al restablecimiento en administración de justicia en los Centros Forjar, con oportunidades que favorezcan sus proyectos de vida e inclusión social
A11: 6 | B11: 11. Realizar inversiones complementarias a los programas y proyectos de la Administración Distrital en los sectores de Salud, Integración Social, Educación, Mujer, poblaciones, ruralidad, de conformidad con la reglamentación que se expida para el efecto. | C11: HÁBITAT | D11: Ruralidad | E11: Mejoramiento de vivienda rural. | F11: Mejorar XXX viviendas de interés social rurales. | G11: Viviendas de interés social rurales mejoradas | H11: Propósito 1. Hacer un nuevo contrato social con igualdad de oportunidades para la inclusión social, productiva y política | I11: Vivienda y entornos dignos en el territorio urbano y rural. | J11: MEJORAMIENTO DE VIVIENDA | K11: 3 | L11: La Prosperidad | M11: 11 | N11: Ciudades y comunidades sostenibles | O11: 11.1 | P11: De aquí a 2030, asegurar el acceso de todas las personas a viviendas y servicios básicos adecuados, seguros y asequibles y mejorar los barrios marginales | Q11: 126 | R11: Diseñar e implementar intervenciones de mejoramiento integral rural y de bordes urbanos | S11: 127 | T11: Diseñar e implementar alternativas financieras y esquemas para el acceso a una vivienda digna y gestión del hábitat
A12: 7 | B12: 02. Realizar inversiones complementarias a las realizadas por el sector en la prestación de servicios culturales, recreativos y deportivos locales. | C12: CULTURA, RECREACIÓN Y DEPORTE | D12: Desarrollo social y cultural | E12: Eventos recreo-deportivos. | F12: Vincular XXX personas en actividades recreo-deportivas comunitarias. | G12: Personas vinculadas en actividades recreo-deportivas comunitarias | H12: Propósito 1. Hacer un nuevo contrato social con igualdad de oportunidades para la inclusión social, productiva y política | I12: Bogotá, referente en cultura, deporte, recreación y actividad física, con parques para el desarrollo y la salud | J12: EVENTOS | K12: 1 | L12: Las Personas | M12: 3 | N12: Salud y Bienestar | O12: 3.d | P12: Reforzar la capacidad de todos los países, en particular los países en desarrollo, en materia de alerta temprana, reducción de riesgos y gestión de los riesgos para la salud nacional y mundial | Q12: 143 | R12: Realizar campeonatos, certámenes deportivos y acciones recreativas en el 100% de las UPZ priorizadas del Distrito Capital, que potencien la participación ciudadana y la apropiación y la re significación de la vida social y comunitaria desde lo cotidiano. Promover la realización de torneos virtuales para fortalecer los e-sports, con un componente de práctica responsable y actividad física para evitar el sedentarismo
A13: 7 | B13: 02. Realizar inversiones complementarias a las realizadas por el sector en la prestación de servicios culturales, recreativos y deportivos locales. | C13: CULTURA, RECREACIÓN Y DEPORTE | D13: Desarrollo social y cultural | E13: Procesos de formación y dotación de insumos para los campos artísticos, interculturales, culturales, patrimoniales y deportivos. | F13: Capacitar XXX personas en los campos deportivos. | G13: Personas capacitadas en los campos deportivos | H13: Propósito 1. Hacer un nuevo contrato social con igualdad de oportunidades para la inclusión social, productiva y política | I13: Bogotá, referente en cultura, deporte, recreación y actividad física, con parques para el desarrollo y la salud | J13: FORMACIÓN DEPORTIVA | K13: 1 | L13: Las Personas | M13: 4 | N13: Educación de calidad | O13: 4.7 | P13: De aquí a 2030, asegurar que todos los alumnos adquieran los conocimientos teóricos y prácticos necesarios para promover el desarrollo sostenible, entre otras cosas mediante la educación para el desarrollo sostenible y los estilos de vida sostenibles, los derechos humanos, la igualdad de género, la promoción de una cultura de paz y no violencia, la ciudadanía mundial y la valoración de la diversidad cultural y la contribución de la cultura al desarrollo sostenible | Q13: 138 | R13: Formar 40.000 niñas, niños y adolescentes y jóvenes en disciplinas deportivas priorizadas en el marco de la jornada escolar complementaria
A14: 7 | B14: 02. Realizar inversiones complementarias a las realizadas por el sector en la prestación de servicios culturales, recreativos y deportivos locales. | C14: CULTURA, RECREACIÓN Y DEPORTE | D14: Desarrollo social y cultural | E14: Procesos de formación y dotación de insumos para los campos artísticos, interculturales, culturales, patrimoniales y deportivos. | F14: Beneficiar XXX Personas con artículos deportivos entregados. | G14: Personas beneficiadas con artículos entregados. | H14: Propósito 1. Hacer un nuevo contrato social con igualdad de oportunidades para la inclusión social, productiva y política | I14: Bogotá, referente en cultura, deporte, recreación y actividad física, con parques para el desarrollo y la salud | J14: DOTACIÓN | K14: 1 | L14: Las Personas | M14: 3 | N14: Salud y Bienestar | O14: 3.d | P14: Reforzar la capacidad de todos los países, en particular los países en desarrollo, en materia de alerta temprana, reducción de riesgos y gestión de los riesgos para la salud nacional y mundial | Q14: 924 | R14: Promover la participación, la transformación cultural, deportiva, recreativa, patrimonial y artística que propicien espacios de encuentro, tejido social y reconocimiento del otro.
A15: 8 | B15: 02. Realizar inversiones complementarias a las realizadas por el sector en la prestación de servicios culturales, recreativos y deportivos locales. | C15: CULTURA, RECREACIÓN Y DEPORTE | D15: Desarrollo social y cultural | E15: Circulación y apropiación de prácticas artísticas, interculturales, culturales y patrimoniales. | F15: Realizar XXX eventos de promoción de actividades culturales. | G15: Eventos de promoción de actividades culturales realizadas | H15: Propósito 1. Hacer un nuevo contrato social con igualdad de oportunidades para la inclusión social, productiva y política | I15: Creación y vida cotidiana: Apropiación ciudadana del arte, la cultura y el patrimonio, para la democracia cultural | J15: EVENTOS | K15: 3 | L15: La Prosperidad | M15: 11 | N15: Ciudades y comunidades sostenibles | O15: 11.4 | P15: Redoblar los esfuerzos para proteger y salvaguardar el patrimonio cultural y natural del mundo | Q15: 156 | R15: Promover 21.250 acciones para el fortalecimiento y la participación en prácticas artísticas, culturales y patrimoniales en los territorios, generando espacios de encuentro y reconocimiento del otro | S15: 924 | T15: Promover la participación, la transformación cultural, deportiva, recreativa, patrimonial y artística que propicien espacios de encuentro, tejido social y reconocimiento del otro.
A16: 8 | B16: 02. Realizar inversiones complementarias a las realizadas por el sector en la prestación de servicios culturales, recreativos y deportivos locales. | C16: CULTURA, RECREACIÓN Y DEPORTE | D16: Desarrollo social y cultural | E16: Iniciativas de interés cultural, artístico, patrimonial y recreo deportivas. | F16: Otorgar XXX estímulos de apoyo al sector artístico y cultural. | G16: Estímulos otorgados de apoyo al sector artístico y cultural | H16: Propósito 1. Hacer un nuevo contrato social con igualdad de oportunidades para la inclusión social, productiva y política | I16: Creación y vida cotidiana: Apropiación ciudadana del arte, la cultura y el patrimonio, para la democracia cultural | J16: ESTÍMULOS | K16: 3 | L16: La Prosperidad | M16: 11 | N16: Ciudades y comunidades sostenibles | O16: 11.4 | P16: Redoblar los esfuerzos para proteger y salvaguardar el patrimonio cultural y natural del mundo | Q16: 158 | R16: Realizar el 100% de las acciones para el fortalecimiento de los estímulos, apoyos concertados y alianzas estratégicas para dinamizar la estrategia sectorial dirigida a fomentar los procesos culturales, artísticos, patrimoniales
A17: 8 | B17: 02. Realizar inversiones complementarias a las realizadas por el sector en la prestación de servicios culturales, recreativos y deportivos locales. | C17: CULTURA, RECREACIÓN Y DEPORTE | D17: Desarrollo social y cultural | E17: Procesos de formación y dotación de insumos para los campos artísticos, interculturales, culturales, patrimoniales y deportivos. | F17: Capacitar XXX personas en los campos artísticos, interculturales, culturales y/o patrimoniales. | G17: Personas capacitadas en los campos artísticos, interculturales, culturales y/o patrimoniales | H17: Propósito 1. Hacer un nuevo contrato social con igualdad de oportunidades para la inclusión social, productiva y política | I17: Creación y vida cotidiana: Apropiación ciudadana del arte, la cultura y el patrimonio, para la democracia cultural | J17: FORMACIÓN | K17: 3 | L17: La Prosperidad | M17: 11 | N17: Ciudades y comunidades sostenibles | O17: 11.4 | P17: Redoblar los esfuerzos para proteger y salvaguardar el patrimonio cultural y natural del mundo | Q17: 924 | R17: Promover la participación, la transformación cultural, deportiva, recreativa, patrimonial y artística que propicien espacios de encuentro, tejido social y reconocimiento del otro.
A18: 8 | B18: 02. Realizar inversiones complementarias a las realizadas por el sector en la prestación de servicios culturales, recreativos y deportivos locales. | C18: CULTURA, RECREACIÓN Y DEPORTE | D18: Infraestructura | E18: Dotación e infraestructura cultural. | F18: Intervenir XXX sedes culturales con dotación y/o adecuación. | G18: Sedes dotadas/Sedes adecuadas | H18: Propósito 1. Hacer un nuevo contrato social con igualdad de oportunidades para la inclusión social, productiva y política | I18: Creación y vida cotidiana: Apropiación ciudadana del arte, la cultura y el patrimonio, para la democracia cultural | J18: FORTALECIMIENTO INFRAESTRUCTURA | K18: 3 | L18: La Prosperidad | M18: 9 | N18: Industria, innovación e infraestructura | O18: 9.1 | P18: Desarrollar infraestructuras fiables, sostenibles, resilientes y de calidad, incluidas infraestructuras regionales y transfronterizas, para apoyar el desarrollo económico y el bienestar humano, haciendo especial hincapié en el acceso asequible y equitativo para todos | Q18: 155 | R18: Mantener, mejorar y dotar 17 equipamientos urbanos y rurales para el goce y disfrute de los habitantes de la ciudad región y de los visitantes
A19: 9 | B19: 11. Realizar inversiones complementarias a los programas y proyectos de la Administración Distrital en los sectores de Salud, Integración Social, Educación, Mujer, poblaciones, ruralidad, de conformidad con la reglamentación que se expida para el efecto. | C19: AMBIENTE / DESARROLLO ECONÓMICO | D19: Ruralidad | E19: Asistencia técnica agropecuaria y ambiental y productividad rural. | F19: Apoyar XXX predios rurales con asistencia técnica agropecuaria y/o ambiental. | G19: Número de Predios rurales con asistencia técnica agropecuaria y/o ambiental | H19: Propósito 1. Hacer un nuevo contrato social con igualdad de oportunidades para la inclusión social, productiva y política | I19: Bogotá rural | J19: ASESORÍA Y ASISTENCIA TÉCNICA | K19: 4 | L19: El Planeta | M19: 15 | N19: Vida de ecosistemas terrestres | O19: 15.9 | P19: De aquí a 2020, integrar los valores de los ecosistemas y la biodiversidad en la planificación, los procesos de desarrollo, las estrategias de reducción de la pobreza y la contabilidad nacionales y locales | Q19: 162 | R19: Lograr el 100% de las localidades rurales de Bogotá con acciones del plan de acción de la Política Pública Distrital de Ruralidad
A20: 9 | B20: 11. Realizar inversiones complementarias a los programas y proyectos de la Administración Distrital en los sectores de Salud, Integración Social, Educación, Mujer, poblaciones, ruralidad, de conformidad con la reglamentación que se expida para el efecto. | C20: AMBIENTE / DESARROLLO ECONÓMICO | D20: Ruralidad | E20: Asistencia técnica agropecuaria y ambiental y productividad rural. | F20: Vincular XXX hogares y/o unidades productivas a procesos productivos y de comercialización en el sector rural. | G20: Número de hogares y/o unidades productivas vinculadas a procesos productivos y de comercialización en el sector rural | H20: Propósito 1. Hacer un nuevo contrato social con igualdad de oportunidades para la inclusión social, productiva y política | I20: Bogotá rural | J20: EMPRENDIMIENTO RURAL | K20: 1 | L20: Las Personas | M20: 2 | N20: Hambre Cero | O20: 2.3 | P20: De aquí a 2030, duplicar la productividad agrícola y los ingresos de los productores de alimentos en pequeña escala, en particular las mujeres, los pueblos indígenas, los agricultores familiares, los ganaderos y los pescadores, entre otras cosas mediante | Q20: 162 | R20: Lograr el 100% de las localidades rurales de Bogotá con acciones del plan de acción de la Política Pública Distrital de Ruralidad | S20: 163 | T20: Reglamentar los instrumentos operacionales para el desarrollo rural sostenible de Bogotá (Modelo de Desarrollo Rural MDR, Política Pública de Ruralidad, Sistema de información para el desarrollo rural SIPSDER y Estructura Institucional de Desarrollo Rural Sostenible)
A21: 10 | B21: 07. Orientar la gestión ambiental. | C21: AMBIENTE | D21: Inversiones ambientales sostenibles | E21: Agricultura urbana. | F21: Implementar XXX acciones de fomento para la agricultura urbana. | G21: Número acciones de fomento para la agricultura urbana | H21: . | I21: Bogotá región emprendedora e innovadora. | J21: AGRICULTURA URBANA | K21: 4 | L21: El Planeta | M21: 12 | N21: Producción y consumo responsables | O21: 12.2 | P21: De aquí a 2030, lograr la gestión sostenible y el uso eficiente de los recursos naturales | Q21: 172 | R21: Implementar un (1) programa distrital de agricultura urbana y periurbana articulado a los mercados campesinos
A22: 11 | B22: Nueva PDD | C22: CULTURA, RECREACIÓN Y DEPORTE | D22: Desarrollo social y cultural | E22: Apoyo y fortalecimiento a las industrias culturales y creativas en las localidades | F22: Financiar XXX proyectos del sector cultural y creativo. | G22: Número de proyectos financiados y acompañados del sector cultural y creativo. | H22: Propósito 1. Hacer un nuevo contrato social con igualdad de oportunidades para la inclusión social, productiva y política | I22: Bogotá región emprendedora e innovadora. | J22: FORTALECIMIENTO INDUSTRIA CULTURAL | K22: 3 | L22: La Prosperidad | M22: 8 | N22: Trabajo decente y crecimiento económico | O22: 8.3 | P22: Promover políticas orientadas al desarrollo que apoyen las actividades productivas, la creación de puestos de trabajo decentes, el emprendimiento, la creatividad y la innovación, y fomentar la formalización y el crecimiento de las microempresas y las pequeñas y medianas empresas, incluso mediante el acceso a servicios financieros | Q22: 168 | R22: Diseñar y promover tres (3) programas para el fortalecimiento de la cadena de valor de la economía cultural y creativa | S22: 175 | T22: Implementar y fortalecer una (1) estrategia de economía cultural y creativa para orientar la toma de decisiones que permita mitigar y reactivar el sector cultura
A23: 12 | B23: Nueva PDD | C23: DESARROLLO ECONÓMICO, INDUSTRIA Y TURISMO | D23: Desarrollo de la Economía Local | E23: Apoyo a industrias culturales y creativas. | F23: Apoyar XXX Mipymes y/o emprendimientos culturales y creativos. | G23: Número de Mipymes y/o emprendimientos culturales y creativos apoyados | H23: Propósito 1. Hacer un nuevo contrato social con igualdad de oportunidades para la inclusión social, productiva y política | I23: Sistema Distrital de Cuidado | J23: FORTALECIMIENTO MIPYMES | K23: 3 | L23: La Prosperidad | M23: 8 | N23: Trabajo decente y crecimiento económico | O23: 8.3 | P23: Promover políticas orientadas al desarrollo que apoyen las actividades productivas, la creación de puestos de trabajo decentes, el emprendimiento, la creatividad y la innovación, y fomentar la formalización y el crecimiento de las microempresas y las pequeñas y medianas empresas, incluso mediante el acceso a servicios financieros | Q23: 118 | R23: Diseñar y poner en marcha uno o varios vehículos financieros para fondear al menos 73.900 unidades de MIPYIMES, negocios, emprendimientos, pequeños comercios, unidades productivas aglomeradas y/o emprendimientos por subsistencia, formales e informales, que permitan su liquidez y la conservación de los empleos o que ayude a crecer y consolidar sus negocios, disminuyendo la exposición a la tasa de mortalidad empresarial en el marco de la reactivación económica de la ciudad. Como mínimo, un 20% de la oferta será destinada a jóvenes
A24: 12 | B24: Nueva PDD | C24: DESARROLLO ECONÓMICO, INDUSTRIA Y TURISMO | D24: Desarrollo de la Economía Local | E24: Reactivación y reconversión verde | F24: Promover en XXX Mipymes y/o emprendimientos procesos de reconversión hacia actividades sostenibles. | G24: Número de Mipymes y/o emprendimientos con procesos de reconversión hacia actividades sostenibles | H24: Propósito 1. Hacer un nuevo contrato social con igualdad de oportunidades para la inclusión social, productiva y política | I24: Sistema Distrital de Cuidado | J24: REACTIVACIÓN | K24: 3 | L24: La Prosperidad | M24: 8 | N24: Trabajo decente y crecimiento económico | O24: 8.3 | P24: Promover políticas orientadas al desarrollo que apoyen las actividades productivas, la creación de puestos de trabajo decentes, el emprendimiento, la creatividad y la innovación, y fomentar la formalización y el crecimiento de las microempresas y las pequeñas y medianas empresas, incluso mediante el acceso a servicios financieros | Q24: 118 | R24: Diseñar y poner en marcha uno o varios vehículos financieros para fondear al menos 73.900 unidades de MIPYIMES, negocios, emprendimientos, pequeños comercios, unidades productivas aglomeradas y/o emprendimientos por subsistencia, formales e informales, que permitan su liquidez y la conservación de los empleos o que ayude a crecer y consolidar sus negocios, disminuyendo la exposición a la tasa de mortalidad empresarial en el marco de la reactivación económica de la ciudad. Como mínimo, un 20% de la oferta será destinada a jóvenes | S24: 177 | T24: Abrir nuevos mercados/segmentos comerciales para al menos 100 empresas, mipymes y/o emprendimientos con potencial exportador y atracción de eventos, que permita la reactivación económica local
A25: 12 | B25: Nueva PDD | C25: DESARROLLO ECONÓMICO, INDUSTRIA Y TURISMO | D25: Desarrollo de la Economía Local | E25: Transformación productiva y formación de capacidades | F25: Promover en XXX Mipymes y/o emprendimientos la transformación empresarial y/o productiva. | G25: Número de Mipymes y/o emprendimientos con transformacion empresarial y/o productiva | H25: Propósito 1. Hacer un nuevo contrato social con igualdad de oportunidades para la inclusión social, productiva y política | I25: Sistema Distrital de Cuidado | J25: TRANSFORMACIÓN PRODUCTIVA | K25: 3 | L25: La Prosperidad | M25: 8 | N25: Trabajo decente y crecimiento económico | O25: 8.3 | P25: Promover políticas orientadas al desarrollo que apoyen las actividades productivas, la creación de puestos de trabajo decentes, el emprendimiento, la creatividad y la innovación, y fomentar la formalización y el crecimiento de las microempresas y las pequeñas y medianas empresas, incluso mediante el acceso a servicios financieros | Q25: 171 | R25: Impactar al menos 3.500 emprendimientos de alto potencial de crecimiento o alto impacto a través del fortalecimiento del Fondo Cuenta Distrital de Innovación, Tecnología e Industrias Creativas (FITIC) para financiación, fomento y/o liquidez, principalmente enfocado a las MIPYMES con el ánimo de promover la transformación digital y la inclusión financiera y la innovación para detonar generación de empleo en industrias de oportunidad en el marco de la reactivación económica. como mínimo un 20% de la oferta será destinada a jóvenes
A26: 12 | B26: Nueva PDD | C26: DESARROLLO ECONÓMICO, INDUSTRIA Y TURISMO | D26: Desarrollo de la Economía Local | E26: Revitalización del corazón productivo de las localidades | F26: Revitalizar XXX Mipymes y/o emprendimientos potencializadas dentro de las aglomeraciones económicas que fomentan el empleo y/o nuevas actividades económicas. | G26: Número de Mipymes y/o emprendimientos revitalizadas o potencializadas dentro de las aglomeraciones económicas que fomentan el empleo y/o nuevas actividades económicas | H26: Propósito 1. Hacer un nuevo contrato social con igualdad de oportunidades para la inclusión social, productiva y política | I26: Sistema Distrital de Cuidado | J26: REVITALIZACIÓN | K26: 3 | L26: La Prosperidad | M26: 8 | N26: Trabajo decente y crecimiento económico | O26: 8.3 | P26: Promover políticas orientadas al desarrollo que apoyen las actividades productivas, la creación de puestos de trabajo decentes, el emprendimiento, la creatividad y la innovación, y fomentar la formalización y el crecimiento de las microempresas y las pequeñas y medianas empresas, incluso mediante el acceso a servicios financieros | Q26: 118 | R26: Diseñar y poner en marcha uno o varios vehículos financieros para fondear al menos 73.900 unidades de MIPYIMES, negocios, emprendimientos, pequeños comercios, unidades productivas aglomeradas y/o emprendimientos por subsistencia, formales e informales, que permitan su liquidez y la conservación de los empleos o que ayude a crecer y consolidar sus negocios, disminuyendo la exposición a la tasa de mortalidad empresarial en el marco de la reactivación económica de la ciudad. Como mínimo, un 20% de la oferta será destinada a jóvenes | S26: 177 | T26: Abrir nuevos mercados/segmentos comerciales para al menos 100 empresas, mipymes y/o emprendimientos con potencial exportador y atracción de eventos, que permita la reactivación económica local
A27: 13 | B27: 05. Desarrollar acciones que promuevan los derechos de las mujeres, desde los enfoques de género, de derechos, diferencial y territorial. | C27: INTEGRACIÓN SOCIAL | D27: Desarrollo social y cultural | E27: Prevención y atención de violencia intrafamiliar y sexual para poblaciones en situaciones de riesgo y vulneración de derechos. | F27: Formar XXX personas en prevención de violencia intrafamiliar y/o violencia sexual. | G27: Número de Personas formadas u orientadas o sensibilizadas en prevención de violencia intrafamiliar y/o violencia sexual. | H27: Propósito 1. Hacer un nuevo contrato social con igualdad de oportunidades para la inclusión social, productiva y política | I27: Sistema Distrital de Cuidado | J27: PREVENCIÓN DE VIOLENCIAS | K27: 2 | L27: La Paz | M27: 16 | N27: Paz, justicia e instituciones sólidas | O27: 16.1 | P27: Reducir significativamente todas las formas de violencia y las correspondientes tasas de mortalidad en todo el mundo | Q27: 55 | R27: Formular, implementar, monitorear y evaluar un Plan Distrital de Prevención Integral de las Violencias contra las niñas, los niños, adolescentes, mujeres y personas mayores, de carácter interinstitucional e intersectorial con enfoque de derechos, diferencial, poblacional, ambiental, territorial y de género
A28: 13 | B28: 11. Realizar inversiones complementarias a los programas y proyectos de la Administración Distrital en los sectores de Salud, Integración Social, Educación, Mujer, poblaciones, ruralidad, de conformidad con la reglamentación que se expida para el efecto. | C28: INTEGRACIÓN SOCIAL | D28: Infraestructura | E28: Dotación a Centros Crecer, Renacer. | F28: Dotar XXX centros de atención especializados. | G28: Centros de atención especializada dotados | H28: Propósito 1. Hacer un nuevo contrato social con igualdad de oportunidades para la inclusión social, productiva y política | I28: Sistema Distrital de Cuidado | J28: DOTACIÓN CENTROS DE ATENCIÓN ESPECIALIZADOS | K28: 3 | L28: La Prosperidad | M28: 10 | N28: Reducción de las desigualdades | O28: 10.2 | P28: De aquí a 2030, potenciar y promover la inclusión social, económica y política de todas las personas, independientemente de su edad, sexo, discapacidad, raza, etnia, origen, religión o situación económica u otra condición | Q28: 62 | R28: Optimizar el 100% de la red de unidades operativas para la prestación de servicios sociales, a través de la construcción, restitución, mantenimiento, adecuación o habilitación de inmuebles para atención especial en respuesta a situaciones de impacto poblacional diferencial, en el marco de la implementación del Sistema Distrital de Cuidado
A29: 13 | B29: 11. Realizar inversiones complementarias a los programas y proyectos de la Administración Distrital en los sectores de Salud, Integración Social, Educación, Mujer, poblaciones, ruralidad, de conformidad con la reglamentación que se expida para el efecto. | C29: INTEGRACIÓN SOCIAL | D29: Infraestructura | E29: Dotación Centros de Desarrollo Comunitario. | F29: Dotar XXX Centros de Desarrollo comunitarios | G29: Sedes de Centros de Desarrollo comunitarios dotados | H29: Propósito 1. Hacer un nuevo contrato social con igualdad de oportunidades para la inclusión social, productiva y política | I29: Sistema Distrital de Cuidado | J29: DOTACIÓN CDC | K29: 3 | L29: La Prosperidad | M29: 10 | N29: Reducción de las desigualdades | O29: 10.2 | P29: De aquí a 2030, potenciar y promover la inclusión social, económica y política de todas las personas, independientemente de su edad, sexo, discapacidad, raza, etnia, origen, religión o situación económica u otra condición | Q29: 62 | R29: Optimizar el 100% de la red de unidades operativas para la prestación de servicios sociales, a través de la construcción, restitución, mantenimiento, adecuación o habilitación de inmuebles para atención especial en respuesta a situaciones de impacto poblacional diferencial, en el marco de la implementación del Sistema Distrital de Cuidado
A30: 13 | B30: 11. Realizar inversiones complementarias a los programas y proyectos de la Administración Distrital en los sectores de Salud, Integración Social, Educación, Mujer, poblaciones, ruralidad, de conformidad con la reglamentación que se expida para el efecto. | C30: INTEGRACIÓN SOCIAL | D30: Infraestructura | E30: Dotación a Jardines Infantiles, Centros Amar y Forjar. | F30: Dotar XXX Sedes de atención a la primera infancia y/o adolescencia (jardines infantiles y Centros Amar). | G30: Sedes de atención a la primera infancia y/o adolescencia dotadas. | H30: Propósito 1. Hacer un nuevo contrato social con igualdad de oportunidades para la inclusión social, productiva y política | I30: Sistema Distrital de Cuidado | J30: DOTACIÓN JARDINES IFANTILES Y CENTROS AMAR | K30: 1 | L30: Las Personas | M30: 1 | N30: Fin de la Pobreza | O30: 1.2 | P30: De aquí a 2030, reducir al menos a la mitad la proporción de hombres, mujeres y niños de todas las edades que viven en la pobreza en todas sus dimensiones con arreglo a las definiciones nacionales | Q30: 42 | R30: Atender con enfoque diferencial a 71.000 niñas y niños en servicios dirigidos a la primera infancia pertinentes y de calidad en el marco de la atención integral, a través de una oferta flexible que tenga en cuenta las dinámicas socioeconómicas de las familias y cuidadores y, que permita potenciar el desarrollo de las niñas y los niños, así como prevenir situaciones de riesgo para la garantía de sus derechos | S30: 41 | T30: Actualizar, implementar y hacer seguimiento a la política pública de infancia y adolescencia con la participación e incidencia de niñas, niños y adolescentes, sus familias y la movilización de la sociedad civil para la transformación de los territorios y la generación de entornos protectores desde la gestación hasta la adolescencia, teniendo en cuenta los impactos de la emergencia social y sanitaria sobre esta población
A31: 13 | B31: 11. Realizar inversiones complementarias a los programas y proyectos de la Administración Distrital en los sectores de Salud, Integración Social, Educación, Mujer, poblaciones, ruralidad, de conformidad con la reglamentación que se expida para el efecto. | C31: INTEGRACIÓN SOCIAL | D31: Infraestructura | E31: Dotación a Centro de Atención a la diversidad Sexual y de géneros – CAIDSG. | F31: Dotar XXX Unidades Operativas de los Centros de Atención Integral a la Diversidad Sexual y de Géneros. | G31: Unidades Operativas de los Centros de Atención Integral a la Diversidad Sexual y de Géneros dotadas | H31: Propósito 1. Hacer un nuevo contrato social con igualdad de oportunidades para la inclusión social, productiva y política | I31: Sistema Distrital de Cuidado | J31: DOTACIÓN CAIDSG | K31: 3 | L31: La Prosperidad | M31: 10 | N31: Reducción de las desigualdades | O31: 10.2 | P31: De aquí a 2030, potenciar y promover la inclusión social, económica y política de todas las personas, independientemente de su edad, sexo, discapacidad, raza, etnia, origen, religión o situación económica u otra condición | Q31: 62 | R31: Optimizar el 100% de la red de unidades operativas para la prestación de servicios sociales, a través de la construcción, restitución, mantenimiento, adecuación o habilitación de inmuebles para atención especial en respuesta a situaciones de impacto poblacional diferencial, en el marco de la implementación del Sistema Distrital de Cuidado
A32: 14 | B32: 05. Desarrollar acciones que promuevan los derechos de las mujeres, desde los enfoques de género, de derechos, diferencial y territorial. | C32: MUJER | D32: Desarrollo social y cultural | E32: Estrategias de cuidado para cuidadoras, cuidadores y a personas con discapacidad | F32: Vincular XXX mujeres cuidadoras a estrategias de cuidado. | G32: Mujeres cuidadoras vinculadas a estrategias de cuidado | H32: Propósito 1. Hacer un nuevo contrato social con igualdad de oportunidades para la inclusión social, productiva y política | I32: Sistema Distrital de Cuidado | J32: ESTRATEGIAS DE CUIDADO | K32: 1 | L32: Las Personas | M32: 5 | N32: Igualdad de género | O32: 5.4 | P32: Reconocer y valorar los cuidados y el trabajo doméstico no remunerados mediante servicios públicos, infraestructuras y políticas de protección social, y promoviendo la responsabilidad compartida en el hogar y la familia, según proceda en cada país | Q32: 53 | R32: Formular las bases técnicas y coordinar la implementación del sistema distrital del cuidado | S32: 52 | T32: Formular e implementar una estrategia pedagógica para la valoración, la resignificación, el reconocimiento y la redistribución del trabajo de cuidado no remunerado que realizan las mujeres en Bogotá
A33: 15 | B33: 11. Realizar inversiones complementarias a los programas y proyectos de la Administración Distrital en los sectores de Salud, Integración Social, Educación, Mujer, poblaciones, ruralidad, de conformidad con la reglamentación que se expida para el efecto. | C33: SALUD | D33: Condiciones de salud | E33: Acciones complementarias para personas en condición de discapacidad y sus cuidadores. | F33: Vincular XXX personas con discapacidad, cuidadores y cuidadoras, en actividades alternativas de salud. | G33: Número de personas con discapacidad, cuidadadores y cuidadoras, vinculados en actividades alernativas de salud. | H33: Propósito 1. Hacer un nuevo contrato social con igualdad de oportunidades para la inclusión social, productiva y política | I33: Sistema Distrital de Cuidado | J33: ACCIONES COMPLEMENTARIAS | K33: 1 | L33: Las Personas | M33: 3 | N33: Salud y Bienestar | O33: 3.4 | P33: De aquí a 2030, reducir en un tercio la mortalidad prematura por enfermedades no transmisibles mediante su prevención y tratamiento, y promover la salud mental y el bienestar | Q33: 40 | R33: A 2024 incrementar la vinculación en 70.000 personas con discapacidad y cuidadoras/es a las acciones individuales y colectivas para la identificación, reconocimiento y atención integral a las necesidades diferenciales en salud e inclusión, priorizando estrategias de prevención de la salud mental | S33: 58 | T33: Incrementar en 30% la atención de las personas con discapacidad en Bogotá, mediante procesos de articulación intersectorial, con mayor capacidad de respuesta integral teniendo en cuenta el contexto social e implementar el registro distrital de cuidadoras y cuidadores de personas con discapacidad, garantizando así el cumplimiento del Art 10 del Acuerdo distrital 710 de 2018
A34: 15 | B34: 12. Realizar inversiones complementarias a las realizadas por la Administración Central y desarrollar acciones en el ámbito social que promuevan la prevención del embarazo en adolescentes, así como de los factores de riesgo frente al consumo de sustancias psicoactivas. | C34: SALUD | D34: Condiciones de salud | E34: Acciones para la disminución de los factores de riesgo frente al consumo de sustancias psicoactivas. | F34: Vincular XXX personas a las acciones desarrolladas desde los dispositivos de base comunitaria en respuesta al consumo de SPA. | G34: Números de personas vinculadas a las acciones desarrolladas desde los dispositivos de base comunitaria en respuesta al consumo de SPA. | H34: Propósito 1. Hacer un nuevo contrato social con igualdad de oportunidades para la inclusión social, productiva y política | I34: Sistema Distrital de Cuidado | J34: DISMINUCIÓN FACTORES DE RIESGO SPA | K34: 1 | L34: Las Personas | M34: 3 | N34: Salud y Bienestar | O34: 3.5 | P34: Fortalecer la prevención y el tratamiento del abuso de sustancias adictivas, incluido el uso indebido de estupefacientes y el consumo nocivo de alcohol | Q34: 76 | R34: A 2024 ejecutar un programa de salud mental a través de acciones de atención integral que incluyen la promoción y prevención, consejería e intervención con enfoque comunitario. También el reforzamiento de 2 centros de salud mental actuales y la creación de un nuevo centro especializado con tratamiento diferencial de menores de edad, y la implementación de unidades móviles especializadas. Para la prevención del consumo de sustancias psicoactivas se enfocarán acciones de cuidado y prevención, con énfasis en el control del consumo de sustancias psicoactivas ilegales. Para la atención de consumidores problemáticos y habituales de sustancias psicoactivas se usarán estrategias de reducción del daño
A35: 15 | B35: 11. Realizar inversiones complementarias a los programas y proyectos de la Administración Distrital en los sectores de Salud, Integración Social, Educación, Mujer, poblaciones, ruralidad, de conformidad con la reglamentación que se expida para el efecto. | C35: SALUD | D35: Condiciones de salud | E35: Dispositivos de asistencia personal -DAP- Ayudas técnicas a personas con discapacidad (No incluidas en el POS). | F35: Beneficiar XXX personas con discapacidad a través de Dispositivos de Asistencia Personal - Ayudas Técnicas (no incluidas en los Planes de Beneficios). | G35: Número de personas con discapacidad beneficiadas con Dispostivos de Asistencia Personal - Ayudas Técnicas (no incluidas en los Planes de Beneficios). | H35: Propósito 1. Hacer un nuevo contrato social con igualdad de oportunidades para la inclusión social, productiva y política | I35: Sistema Distrital de Cuidado | J35: DISPOSITIVOS DE ASISTENCIA PERSONAL | K35: 3 | L35: La Prosperidad | M35: 10 | N35: Reducción de las desigualdades | O35: 10.2 | P35: De aquí a 2030, potenciar y promover la inclusión social, económica y política de todas las personas, independientemente de su edad, sexo, discapacidad, raza, etnia, origen, religión o situación económica u otra condición | Q35: 58 | R35: Incrementar en 30% la atención de las personas con discapacidad en Bogotá, mediante procesos de articulación intersectorial, con mayor capacidad de respuesta integral teniendo en cuenta el contexto social e implementar el registro distrital de cuidadoras y cuidadores de personas con discapacidad, garantizando así el cumplimiento del Art 10 del Acuerdo distrital 710 de 2018
A36: 15 | B36: 11. Realizar inversiones complementarias a los programas y proyectos de la Administración Distrital en los sectores de Salud, Integración Social, Educación, Mujer, poblaciones, ruralidad, de conformidad con la reglamentación que se expida para el efecto. | C36: SALUD | D36: Condiciones de salud | E36: Reconocimiento de los saberes ancestrales en medicina. | F36: Vincular XXX personas a las acciones y estrategias de reconocimiento de los saberes ancestrales en medicina. | G36: Número de personas vinculadas a las acciones y estrategias de reconocimiento de los saberes ancestrales en medicina. | H36: Propósito 1. Hacer un nuevo contrato social con igualdad de oportunidades para la inclusión social, productiva y política | I36: Sistema Distrital de Cuidado | J36: SABERES ANCESTRALES | K36: 1 | L36: Las Personas | M36: 3 | N36: Salud y Bienestar | O36: 3.b | P36: Apoyar las actividades de investigación y desarrollo de vacunas y medicamentos contra las enfermedades transmisibles y no transmisibles que afectan primordialmente a los países en desarrollo y facilitar el acceso a medicamentos y vacunas esenciales asequibles de conformidad con la Declaración relativa al Acuerdo sobre los Aspectos de los Derechos de Propiedad Intelectual Relacionados con el Comercio y la Salud Pública, en la que se afirma el derecho de los países en desarrollo a utilizar al máximo las disposiciones del Acuerdo sobre los Aspectos de los Derechos de Propiedad Intelectual Relacionados con el Comercio respecto a la flexibilidad para proteger la salud pública y, en particular, proporcionar acceso a los medicamentos para todos
A37: 15 | B37: 11. Realizar inversiones complementarias a los programas y proyectos de la Administración Distrital en los sectores de Salud, Integración Social, Educación, Mujer, poblaciones, ruralidad, de conformidad con la reglamentación que se expida para el efecto. | C37: SALUD | D37: Condiciones de salud | E37: Acciones de cuidado y protección para madres gestantes, niños y niñas migrantes. | F37: Vincular XXX mujeres gestantes, niños y niñas, migrantes irregulares, vinculados en acciones de protección específica y detección temprana. | G37: Número de mujeres gestantes, niños y niñas, migrantes irregulares, vinvulados en acciones de protección específica y detección temprana. | H37: Propósito 1. Hacer un nuevo contrato social con igualdad de oportunidades para la inclusión social, productiva y política | I37: Sistema Distrital de Cuidado | J37: ACCIONES DE CUIDADO | K37: 1 | L37: Las Personas | M37: 3 | N37: Salud y Bienestar | O37: 3.8 | P37: Lograr la cobertura sanitaria universal, incluida la protección contra los riesgos financieros, el acceso a servicios de salud esenciales de calidad y el acceso a medicamentos y vacunas inocuos, eficaces, asequibles y de calidad para todos | Q37: 16-Estr | R37: A 2024 diseñar e implementar un abordaje para la atención en salud para población migrante irregular, de conformidad con el modelo de atención en salud
A38: 15 | B38: 11. Realizar inversiones complementarias a los programas y proyectos de la Administración Distrital en los sectores de Salud, Integración Social, Educación, Mujer, poblaciones, ruralidad, de conformidad con la reglamentación que se expida para el efecto. | C38: SALUD | D38: Condiciones de salud | E38: Coinversión en la estrategia territorial de salud. | F38: Vincular XXX personas en acciones complementarias de la estrategia territorial de salud. | G38: Número de personas vinculadas en las acciones complementarias de la estrategia territorial de salud. | H38: Propósito 1. Hacer un nuevo contrato social con igualdad de oportunidades para la inclusión social, productiva y política | I38: Sistema Distrital de Cuidado | J38: ESTRATEGIA TERRITORIAL DE SALUD | K38: 1 | L38: Las Personas | M38: 3 | N38: Salud y Bienestar | O38: 3.8 | P38: Lograr la cobertura sanitaria universal, incluida la protección contra los riesgos financieros, el acceso a servicios de salud esenciales de calidad y el acceso a medicamentos y vacunas inocuos, eficaces, asequibles y de calidad para todos | Q38: 16-Estr | R38: A 2024 diseñar e implementar un abordaje para la atención en salud para población migrante irregular, de conformidad con el modelo de atención en salud
A39: 16 | B39: 12. Realizar inversiones complementarias a las realizadas por la Administración Central y desarrollar acciones en el ámbito social que promuevan la prevención del embarazo en adolescentes, así como de los factores de riesgo frente al consumo de sustancias psicoactivas. | C39: SALUD | D39: Condiciones de salud | E39: Prevención del embarazo en adolescentes. | F39: Vincular XXX personas a las acciones y estrategias para la prevención del embarazo adolescente. | G39: Número de personas vinculadas a las acciones y estrategias para la prevención del embarazo adolescente | H39: Propósito 1. Hacer un nuevo contrato social con igualdad de oportunidades para la inclusión social, productiva y política | I39: Prevención y atención de maternidad temprana | J39: PREVENCIÓN | K39: 1 | L39: Las Personas | M39: 3 | N39: Salud y Bienestar | O39: 3.7 | P39: De aquí a 2030, garantizar el acceso universal a los servicios de salud sexual y reproductiva, incluidos los de planificación familiar, información y educación, y la integración de la salud reproductiva en las estrategias y los programas nacionales | Q39: 73 | R39: Reducir la maternidad y paternidad temprana en mujeres menores o iguales a 19 años, así como la violencia sexual contra niñas y mujeres jóvenes, fortaleciendo capacidades de niñas, niños, adolescentes, jóvenes y sus familias sobre derechos sexuales y derechos reproductivos | S39: 913 | T39: A 2024 reducir en 10% la maternidad y paternidad temprana en mujeres con edades entre 15 y 19 años, fortaleciendo las capacidades sobre derechos sexuales y reproductivos de adolescentes, jóvenes y sus familias.
A40: 17 | B40: 07. Orientar la gestión ambiental. | C40: AMBIENTE | D40: Inversiones ambientales sostenibles | E40: Educación ambiental. | F40: Implementar XXX PROCEDAS. | G40: Número de PROCEDAS implementados | H40: Propósito 2. Cambiar nuestros hábitos de vida para reverdecer a Bogotá y adaptarnos y mitigar el cambio climático. | I40: Cambio cultural para la gestión de la crisis climática. | J40: EDUCACIÓN AMBIENTAL | K40: 4 | L40: El Planeta | M40: 13 | N40: Acción por el Clima | O40: 13.3 | P40: Mejorar la educación, la sensibilización y la capacidad humana e institucional respecto de la mitigación del cambio climático, la adaptación a él, la reducción de sus efectos y la alerta temprana | Q40: 200 | R40: Realizar la gestión y seguimiento a la aplicación de los determinantes ambientales en 1.000 proyectos de ciudad tomando en cuenta medidas de adaptación y mitigación a la crisis climática
A41: 17 | B41: 07. Orientar la gestión ambiental. | C41: AMBIENTE | D41: Inversiones ambientales sostenibles | E41: Eco-urbanismo. | F41: Construir XXX m2 de muros y techos verdes. | G41: m2 de muros y techos verdes | H41: Propósito 2. Cambiar nuestros hábitos de vida para reverdecer a Bogotá y adaptarnos y mitigar el cambio climático. | I41: Cambio cultural para la gestión de la crisis climática. | J41: MUROS VERDES | K41: 3 | L41: La Prosperidad | M41: 11 | N41: Ciudades y comunidades sostenibles | O41: 11.3 | P41: De aquí a 2030, aumentar la urbanización inclusiva y sostenible y la capacidad para la planificación y la gestión participativas, integradas y sostenibles de los asentamientos | Q41: 201 | R41: Reverdecer 20.000 m2 en la ciudad a través del fortalecimiento de la infraestructura vegetada
A42: 17 | B42: 07. Orientar la gestión ambiental. | C42: AMBIENTE | D42: Inversiones ambientales sostenibles | E42: Eco-urbanismo. | F42: Intervenir XXX m2 de jardinería y coberturas verdes. | G42: m2 de jardinería y coberturas verdes | H42: Propósito 2. Cambiar nuestros hábitos de vida para reverdecer a Bogotá y adaptarnos y mitigar el cambio climático. | I42: Cambio cultural para la gestión de la crisis climática. | J42: JARDINERÍA | K42: 3 | L42: La Prosperidad | M42: 11 | N42: Ciudades y comunidades sostenibles | O42: 11.3 | P42: De aquí a 2030, aumentar la urbanización inclusiva y sostenible y la capacidad para la planificación y la gestión participativas, integradas y sostenibles de los asentamientos | Q42: 201 | R42: Reverdecer 20.000 m2 en la ciudad a través del fortalecimiento de la infraestructura vegetada
A43: 18 | B43: 07. Orientar la gestión ambiental. | C43: AMBIENTE | D43: Inversiones ambientales sostenibles | E43: Restauración ecológica urbana y/o rural. | F43: Intervenir XXX hectáreas con procesos de restauración, rehabilitación o recuperación ecológica. | G43: Hectáreas en restauración, rehabilitación o recuperación ecológica y mantenimiento | H43: Propósito 2. Cambiar nuestros hábitos de vida para reverdecer a Bogotá y adaptarnos y mitigar el cambio climático. | I43: Bogotá protectora de sus recursos naturales | J43: RESTAURACIÓN ECOLÓGICA | K43: 4 | L43: El Planeta | M43: 15 | N43: Vida de ecosistemas terrestres | O43: 15.1 | P43: De aquí a 2020, asegurar la conservación, el restablecimiento y el uso sostenible de los ecosistemas terrestres y los ecosistemas interiores de agua dulce y sus servicios, en particular los bosques, los humedales, las montañas y las zonas áridas, en consonancia con las obligaciones contraídas en virtud de acuerdos internacionales | Q43: 214 | R43: Mantener 590 hectáreas priorizadas en proceso de recuperación, rehabilitación o restauración ecológica en la estructura ecológica principal y áreas de interés ambiental
A44: 19 | B44: 08. Atender y prevenir riesgos de desastres naturales. | C44: AMBIENTE | D44: Inversiones ambientales sostenibles | E44: Manejo de emergencias y desastres. | F44: Realizar XXX acciones efectivas para el fortalecimiento de las capacidades locales para la respuesta a emergencias y desastres. | G44: Acciones efectivas para el fortalecimiento de las capacidades locales para la respuesta a emergencias y desastres | H44: Propósito 2. Cambiar nuestros hábitos de vida para reverdecer a Bogotá y adaptarnos y mitigar el cambio climático. | I44: Eficiencia en la atención de emergencias | J44: MANEJO DE EMERGENCIAS, CALAMIDADES Y DESASTRES | K44: 3 | L44: La Prosperidad | M44: 11 | N44: Ciudades y comunidades sostenibles | O44: 11.5 | P44: De aquí a 2030, reducir significativamente el número de muertes causadas por los desastres, incluidos los relacionados con el agua, y de personas afectadas por ellos, y reducir considerablemente las pérdidas económicas directas provocadas por los desastres en comparación con el producto interno bruto mundial, haciendo especial hincapié en la protección de los pobres y las personas en situaciones de vulnerabilidad | Q44: 221 | R44: Atender el 100% de la población afectada por emergencias con respuesta integral y coordinada del SDGR-CC | S44: 225 | T44: Poner en funcionamiento 3 nuevos espacios para la gestión integral de riesgos, incendios e incidentes con materiales peligrosos y rescates en todas sus modalidades
A45: 19 | B45: 08. Atender y prevenir riesgos de desastres naturales. | C45: AMBIENTE | D45: Inversiones ambientales sostenibles | E45: Mitigación del riesgo. | F45: Desarrollar XXX intervenciones para la reducción del riesgo y adaptación al cambio climático. | G45: Intervenciones para la reducción del riesgo y adaptación al cambio climático | H45: Propósito 2. Cambiar nuestros hábitos de vida para reverdecer a Bogotá y adaptarnos y mitigar el cambio climático. | I45: Eficiencia en la atención de emergencias | J45: REDUCCIÓN DEL RIESGO Y ADAPTACIÓN AL CAMBIO CLIMÁTICO | K45: 4 | L45: El Planeta | M45: 13 | N45: Acción por el clima | O45: 13.1 | P45: Fortalecer la resiliencia y la capacidad de adaptación a los riesgos relacionados con el clima y los desastres naturales en todos los países | Q45: 218 | R45: Construir nueve (9) obras de mitigación para la reducción del riesgo y adaptación a la crisis climática | S45: 225 | T45: Poner en funcionamiento 3 nuevos espacios para la gestión integral de riesgos, incendios e incidentes con materiales peligrosos y rescates en todas sus modalidades
A46: 20 | B46: 07. Orientar la gestión ambiental. | C46: AMBIENTE | D46: Inversiones ambientales sostenibles | E46: Arbolado urbano y/o rural. | F46: Mantener XXX árboles urbanos y/o rurales. | G46: Número de árboles mantenidos | H46: Propósito 2. Cambiar nuestros hábitos de vida para reverdecer a Bogotá y adaptarnos y mitigar el cambio climático. | I46: Más árboles y más y mejor espacio público | J46: ARBORIZACIÓN | K46: 4 | L46: El Planeta | M46: 15 | N46: Vida de ecosistemas terrestres | O46: 15.1 | P46: De aquí a 2020, asegurar la conservación, el restablecimiento y el uso sostenible de los ecosistemas terrestres y los ecosistemas interiores de agua dulce y sus servicios, en particular los bosques, los humedales, las montañas y las zonas áridas, en consonancia con las obligaciones contraídas en virtud de acuerdos internacionales | Q46: 250 | R46: Plantar 80.000 árboles en el espacio urbano de Bogotá y realizar el mantenimiento de 400.000 de los existentes | S46: 251 | T46: Plantar y mantener 225.000 individuos vegetales con criterios de recuperación ecológica en zona rural
A47: 20 | B47: 07. Orientar la gestión ambiental. | C47: AMBIENTE | D47: Inversiones ambientales sostenibles | E47: Arbolado urbano y/o rural. | F47: Plantar XXX árboles urbanos y/o rurales. | G47: Número de árboles plantados | H47: Propósito 2. Cambiar nuestros hábitos de vida para reverdecer a Bogotá y adaptarnos y mitigar el cambio climático. | I47: Más árboles y más y mejor espacio público | J47: ARBORIZACIÓN | K47: 4 | L47: El Planeta | M47: 15 | N47: Vida de ecosistemas terrestres | O47: 15.1 | P47: De aquí a 2020, asegurar la conservación, el restablecimiento y el uso sostenible de los ecosistemas terrestres y los ecosistemas interiores de agua dulce y sus servicios, en particular los bosques, los humedales, las montañas y las zonas áridas, en consonancia con las obligaciones contraídas en virtud de acuerdos internacionales | Q47: 250 | R47: Plantar 80.000 árboles en el espacio urbano de Bogotá y realizar el mantenimiento de 400.000 de los existentes | S47: 930 | T47: Plantar 802.000 individuos vegetales en área urbana y rural
A48: 21 | B48: 04. Adelantar la construcción y mantenimiento de parques vecinales y de bolsillo. | C48: CULTURA, RECREACIÓN Y DEPORTE | D48: Infraestructura | E48: Construcción, mantenimiento y dotación de parques vecinales y/o de bolsillo. | F48: Construir XXX m2 de Parques vecinales y/o de bolsillo (la construcción incluye su dotación). | G48: m2 de Parques vecinales y/o de bolsillo construidos y dotados | H48: Propósito 2. Cambiar nuestros hábitos de vida para reverdecer a Bogotá y adaptarnos y mitigar el cambio climático. | I48: Más árboles y más y mejor espacio público | J48: CONSTRUCCIÓN | K48: 3 | L48: La Prosperidad | M48: 11 | N48: Ciudades y comunidades sostenibles | O48: 11.7 | P48: De aquí a 2030, proporcionar acceso universal a zonas verdes y espacios públicos seguros, inclusivos y accesibles, en particular para las mujeres y los niños, las personas de edad y las personas con discapacidad | Q48: 248 | R48: Mejorar el estado del espacio público local, zonas verdes y parques vecinales a través de las intervenciones de las Alcaldías Locales
A49: 21 | B49: 04. Adelantar la construcción y mantenimiento de parques vecinales y de bolsillo. | C49: CULTURA, RECREACIÓN Y DEPORTE | D49: Infraestructura | E49: Construcción, mantenimiento y dotación de parques vecinales y/o de bolsillo. | F49: Intervenir XXX Parques vecinales y/o de bolsillo con acciones de mejoramiento, mantenimiento y/o dotación. | G49: Número de Parques vecinales y/o de bolsillo intervenidos en mejoramiento, mantenimiento y/o dotación | H49: Propósito 2. Cambiar nuestros hábitos de vida para reverdecer a Bogotá y adaptarnos y mitigar el cambio climático. | I49: Más árboles y más y mejor espacio público | J49: INTERVENCIÓN | K49: 3 | L49: La Prosperidad | M49: 11 | N49: Ciudades y comunidades sostenibles | O49: 11.7 | P49: De aquí a 2030, proporcionar acceso universal a zonas verdes y espacios públicos seguros, inclusivos y accesibles, en particular para las mujeres y los niños, las personas de edad y las personas con discapacidad | Q49: 248 | R49: Mejorar el estado del espacio público local, zonas verdes y parques vecinales a través de las intervenciones de las Alcaldías Locales
A50: 22 | B50: 07. Orientar la gestión ambiental. | C50: AMBIENTE | D50: Inversiones ambientales sostenibles | E50: Acuerdos con las redes locales de proteccionistas de animales para urgencias, brigadas médico veterinarias, acciones de esterilización, educación y adopción | F50: Atender XXX animales en urgencias, brigadas médico veterinarias, acciones de esterilización, educación y adopción. | G50: Número de animales atendidos | H50: Propósito 2. Cambiar nuestros hábitos de vida para reverdecer a Bogotá y adaptarnos y mitigar el cambio climático. | I50: Bogotá protectora de los animales | J50: BIENESTAR ANIMAL | K50: 3 | L50: La Prosperidad | M50: 11 | N50: Ciudades y comunidades sostenibles | O50: 11.3 | P50: De aquí a 2030, aumentar la urbanización inclusiva y sostenible y la capacidad para la planificación y la gestión participativas, integradas y sostenibles de los asentamientos humanos en todos los países | Q50: 260 | R50: 60.000 animales atendidos en los programas de atención integral de la fauna doméstica del Distrito Capital | S50: 261 | T50: Realizar la esterilización de 356.000 animales en el Distrito Capital
A51: 23 | B51: 11. Realizar inversiones complementarias a los programas y proyectos de la Administración Distrital en los sectores de Salud, Integración Social, Educación, Mujer, poblaciones, ruralidad, de conformidad con la reglamentación que se expida para el efecto. | C51: HÁBITAT | D51: Ruralidad | E51: Acueductos veredales y saneamiento básico. | F51: Fortalecer XXX acueductos veredales con asistencia, intervenir técnica u organizativa | G51: Número de acueductos verdales asistidos o intervenidos técnica u organizacionalmente. | H51: Propósito 2. Cambiar nuestros hábitos de vida para reverdecer a Bogotá y adaptarnos y mitigar el cambio climático. | I51: Provisión y mejoramiento de servicios públicos | J51: ACUEDUCTOS VEREDALES | K51: 4 | L51: El Planeta | M51: 6 | N51: Agua y saneamiento | O51: 6.b | P51: Apoyar y fortalecer la participación de las comunidades locales en la mejora de la gestión del agua y el saneamiento | Q51: 283 | R51: Fortalecer técnica y organizacionalmente a los prestadores de los sistemas de abastecimiento de agua potable en zona rural del Distrito que identifique y priorice la Secretaría del Hábitat | S51: 287 | T51: Mantener la continuidad del servicio de acueducto por encima del 98,36% en Bogotá, Soacha y Gachancipá
A52: 24 | B52: 07. Orientar la gestión ambiental. | C52: HÁBITAT | D52: Inversiones ambientales sostenibles | E52: Cambios de hábitos de consumo, separación en la fuente y reciclaje. | F52: Capacitar XXX personas en separación en la fuente y reciclaje. | G52: Personas capacitadas en separación en la fuente y reciclaje | H52: Propósito 2. Cambiar nuestros hábitos de vida para reverdecer a Bogotá y adaptarnos y mitigar el cambio climático. | I52: Ecoeficiencia, reciclaje, manejo de residuos e inclusión de la población recicladora | J52: HÁBITOS DE CONSUMO | K52: 4 | L52: El Planeta | M52: 12 | N52: Producción y consumo responsables | O52: 12.5 | P52: De aquí a 2030, reducir considerablemente la generación de desechos mediante actividades de prevención, reducción, reciclado y reutilización | Q52: 297 | R52: Implementar una estrategia de cultura ciudadana para promover la separación en la fuente, el reuso, el reciclaje, valoración y aprovechamiento de residuos ordinarios orgánicos e inorgánicos, contribuyendo a mejorar la gestión sostenible de los residuos generados en la ciudad
A53: 24 | B53: 11. Realizar inversiones complementarias a los programas y proyectos de la Administración Distrital en los sectores de Salud, Integración Social, Educación, Mujer, poblaciones, ruralidad, de conformidad con la reglamentación que se expida para el efecto. | C53: HÁBITAT | D53: Ruralidad | E53: Energías alternativas para el área rural. | F53: Realizar XXX acciones con energías alternativas para el área rural. | G53: Acciones con energías alternativas para el área rural realizadas. | H53: Propósito 2. Cambiar nuestros hábitos de vida para reverdecer a Bogotá y adaptarnos y mitigar el cambio climático. | I53: Ecoeficiencia, reciclaje, manejo de residuos e inclusión de la población recicladora | J53: ENERGÍAS ALTERNATIVAS | K53: 4 | L53: El Planeta | M53: 12 | N53: Producción y consumo responsables | O53: 12.5 | P53: De aquí a 2030, reducir considerablemente la generación de desechos mediante actividades de prevención, reducción, reciclado y reutilización | Q53: 295 | R53: Gestionar en el terreno del RSDJ la disminución del entierro de residuos y el mayor aprovechamiento con alternativas de transformación en energía y biogás, para que su vida útil no dependa del entierro de residuos sino de los proyectos de aprovechamiento
A54: 25 | B54: 06. Promover la seguridad y convivencia ciudadanas. | C54: GESTIÓN PÚBLICA | D54: Desarrollo social y cultural | E54: Construcción de memoria, verdad, reparación, víctimas, paz y reconciliación. | F54: Vincular XXX personas a procesos de construcción de memoria, verdad, reparación integral a víctimas, paz y reconciliación. | G54: Personas vinculadas a procesos de construcción de memoria, verdad, reparación integral a víctimas, paz y reconciliación | H54: Propósito 3. Inspirar confianza y legitimidad para vivir sin miedo y ser epicentro de cultura ciudadana, paz y reconciliación. | I54: Bogotá territorio de paz y atención integral a las víctimas del conflicto armado | J54: PAZ, MEMORIA Y RECONCILIACIÓN | K54: 2 | L54: La Paz | M54: 16 | N54: Paz, justicia e instituciones sólidas | O54: 16.3 | P54: Promover el estado de derecho en los planos nacional e internacional y garantizar la igualdad en el acceso a la justicia para todos | Q54: 299 | R54: Desarrollar acciones y procesos de asistencia, atención, reparación integral y participación para las víctimas del conflicto armado, en concordancia con las obligaciones y disposiciones legales establecidas para el Distrito Capital | S54: 300 | T54: Formular e implementar una estrategia para la apropiación social de la memoria, para la paz y la reconciliación en los territorios ciudad región a través de la pedagogía social y la gestión del conocimiento
A55: 26 | B55: 05. Desarrollar acciones que promuevan los derechos de las mujeres, desde los enfoques de género, de derechos, diferencial y territorial. | C55: MUJER | D55: Desarrollo social y cultural | E55: Construcción de ciudadanía y desarrollo de capacidades para el ejercicio de derechos de las mujeres. | F55: Capacitar XXX personas para la construcción de ciudadanía y desarrollo de capacidades para el ejercicio de derechos de las mujeres. | G55: Personas capacitadas para la construcción de ciudadanía y desarrollo de capacidades para el ejercicio de derechos de las mujeres. | H55: Propósito 3. Inspirar confianza y legitimidad para vivir sin miedo y ser epicentro de cultura ciudadana, paz y reconciliación. | I55: Más mujeres viven una vida libre de violencias, se sienten seguras y acceden con confianza al sistema de justicia | J55: DESARROLLO DE CAPACIDADES | K55: 1 | L55: Las Personas | M55: 5 | N55: Igualdad de género | O55: 5.c | P55: Aprobar y fortalecer políticas acertadas y leyes aplicables para promover la igualdad de género y el empoderamiento de todas las mujeres y las niñas a todos los niveles | Q55: 306 | R55: Diseñar e implementar estrategias de divulgación pedagógica y de transformación cultural para el cambio social con enfoques de género, diferencial, de derechos de las mujeres e interseccional que articulen la oferta institucional con el ejercicio pleno de los derechos de las mujeres
A56: 26 | B56: 05. Desarrollar acciones que promuevan los derechos de las mujeres, desde los enfoques de género, de derechos, diferencial y territorial. | C56: MUJER | D56: Desarrollo social y cultural | E56: Prevención del feminicidio y la violencia contra la mujer. | F56: Vincular XXX personas en acciones para la prevención del feminicidio y la violencia contra la mujer. | G56: Número de Personas vinculadas en acciones para la prevención del feminicidio y la violencia contra la mujer | H56: Propósito 3. Inspirar confianza y legitimidad para vivir sin miedo y ser epicentro de cultura ciudadana, paz y reconciliación. | I56: Más mujeres viven una vida libre de violencias, se sienten seguras y acceden con confianza al sistema de justicia | J56: PREVENCIÓN | K56: 1 | L56: Las Personas | M56: 5 | N56: Igualdad de género | O56: 5.2 | P56: Eliminar todas las formas de violencia contra todas las mujeres y las niñas en los ámbitos público y privado, incluidas la trata y la explotación sexual y otros tipos de explotación | Q56: 306 | R56: Diseñar e implementar estrategias de divulgación pedagógica y de transformación cultural para el cambio social con enfoques de género, diferencial, de derechos de las mujeres e interseccional que articulen la oferta institucional con el ejercicio pleno de los derechos de las mujeres
A57: 27 | B57: 06. Promover la seguridad y convivencia ciudadanas. | C57: SEGURIDAD, CONVIVENCIA Y JUSTICIA | D57: Desarrollo social y cultural | E57: Promoción de la convivencia ciudadana. | F57: Implementar XXX estrategia de atención de movilizaciones y aglomeraciones en el territorio a través de equipos de gestores de convivencia bajo el direccionamiento estratégico de la Secretaria de Seguridad, Convivencia y Justicia. | G57: Estrategia de atención de movilizaciones y aglomeraciones en el territorio implementada a traves de equipos de gestores de convivencia bajo el direccionamiento estrategico de la Secretaria de Seguridad, Convivencia y Justicia | H57: Propósito 3. Inspirar confianza y legitimidad para vivir sin miedo y ser epicentro de cultura ciudadana, paz y reconciliación. | I57: Cultura ciudadana para la confianza, la convivencia y la participación desde la vida cotidiana | J57: GESTORES DE CONVIVENCIA | K57: 2 | L57: La Paz | M57: 16 | N57: Paz, justicia e instituciones sólidas | O57: 16.1 | P57: Reducir significativamente todas las formas de violencia y las correspondientes tasas de mortalidad en todo el mundo | Q57: 323 | R57: Desarrollar un (1) Programa de diálogo social constructivo y cercano, a través de estrategias de acción coordinada e inmediata frente a las conflictividades sociales para el fortalecimiento de la convivencia, la cultura ciudadana y la gobernabilidad en la ciudad | S57: 327 | T57: Implementar un (1) programa de barrismo social que promueva territorios en paz, convivencia en el fútbol, el cuidado de la ciudad y la cultura pacífica en Bogotá
A58: 27 | B58: 06. Promover la seguridad y convivencia ciudadanas. | C58: SEGURIDAD, CONVIVENCIA Y JUSTICIA | D58: Desarrollo social y cultural | E58: Promoción de la convivencia ciudadana. | F58: Formar XXX personas en la escuela de seguridad. | G58: Número de personas formadas en la escuela de seguridad | H58: Propósito 3. Inspirar confianza y legitimidad para vivir sin miedo y ser epicentro de cultura ciudadana, paz y reconciliación. | I58: Cultura ciudadana para la confianza, la convivencia y la participación desde la vida cotidiana | J58: ESCUELA DE SEGURIDAD | K58: 2 | L58: La Paz | M58: 16 | N58: Paz, justicia e instituciones sólidas | O58: 16.1 | P58: Reducir significativamente todas las formas de violencia y las correspondientes tasas de mortalidad en todo el mundo | Q58: 323 | R58: Desarrollar un (1) Programa de diálogo social constructivo y cercano, a través de estrategias de acción coordinada e inmediata frente a las conflictividades sociales para el fortalecimiento de la convivencia, la cultura ciudadana y la gobernabilidad en la ciudad
A59: 27 | B59: 06. Promover la seguridad y convivencia ciudadanas. | C59: SEGURIDAD, CONVIVENCIA Y JUSTICIA | D59: Desarrollo social y cultural | E59: Promoción de la convivencia ciudadana. | F59: Incluir XXX personas en actividades de educación para la resiliencia y la prevención de hechos delictivos. | G59: Personas incluidas en actividades de educación para la resiliencia y la prevención de hechos delictivos. | H59: Propósito 3. Inspirar confianza y legitimidad para vivir sin miedo y ser epicentro de cultura ciudadana, paz y reconciliación. | I59: Cultura ciudadana para la confianza, la convivencia y la participación desde la vida cotidiana | J59: PREVENCIÓN | K59: 2 | L59: La Paz | M59: 16 | N59: Paz, justicia e instituciones sólidas | O59: 16.1 | P59: Reducir significativamente todas las formas de violencia y las correspondientes tasas de mortalidad en todo el mundo | Q59: 323 | R59: Desarrollar un (1) Programa de diálogo social constructivo y cercano, a través de estrategias de acción coordinada e inmediata frente a las conflictividades sociales para el fortalecimiento de la convivencia, la cultura ciudadana y la gobernabilidad en la ciudad | S59: 328 | T59: Implementar una (1) estrategia para la elección, formación y fortalecimiento del Consejo Distrital de Juventud que promueva nuevas ciudadanías y liderazgos activos
A60: 28 | B60: 06. Promover la seguridad y convivencia ciudadanas. | C60: GOBIERNO | D60: Desarrollo social y cultural | E60: Acuerdos para el uso, acceso y aprovechamiento del espacio público. | F60: Realizar XXX acuerdos para el uso del EP con fines culturales, deportivos, recreacionales o de mercados temporales. | G60: Acuerdos realizados para el uso del EP con fines culturales, deportivos, recreacionales o de mercados temporales. | H60: Propósito 3. Inspirar confianza y legitimidad para vivir sin miedo y ser epicentro de cultura ciudadana, paz y reconciliación. | I60: Espacio público más seguro y construido colectivamente. | J60: ACUERDOS CIUDADANOS | K60: 2 | L60: La Paz | M60: 16 | N60: Paz, justicia e instituciones sólidas | O60: 16.1 | P60: Reducir significativamente todas las formas de violencia y las correspondientes tasas de mortalidad en todo el mundo | Q60: 960 | R60: Disminuir la ilegalidad y la conflictividad en el uso y ordenamiento del espacio público, privado y en el medio ambiente rural y urbano | S60: 333 | T60: Generar una (1) estrategia para las prácticas culturales, artísticas y patrimoniales en espacios identificados como entornos conflictivos
A61: 28 | B61: 06. Promover la seguridad y convivencia ciudadanas. | C61: GOBIERNO | D61: Desarrollo social y cultural | E61: Acuerdos para fortalecer la formalidad. | F61: Realizar XXX acuerdos para la promover la formalización de vendedores informales a círculos económicos productivos de la ciudad. | G61: Acuerdos realizados para la promover la formalización de vendedores informales a circulos económicos productivos de la ciudad | H61: Propósito 3. Inspirar confianza y legitimidad para vivir sin miedo y ser epicentro de cultura ciudadana, paz y reconciliación. | I61: Espacio público más seguro y construido colectivamente. | J61: ACUERDOS CIUDADANOS | K61: 2 | L61: La Paz | M61: 16 | N61: Paz, justicia e instituciones sólidas | O61: 16.1 | P61: Reducir significativamente todas las formas de violencia y las correspondientes tasas de mortalidad en todo el mundo | Q61: 960 | R61: Disminuir la ilegalidad y la conflictividad en el uso y ordenamiento del espacio público, privado y en el medio ambiente rural y urbano
A62: 28 | B62: 06. Promover la seguridad y convivencia ciudadanas. | C62: GOBIERNO | D62: Desarrollo social y cultural | E62: Acuerdos para mejorar el uso de medios de transporte no motorizados. | F62: Realizar XXX acuerdos para la vinculación de la ciudadanía en los programas adelantados por el IDRD y acuerdos con vendedores informales o estacionarios | G62: Acuerdos realizados para la vinculación de la ciudadanía en los programas adelantados por el IDRD y acuerdos con vendedores informales o estacionarios | H62: Propósito 3. Inspirar confianza y legitimidad para vivir sin miedo y ser epicentro de cultura ciudadana, paz y reconciliación. | I62: Espacio público más seguro y construido colectivamente. | J62: ACUERDOS CIUDADANOS | K62: 2 | L62: La Paz | M62: 16 | N62: Paz, justicia e instituciones sólidas | O62: 16.1 | P62: Reducir significativamente todas las formas de violencia y las correspondientes tasas de mortalidad en todo el mundo | Q62: 960 | R62: Disminuir la ilegalidad y la conflictividad en el uso y ordenamiento del espacio público, privado y en el medio ambiente rural y urbano
A63: 29 | B63: 06. Promover la seguridad y convivencia ciudadanas. | C63: SEGURIDAD, CONVIVENCIA Y JUSTICIA | D63: Desarrollo social y cultural | E63: Acceso a la Justicia. | F63: Beneficiar XXX personas a través de estrategias para el fortalecimiento de los mecanismos de justicia comunitaria. | G63: Beneficiarios de las estrategias para el fortalecimiento de los mecanismos de justicia comunitaria. | H63: Propósito 3. Inspirar confianza y legitimidad para vivir sin miedo y ser epicentro de cultura ciudadana, paz y reconciliación. | I63: Plataforma institucional para la seguridad y justicia | J63: JUSTICIA COMUNITARIA | K63: 2 | L63: La Paz | M63: 16 | N63: Paz, justicia e instituciones sólidas | O63: 16.3 | P63: Promover el estado de derecho en los planos nacional e internacional y garantizar la igualdad de acceso a la justicia para todos | Q63: 350 | R63: Diseñar e implementar al 100% la estrategia Facilitadores para el acceso a la justicia
A64: 29 | B64: 06. Promover la seguridad y convivencia ciudadanas. | C64: SEGURIDAD, CONVIVENCIA Y JUSTICIA | D64: Desarrollo social y cultural | E64: Acceso a la Justicia. | F64: Atender XXX personas en estrategias de acceso a la justicia integral en la ciudad. | G64: Personas atendidas en estrategias de acceso a la justicia integral en la ciudad. | H64: Propósito 3. Inspirar confianza y legitimidad para vivir sin miedo y ser epicentro de cultura ciudadana, paz y reconciliación. | I64: Plataforma institucional para la seguridad y justicia | J64: JUECES DE PAZ | K64: 2 | L64: La Paz | M64: 16 | N64: Paz, justicia e instituciones sólidas | O64: 16.3 | P64: Promover el estado de derecho en los planos nacional e internacional y garantizar la igualdad de acceso a la justicia para todos | Q64: 350 | R64: Diseñar e implementar al 100% la estrategia Facilitadores para el acceso a la justicia | S64: 362 | T64: Formular e implementar al 100% el Plan Integral de convivencia, seguridad y justicia
A65: 29 | B65: 06. Promover la seguridad y convivencia ciudadanas. | C65: SEGURIDAD, CONVIVENCIA Y JUSTICIA | D65: Desarrollo social y cultural | E65: Acceso a la Justicia. | F65: Vincular XXX Instituciones educativas al programa pedagógico de resolución de conflictos en la comunidad escolar. | G65: Instituciones educativas vinculadas al programa pedagógico de resolución de conflictos en la comunidad escolar. | H65: Propósito 3. Inspirar confianza y legitimidad para vivir sin miedo y ser epicentro de cultura ciudadana, paz y reconciliación. | I65: Plataforma institucional para la seguridad y justicia | J65: RESOLUCIÓN DE CONFLICTOS ESCOLARES | K65: 2 | L65: La Paz | M65: 16 | N65: Paz, justicia e instituciones sólidas | O65: 16.3 | P65: Promover el estado de derecho en los planos nacional e internacional y garantizar la igualdad de acceso a la justicia para todos | Q65: 352 | R65: Diseñar e implementar al 100% una (1) estrategia de intervención de entornos vulnerables, con especial énfasis en las Instituciones Educativas Distritales, las Instituciones de Educación Superior, el Sistema Integrado de Transporte Público, las ciclorrutas, los parques y las zonas de rumba
A66: 29 | B66: 06. Promover la seguridad y convivencia ciudadanas. | C66: SEGURIDAD, CONVIVENCIA Y JUSTICIA | D66: Desarrollo social y cultural | E66: Acceso a la Justicia. | F66: Implementar 1 estrategia local de acciones pedagógicas del Código Nacional de Seguridad y Convivencia Ciudadana en la localidad. | G66: Estrategia local de acciones pedagógicas del Código Nacional de Seguridad y Convivencia Ciudadana implementada en la localidad. | H66: Propósito 3. Inspirar confianza y legitimidad para vivir sin miedo y ser epicentro de cultura ciudadana, paz y reconciliación. | I66: Plataforma institucional para la seguridad y justicia | J66: ACCIONES PEDAGÓGICAS | K66: 2 | L66: La Paz | M66: 16 | N66: Paz, justicia e instituciones sólidas | O66: 16.3 | P66: Promover el estado de derecho en los planos nacional e internacional y garantizar la igualdad de acceso a la justicia para todos | Q66: 357 | R66: Diseñar e implementar al 100% una estrategia pedagógica del Código Nacional de Seguridad y Convivencia Ciudadana | S66: 363 | T66: Formular e implementar al 100% un lineamiento técnico de acciones de materialización del Código Nacional de Seguridad y Convivencia Ciudadana
A67: 30 | B67: 06. Promover la seguridad y convivencia ciudadanas. | C67: SEGURIDAD, CONVIVENCIA Y JUSTICIA | D67: Desarrollo social y cultural | E67: Dotación para instancias de seguridad. | F67: Suministrar XXX dotaciones tecnológicas a organismos de seguridad. | G67: Dotaciones tecnológicas suministradas a organismos de seguridad. | H67: Propósito 3. Inspirar confianza y legitimidad para vivir sin miedo y ser epicentro de cultura ciudadana, paz y reconciliación. | I67: Plataforma institucional para la seguridad y justicia | J67: DOTACIÓN | K67: 2 | L67: La Paz | M67: 16 | N67: Paz, justicia e instituciones sólidas | O67: 16.a | P67: Fortalecer las instituciones nacionales pertinentes, incluso mediante la cooperación internacional, para crear a todos los niveles, particularmente en los países en desarrollo, la capacidad de prevenir la violencia y combatir el terrorismo y la delincuencia | Q67: 349 | R67: Diseñar e implementar al 100% el plan integral de mejoramiento tecnológico para la seguridad | S67: 352 | T67: Aumentar en 15 % el número de cámaras instaladas y en funcionamiento en la ciudad
A68: 30 | B68: 06. Promover la seguridad y convivencia ciudadanas. | C68: SEGURIDAD, CONVIVENCIA Y JUSTICIA | D68: Desarrollo social y cultural | E68: Dotación para instancias de seguridad. | F68: Suministrar XXX dotaciones logísticas a organismos de seguridad. | G68: Dotaciones logísticas suministradas a organismos de seguridad. | H68: Propósito 3. Inspirar confianza y legitimidad para vivir sin miedo y ser epicentro de cultura ciudadana, paz y reconciliación. | I68: Plataforma institucional para la seguridad y justicia | J68: DOTACIÓN | K68: 2 | L68: La Paz | M68: 16 | N68: Paz, justicia e instituciones sólidas | O68: 16.a | P68: Fortalecer las instituciones nacionales pertinentes, incluso mediante la cooperación internacional, para crear a todos los niveles, particularmente en los países en desarrollo, la capacidad de prevenir la violencia y combatir el terrorismo y la delincuencia | Q68: 366 | R68: Implementar al 100% el plan de infraestructura y dotación de los organismos de seguridad y justicia, con enfoque territorial | S68: 349 | T68: Diseñar e implementar al 100% el plan integral de mejoramiento tecnológico para la seguridad
A69: 30 | B69: 06. Promover la seguridad y convivencia ciudadanas. | C69: SEGURIDAD, CONVIVENCIA Y JUSTICIA | D69: Desarrollo social y cultural | E69: Dotación para instancias de seguridad. | F69: Suministrar XXX dotaciones de equipos especiales de protección a organismos de seguridad. | G69: Dotaciones de equipos especiales de protección suministradas a organismos de seguridad. | H69: Propósito 3. Inspirar confianza y legitimidad para vivir sin miedo y ser epicentro de cultura ciudadana, paz y reconciliación. | I69: Plataforma institucional para la seguridad y justicia | J69: DOTACIÓN | K69: 2 | L69: La Paz | M69: 16 | N69: Paz, justicia e instituciones sólidas | O69: 16.a | P69: Fortalecer las instituciones nacionales pertinentes, incluso mediante la cooperación internacional, para crear a todos los niveles, particularmente en los países en desarrollo, la capacidad de prevenir la violencia y combatir el terrorismo y la delincuencia | Q69: 366 | R69: Implementar al 100% el plan de infraestructura y dotación de los organismos de seguridad y justicia, con enfoque territorial | S69: 349 | T69: Diseñar e implementar al 100% el plan integral de mejoramiento tecnológico para la seguridad
A70: 30 | B70: 06. Promover la seguridad y convivencia ciudadanas. | C70: SEGURIDAD, CONVIVENCIA Y JUSTICIA | D70: Desarrollo social y cultural | E70: Dotación para instancias de seguridad. | F70: Suministrar XXX dotaciones del parque automotor a organismos de seguridad. | G70: Dotación del parque automotor suministrada a organismos de seguridad. | H70: Propósito 3. Inspirar confianza y legitimidad para vivir sin miedo y ser epicentro de cultura ciudadana, paz y reconciliación. | I70: Plataforma institucional para la seguridad y justicia | J70: DOTACIÓN | K70: 2 | L70: La Paz | M70: 16 | N70: Paz, justicia e instituciones sólidas | O70: 16.a | P70: Fortalecer las instituciones nacionales pertinentes, incluso mediante la cooperación internacional, para crear a todos los niveles, particularmente en los países en desarrollo, la capacidad de prevenir la violencia y combatir el terrorismo y la delincuencia | Q70: 366 | R70: Implementar al 100% el plan de infraestructura y dotación de los organismos de seguridad y justicia, con enfoque territorial
A71: 31 | B71: 03. Adelantar el diseño, construcción y conservación de la malla vial local e intermedia, del espacio público y peatonal local e intermedio; así como de los puentes peatonales y/o vehiculares que pertenezcan a la malla vial local e intermedia, incluyendo los ubicados sobre cuerpos de agua. Así mismo, podrán coordinar con las entidades del sector movilidad su participación en la conservación de la malla vial y espacio público arterial, sin transporte masivo. | C71: MOVILIDAD | D71: Infraestructura | E71: Construcción y/o conservación de elementos del sistema de espacio público peatonal. | F71: Intervenir XXX metros cuadrados de elementos del sistema de espacio público peatonal con acciones de construcción y/o conservación. | G71: Metros cuadrados construidos y/o conservados de elementos del sistema de espacio público peatonal. | H71: Propósito 4. Hacer de Bogotá-región un modelo de movilidad, creatividad y productividad incluyente y sostenible | I71: Movilidad segura, sostenible y accesible | J71: CONSTRUCCIÓN Y CONSERVACIÓN | K71: 3 | L71: La Prosperidad | M71: 11 | N71: Ciudades y comunidades sostenibles | O71: 11.7 | P71: De aquí a 2030, proporcionar acceso universal a zonas verdes y espacios públicos seguros, inclusivos y accesibles, en particular para las mujeres y los niños, las personas de edad y las personas con discapacidad | Q71: 241 | R71: Construir 2.718.592 m2 de espacio público para el disfrute de los ciudadanos. En esta construcción se contara con un 35% de mano de obra de la localidad donde se ejecute el proyecto | S71: 240 | T71: Conservar 1.505.155 m2 de espacio público
A72: 31 | B72: 03. Adelantar el diseño, construcción y conservación de la malla vial local e intermedia, del espacio público y peatonal local e intermedio; así como de los puentes peatonales y/o vehiculares que pertenezcan a la malla vial local e intermedia, incluyendo los ubicados sobre cuerpos de agua. Así mismo, podrán coordinar con las entidades del sector movilidad su participación en la conservación de la malla vial y espacio público arterial, sin transporte masivo. | C72: MOVILIDAD | D72: Infraestructura | E72: Construcción y/o conservación de puentes peatonales y/o vehiculares sobre cuerpos de agua (de escala local: urbana y/o rural). | F72: Intervenir XXX metros cuadrados de Puentes vehiculares y/o peatonales de escala local sobre cuerpos de agua con acciones de construcción y/o conservación. | G72: Metros cuadrados de Puentes vehiculares y/o peatonales de escala local sobre cuerpos de agua construidos y/o intervenidos | H72: Propósito 4. Hacer de Bogotá-región un modelo de movilidad, creatividad y productividad incluyente y sostenible | I72: Movilidad segura, sostenible y accesible | J72: INTERVENCIÓN PUENTES | K72: 3 | L72: La Prosperidad | M72: 9 | N72: Industria, innovación e infraestructura | O72: 9.1 | P72: Desarrollar infraestructuras fiables, sostenibles, resilientes y de calidad, incluidas infraestructuras regionales y transfronterizas, para apoyar el desarrollo económico y el bienestar humano, haciendo especial hincapié en el acceso asequible y equitativo para todos | Q72: 382 | R72: Construir o reforzar 29 Puentes vehiculares e intersecciones a desnivel
A73: 31 | B73: 03. Adelantar el diseño, construcción y conservación de la malla vial local e intermedia, del espacio público y peatonal local e intermedio; así como de los puentes peatonales y/o vehiculares que pertenezcan a la malla vial local e intermedia, incluyendo los ubicados sobre cuerpos de agua. Así mismo, podrán coordinar con las entidades del sector movilidad su participación en la conservación de la malla vial y espacio público arterial, sin transporte masivo. | C73: MOVILIDAD | D73: Infraestructura | E73: Diseño, construcción y conservación (mantenimiento y rehabilitación) de la malla vial local e intermedia urbana o rural. | F73: Intervenir XXX Kilómetros-carril de malla vial urbana (local y/o intermedia) con acciones de construcción y/o conservación | G73: Kilómetros-carril construidos y/o conservados de malla vial urbana (local y/o intermedia) | H73: Propósito 4. Hacer de Bogotá-región un modelo de movilidad, creatividad y productividad incluyente y sostenible | I73: Movilidad segura, sostenible y accesible | J73: INTERVENCIÓN MALLA VIAL LOCAL | K73: 3 | L73: La Prosperidad | M73: 9 | N73: Industria, innovación e infraestructura | O73: 9.1 | P73: Desarrollar infraestructuras fiables, sostenibles, resilientes y de calidad, incluidas infraestructuras regionales y transfronterizas, para apoyar el desarrollo económico y el bienestar humano, haciendo especial hincapié en el acceso asequible y equitativo para todos | Q73: 380 | R73: Construir 146 km. de malla vial. En esta construcción se contara con un 35% de mano de obra de la localidad donde se ejecute el proyecto | S73: 391 | T73: Mejorar el estado de la malla vial local a través de las intervenciones de las Alcaldías Locales, en el marco del proceso de reactivación económica de la ciudad
A74: 31 | B74: 03. Adelantar el diseño, construcción y conservación de la malla vial local e intermedia, del espacio público y peatonal local e intermedio; así como de los puentes peatonales y/o vehiculares que pertenezcan a la malla vial local e intermedia, incluyendo los ubicados sobre cuerpos de agua. Así mismo, podrán coordinar con las entidades del sector movilidad su participación en la conservación de la malla vial y espacio público arterial, sin transporte masivo. | C74: MOVILIDAD | D74: Infraestructura | E74: Diseño, construcción y conservación (mantenimiento y rehabilitación) de la malla vial local e intermedia urbana o rural. | F74: Intervenir XXX Kilómetros-carril de malla vial rural con acciones de construcción y/o conservación | G74: Kilómetros-carril construidos y/o conservados de malla vial rural | H74: Propósito 4. Hacer de Bogotá-región un modelo de movilidad, creatividad y productividad incluyente y sostenible | I74: Movilidad segura, sostenible y accesible | J74: INTERVENCIÓN MALLA VIAL RURAL | K74: 3 | L74: La Prosperidad | M74: 9 | N74: Industria, innovación e infraestructura | O74: 9.1 | P74: Desarrollar infraestructuras fiables, sostenibles, resilientes y de calidad, incluidas infraestructuras regionales y transfronterizas, para apoyar el desarrollo económico y el bienestar humano, haciendo especial hincapié en el acceso asequible y equitativo para todos | Q74: 380 | R74: Construir 146 km. de malla vial. En esta construcción se contara con un 35% de mano de obra de la localidad donde se ejecute el proyecto | S74: 391 | T74: Mejorar el estado de la malla vial local a través de las intervenciones de las Alcaldías Locales, en el marco del proceso de reactivación económica de la ciudad
A75: 31 | B75: 03. Adelantar el diseño, construcción y conservación de la malla vial local e intermedia, del espacio público y peatonal local e intermedio; así como de los puentes peatonales y/o vehiculares que pertenezcan a la malla vial local e intermedia, incluyendo los ubicados sobre cuerpos de agua. Así mismo, podrán coordinar con las entidades del sector movilidad su participación en la conservación de la malla vial y espacio público arterial, sin transporte masivo. | C75: MOVILIDAD | D75: Infraestructura | E75: Diseño, construcción y conservación de ciclo-infraestructura. | F75: Intervenir XXX metros lineales de Ciclo-infraestructura con acciones de construcción y/o conservación. | G75: Metros lineales construidos y/o conservados de Ciclo-infraestructura | H75: Propósito 4. Hacer de Bogotá-región un modelo de movilidad, creatividad y productividad incluyente y sostenible | I75: Movilidad segura, sostenible y accesible | J75: CICLO INFRAESTRUCTURA | K75: 3 | L75: La Prosperidad | M75: 11 | N75: Ciudades y comunidades sostenibles | O75: 11.2 | P75: De aquí a 2030, proporcionar acceso a sistemas de transporte seguros, asequibles, accesibles y sostenibles para todos y mejorar la seguridad vial, en particular mediante la ampliación del transporte público, prestando especial atención a las necesidades de las personas en situación de vulnerabilidad, las mujeres, los niños, las personas con discapacidad y las personas de edad | Q75: 377 | R75: Conservar 190 km. de cicloinfraestructura | S75: 966 | T75: Construir 280 km de cicloinfraestructura de la ciudad
A76: 32 | B76: 11. Realizar inversiones complementarias a los programas y proyectos de la Administración Distrital en los sectores de Salud, Integración Social, Educación, Mujer, poblaciones, ruralidad, de conformidad con la reglamentación que se expida para el efecto. | C76: GESTIÓN PÚBLICA | D76: Ruralidad | E76: Conectividad y redes de comunicación. | F76: Operativizar XXX Centros de Acceso Comunitario en zonas rurales y/o apartadas. | G76: Centros de Acceso Comunitario en zonas rurales y/o apartadas funcionando | H76: Propósito 5. Construir Bogotá-región con gobierno abierto, transparente y ciudadanía consciente. | I76: Transformación digital y gestión de TIC para un territorio inteligente | J76: CONECTIVIDAD | K76: 3 | L76: La Prosperidad | M76: 9 | N76: Industria, innovación e infraestructura | O76: 9.c | P76: Aumentar significativamente el acceso a la tecnología de la información y las comunicaciones y esforzarse por proporcionar acceso universal y asequible a Internet en los países menos adelantados de aquí a 2020 | Q76: 468 | R76: Formular e implementar las agendas de transformación digital para el Distrito | S76: 469 | T76: Formular la política pública de Bogotá territorio inteligente
A77: 33 | B77: 09. Fomentar la participación ciudadana. | C77: GOBIERNO | D77: Infraestructura | E77: Intervención y dotación de salones comunales. | F77: Intervenir XXX sedes de salones comunales. | G77: Sedes intervenidas de salones comunales. | H77: Propósito 5. Construir Bogotá-región con gobierno abierto, transparente y ciudadanía consciente. | I77: Fortalecimiento de cultura ciudadana y su institucionalidad | J77: INTERVENCIÓN | K77: 3 | L77: La Prosperidad | M77: 11 | N77: Ciudades y comunidades sostenibles | O77: 11.3 | P77: De aquí a 2030, aumentar la urbanización inclusiva y sostenible y la capacidad para la planificación y la gestión participativas, integradas y sostenibles de los asentamientos humanos en todos los países
A78: 33 | B78: 09. Fomentar la participación ciudadana. | C78: GOBIERNO | D78: Infraestructura | E78: Intervención y dotación de salones comunales. | F78: Dotar XXX sedes de salones comunales. | G78: Sedes dotadas de salones comunales. | H78: Propósito 5. Construir Bogotá-región con gobierno abierto, transparente y ciudadanía consciente. | I78: Fortalecimiento de cultura ciudadana y su institucionalidad | J78: DOTACIÓN | K78: 3 | L78: La Prosperidad | M78: 11 | N78: Ciudades y comunidades sostenibles | O78: 11.3 | P78: De aquí a 2030, aumentar la urbanización inclusiva y sostenible y la capacidad para la planificación y la gestión participativas, integradas y sostenibles de los asentamientos humanos en todos los países
A79: 33 | B79: 09. Fomentar la participación ciudadana. | C79: GOBIERNO | D79: Infraestructura | E79: Intervención y dotación de salones comunales. | F79: Construir XXX sedes de salones comunales | G79: Sedes construidas de salones comunales | H79: Propósito 5. Construir Bogotá-región con gobierno abierto, transparente y ciudadanía consciente. | I79: Fortalecimiento de cultura ciudadana y su institucionalidad | J79: CONSTRUCCIÓN | K79: 3 | L79: La Prosperidad | M79: 11 | N79: Ciudades y comunidades sostenibles | O79: 11.3 | P79: De aquí a 2030, aumentar la urbanización inclusiva y sostenible y la capacidad para la planificación y la gestión participativas, integradas y sostenibles de los asentamientos humanos en todos los países
A80: 33 | B80: 09. Fomentar la participación ciudadana. | C80: GOBIERNO | D80: Participación ciudadana y construcción de confianza / Desarrollo social y cultural | E80: Escuelas y procesos de formación para la participación ciudadana y/u organizaciones para los procesos de presupuestos participativos. | F80: Capacitar XXX personas a través de procesos de formación para la participación de manera virtual y presencial. | G80: Número de Personas capacitadas a través de procesos de formación para la participación de manera virtual y presencial. | H80: Propósito 5. Construir Bogotá-región con gobierno abierto, transparente y ciudadanía consciente. | I80: Fortalecimiento de cultura ciudadana y su institucionalidad | J80: FORMACIÓN | K80: 2 | L80: La Paz | M80: 16 | N80: Paz, justicia e instituciones sólidas | O80: 16.7 | P80: Garantizar la adopción en todos los niveles de decisiones inclusivas, participativas y representativas que respondan a las necesidades | Q80: 424 | R80: Implementar una (1) estrategia para fortalecer a las organizaciones comunales, sociales, comunitarias, de propiedad horizontal e instancias de participación promocionando la inclusión y el liderazgo de nuevas ciudadanías | S80: 474 | T80: Creación de un (1) centro de diseño de políticas públicas de cambio cultural para fortalecer la institucionalidad de Cultura Ciudadana en el distrito, la gestión del conocimiento y la toma de decisiones institucionales que promuevan las transformaciones culturales a partir de mejores comprensiones de las dinámicas sociales y culturales
A81: 33 | B81: 09. Fomentar la participación ciudadana. | C81: GOBIERNO | D81: Participación ciudadana y construcción de confianza / Desarrollo social y cultural | E81: Fortalecimiento de organizaciones sociales, comunitarias, comunales, propiedad horizontal e instancias y mecanismos de participación, con énfasis en jóvenes y asociatividad productiva. | F81: Fortalecer XXX Organizaciones, JAC e Instancias de participación ciudadana. | G81: Número de Organizaciones, JAC e Instancias de participación ciudadana fortalecidas. | H81: Propósito 5. Construir Bogotá-región con gobierno abierto, transparente y ciudadanía consciente. | I81: Fortalecimiento de cultura ciudadana y su institucionalidad | J81: FORTALECIMIENTO ORGANIZATIVO | K81: 2 | L81: La Paz | M81: 16 | N81: Paz, justicia e instituciones sólidas | O81: 16.7 | P81: Garantizar la adopción en todos los niveles de decisiones inclusivas, participativas y representativas que respondan a las necesidades | Q81: 424 | R81: Implementar una (1) estrategia para fortalecer a las organizaciones comunales, sociales, comunitarias, de propiedad horizontal e instancias de participación promocionando la inclusión y el liderazgo de nuevas ciudadanías | S81: 474 | T81: Creación de un (1) centro de diseño de políticas públicas de cambio cultural para fortalecer la institucionalidad de Cultura Ciudadana en el distrito, la gestión del conocimiento y la toma de decisiones institucionales que promuevan las transformaciones culturales a partir de mejores comprensiones de las dinámicas sociales y culturales
A82: 34 | B82: 01. Administrar las Alcaldías Locales y los Fondos de Desarrollo Local. | C82: GOBIERNO | D82: Gestión pública local | E82: Terminación de infraestructuras (sedes administrativas locales). | F82: Terminar 1 sedes administrativas locales. | G82: Sedes administrativas locales terminadas. | H82: Propósito 5. Construir Bogotá-región con gobierno abierto, transparente y ciudadanía consciente. | I82: Gestión Pública Efectiva | J82: SEDE ADMINISTRATIVA | K82: 3 | L82: La Prosperidad | M82: 9 | N82: Industria, innovación e infraestructura | O82: 9.1 | P82: Desarrollar infraestructuras fiables, sostenibles, resilientes y de calidad, incluidas infraestructuras regionales y transfronterizas, para apoyar el desarrollo económico y el bienestar humano, haciendo especial hincapié en el acceso asequible y equitativo para todos | Q82: 493 | R82: Desarrollar y mantener al 100% la capacidad institucional a través de la mejora en la infraestructura física, tecnológica y de gestión en beneficio de la ciudadanía
A83: 34 | B83: 01. Administrar las Alcaldías Locales y los Fondos de Desarrollo Local. | C83: GOBIERNO | D83: Gestión pública local | E83: Terminación de infraestructuras (sedes administrativas locales). | F83: Construir 1 sedes administrativas locales. | G83: Sedes administrativas locales construidas. | H83: Propósito 5. Construir Bogotá-región con gobierno abierto, transparente y ciudadanía consciente. | I83: Gestión Pública Efectiva | J83: SEDE ADMINISTRATIVA | K83: 3 | L83: La Prosperidad | M83: 9 | N83: Industria, innovación e infraestructura | O83: 9.1 | P83: Desarrollar infraestructuras fiables, sostenibles, resilientes y de calidad, incluidas infraestructuras regionales y transfronterizas, para apoyar el desarrollo económico y el bienestar humano, haciendo especial hincapié en el acceso asequible y equitativo para todos | Q83: 493 | R83: Desarrollar y mantener al 100% la capacidad institucional a través de la mejora en la infraestructura física, tecnológica y de gestión en beneficio de la ciudadanía
A84: 35 | B84: 01. Administrar las Alcaldías Locales y los Fondos de Desarrollo Local. | C84: GOBIERNO | D84: Gestión pública local | E84: Fortalecimiento institucional. | F84: Realizar 4 estrategias de fortalecimiento institucional. | G84: Estrategias de fortalecimiento institucional realizadas | H84: Propósito 5. Construir Bogotá-región con gobierno abierto, transparente y ciudadanía consciente. | I84: Gestión Pública Local | J84: FORTALECIMIENTO LOCAL | K84: 2 | L84: La Paz | M84: 16 | N84: Paz, justicia e instituciones sólidas | O84: 16.6 | P84: Garantizar el acceso público a la información y proteger las libertades fundamentales, de conformidad con las leyes nacionales y los acuerdos internacionales | Q84: 544 | R84: Fortalecer la gestión territorial a través de las intervenciones de las Alcaldías Locales | S84: 547 | T84: Implementar un (1) modelo local de gestión transparente, incluyente, participativo y colaborativo local
A85: 35 | B85: 09. Fomentar la participación ciudadana. | C85: GOBIERNO | D85: Participación ciudadana y construcción de confianza | E85: Transparencia, control social y rendición de cuentas del Gobierno Local. | F85: Realizar 1 rendición de cuentas anuales. | G85: Número de Rendiciones de cuentas anuales. | H85: Propósito 5. Construir Bogotá-región con gobierno abierto, transparente y ciudadanía consciente. | I85: Gestión Pública Local | J85: TRANSPARENCIA Y CONTROL SOCIAL | K85: 2 | L85: La Paz | M85: 16 | N85: Paz, justicia e instituciones sólidas | O85: 16.6 | P85: Garantizar el acceso público a la información y proteger las libertades fundamentales, de conformidad con las leyes nacionales y los acuerdos internacionales | Q85: 544 | R85: Fortalecer la gestión territorial a través de las intervenciones de las Alcaldías Locales | S85: 547 | T85: Implementar un (1) modelo local de gestión transparente, incluyente, participativo y colaborativo local
A86: 36 | B86: 10. Coordinar la inspección, vigilancia y control. | C86: GOBIERNO | D86: Inspección, vigilancia y control | E86: Inspección, vigilancia y control. | F86: Realizar 4 acciones de inspección, vigilancia y control. | G86: Acciones de inspección, vigilancia y control realizadas | H86: Propósito 5. Construir Bogotá-región con gobierno abierto, transparente y ciudadanía consciente. | I86: Gestión Pública Local | J86: IVC | K86: 2 | L86: La Paz | M86: 16 | N86: Paz, justicia e instituciones sólidas | O86: 16.6 | P86: Garantizar el acceso público a la información y proteger las libertades fundamentales, de conformidad con las leyes nacionales y los acuerdos internacionales | Q86: 544 | R86: Fortalecer la gestión territorial a través de las intervenciones de las Alcaldías Locales

Sheet Hoja1 (hidden)
A4: No. Localidad | B4: Nombre Localidad | C4: Plan plurianual PDL 2021 | D4: Plan plurianual PDL 2022 | E4: Plan plurianual PDL 2023 | F4: Plan plurianual PDL 2024 | G4: TOTAL PPLURIANUAL | H4: Suma de Apropiación inicial POAI vigencia del corte
A5: 1 | B5: Usaquén | C5: 37112030000 | D5: 38251830000 | E5: 39460580000 | F5: 40702720000 | G5: 155527160000 | H5: 36045534000 | J5: 36045534000 | K5: =GETPIVOTDATA("Suma de Apropiación inicial POAI vigencia del corte",$A$4,"No. Localidad",1,"Nombre Localidad ","Usaquén")-I5 -> 36045534000
A6: 2 | B6: Chapinero | C6: 17262000000 | D6: 17792000000 | E6: 18355000000 | F6: 18938000000 | G6: 72347000000 | H6: 15888914000 | J6: 15888914000 | K6: =GETPIVOTDATA("Suma de Apropiación inicial POAI vigencia del corte",$A$4,"No. Localidad",1,"Nombre Localidad ","Usaquén")-I6 -> 36045534000
A7: 3 | B7: Santa Fe | C7: 25666000000 | D7: 26453000000 | E7: 27289000000 | F7: 28157000000 | G7: 107565000000 | H7: 25224011000 | J7: 25224011000 | K7: 36045534000
A8: 4 | B8: San Cristóbal | C8: 61423000000 | D8: 63310000000 | E8: 65310000000 | F8: 67386000000 | G8: 257429000000 | H8: 61841979000 | J8: 61841979000 | K8: 36045534000
A9: 5 | B9: Usme | C9: 59233000000 | D9: 61052000000 | E9: 62981000000 | F9: 64983000000 | G9: 248249000000 | H9: 59441193000 | J9: 59441193000 | K9: 36045534000
A10: 6 | B10: Tunjuelito | C10: 26079000000 | D10: 26880000000 | E10: 27729000000 | F10: 28611000000 | G10: 109299000000 | H10: 25190864000 | J10: 25190864000 | K10: 36045534000
A11: 7 | B11: Bosa | C11: 74519000000 | D11: 76805000000 | E11: 79231000000 | F11: 81753000000 | G11: 312308000000 | H11: 76497960000 | J11: 76497960000 | K11: 36045534000
A12: 8 | B12: Kennedy | C12: 89162000000 | D12: 91801000000 | E12: 94702000000 | F12: 97706000000 | G12: 373371000000 | H12: 90843825000 | J12: 90843825000 | K12: 36045534000
A13: 9 | B13: Fontibón | C13: 29221000000 | D13: 30072000000 | E13: 31009000000 | F13: 31986000000 | G13: 122288000000 | H13: 27103021000 | J13: 27103021000 | K13: 36045534000
A14: 10 | B14: Engativá | C14: 54114000000 | D14: 55776000000 | E14: 57540000000 | F14: 59367000000 | G14: 226797000000 | H14: 53413905000 | J14: 53413905000 | K14: 36045534000
A15: 11 | B15: Suba | C15: 75005000000 | D15: 85117000000 | E15: 79751000000 | F15: 82285000000 | G15: 322158000000 | H15: 75750446000 | J15: 75750446000 | K15: 36045534000
A16: 12 | B16: Barrios Unidos | C16: 22518000000 | D16: 23209000000 | E16: 23942000000 | F16: 25162000000 | G16: 94831000000 | H16: 22394138000 | J16: 22394138000 | K16: 36045534000
A17: 13 | B17: Teusaquillo | C17: 14638000000 | D17: 15087047995 | E17: 1.556399199e+10 | F17: 1.60600276e+10 | G17: 6.134906759e+10 | H17: 13317275000 | J17: 13317275000 | K17: 36045534000
A18: 14 | B18: Los Mártires | C18: 17439000000 | D18: 17974000000 | E18: 18543000000 | F18: 19133000000 | G18: 73089000000 | H18: 15716297000 | J18: 15716297000 | K18: 36045534000
A19: 15 | B19: Antonio Nariño | C19: 15534000000 | D19: 16011000000 | E19: 16517000000 | F19: 17042000000 | G19: 65104000000 | H19: 14703072000 | J19: 14703072000 | K19: 36045534000
A20: 16 | B20: Puente Aranda | C20: 27016000000 | D20: 27845000000 | E20: 28725000000 | F20: 29638000000 | G20: 113224000000 | H20: 26255236000 | J20: 26255236000 | K20: 36045534000
A21: 17 | B21: La Candelaria | C21: 11127000000 | D21: 11469000000 | E21: 11831000000 | F21: 12207000000 | G21: 46634000000 | H21: 10711313000 | J21: 10711313000 | K21: 36045534000
A22: 18 | B22: Rafael Uribe Uribe | C22: 53887000000 | D22: 55542000000 | E22: 57296000000 | F22: 59117000000 | G22: 225842000000 | H22: 54032772000 | J22: 54032772000 | K22: 36045534000
A23: 19 | B23: Ciudad Bolívar | C23: 97533000000 | D23: 100528000000 | E23: 103705000000 | F23: 107000000000 | G23: 408766000000 | H23: 98962427000 | J23: 98962427000 | K23: 36045534000
A24: 20 | B24: Sumapaz | C24: 31842000000 | D24: 32820000000 | E24: 33858000000 | F24: 34934000000 | G24: 133454000000 | H24: 31207766000 | J24: 31207766000 | K24: 36045534000
A25: Total general | C25: 840330030000 | D25: 873794877995 | E25: 8.93338572e+11 | F25: 9.221677476e+11 | G25: 3.529631228e+12 | H25: 834541948000
E29: 5

Sheet Base de Datos MUSI 2017-2020 (hidden)
A1: Código meta proyecto Extendida | B1: No. Localidad | C1: Nombre Localidad | D1: Código Eje/Pilar | E1: Nombre Eje/Pilar | F1: Código Programa | G1: Nombre Programa | H1: Codigo meta Resultado PDD asociada | I1: Nombre meta Resultado PDD asociada | J1: Codigo meta Producto PDD asociada | K1: Nombre meta Producto PDD asociada | L1: Código meta PDL | M1: Nombre meta PDL | N1: Código Proyecto | O1: Nombre Proyecto | P1: Componente | Q1: Tipo de anualización meta proyecto | R1: Código meta proyecto SEGPLAN | S1: Proceso meta proyecto | T1: Magnitud meta proyecto | U1: Unidad de Medida meta proyecto | V1: Descripción meta proyecto | W1: Meta proyecto | X1: Componente líneas | Y1: Código Línea de inversión | Z1: Línea de Inversión | AA1: Concepto línea de inversión | AB1: Código sector | AC1: Sector relacionado | AD1: Código producto | AE1: Producto PMR | AF1: Código Indicador | AG1: Nombre Indicador | AH1: TEMA | AI1: Cod. PP | AJ1: Política Pública Distrital | AK1: Eje Estructurante / Dimensión/ Líneas de Acción / Eje Temático | AL1: Magnitud programada PLAN DE ACCION SEGPLAN 2021 | AM1: Magnitud programada PLAN DE ACCION SEGPLAN 2022 | AN1: Magnitud programada PLAN DE ACCION SEGPLAN 2023 | AO1: Magnitud programada PLAN DE ACCION SEGPLAN 2024 | AP1: Valor Plan plurianual PDL 2021 | AQ1: Valor Plan plurianual PDL 2022 | AR1: Valor Plan plurianual PDL 2023 | AS1: Valor Plan plurianual PDL 2024 | AT1: TOTAL PLAN PLURIANUAL | AU1: Ponderación indicador de la meta de proyecto | AV1: Suma contratado | AW1: % Avance Acumulado contratado | AX1: Suma Entregado | AY1: % Avance Acumulado Entregado | AZ1: Nivel de avance Contratado | BA1: Nivel de avance Entregado | BB1: CRITERIO 1 % Recursos por programa | BC1: Avance Indicador frente al programa Contratado | BD1: Avance Indicador frente al programa Entregado | BE1: Ponderador por Proyecto | BF1: % AVANCE CONTRATADO POR PROYECTO | BG1: % AVANCE ENTREGADO POR PROYECTO | BH1: Linea Base | BI1: Año_corte | BJ1: Magnitud programada POAI vigencia del corte | BK1: Magnitud programada POAI meta proyecto 2021 | BL1: Magnitud programada POAI meta proyecto 2022 | BM1: Magnitud programada POAI meta proyecto 2023 | BN1: Magnitud programada POAI meta proyecto 2024 | BO1: Magnitud contratada meta proyecto 2021 | BP1: Magnitud contratada meta proyecto 2022 | BQ1: Magnitud contratada meta proyecto 2023 | BR1: Magnitud contratada meta proyecto 2024 | BS1: Magnitud entregada meta proyecto 2021 | BT1: Magnitud entregada meta proyecto 2022 | BU1: Magnitud entregada meta proyecto 2023 | BV1: Magnitud entregada meta proyecto 2024 | BW1: Condición 2021 | BX1: Condición 2022 | BY1: Condición 2023 | BZ1: Condición 2024 | CA1: Apropiación inicial POAI vigencia del corte | CB1: Apropiacion inicial meta proyecto POAI 2021 | CC1: Apropiación inicial meta proyecto POAI 2022 | CD1: Apropiación inicial meta proyecto POAI 2023 | CE1: Apropiación inicial meta proyecto POAI 2024 | CF1: Compromisos meta proyecto 2021 | CG1: Compromisos meta proyecto 2022 | CH1: Compromisos meta proyecto 2023 | CI1: Compromisos meta proyecto 2024 | CJ1: Total Compromisos 2021-2024 | CK1: Giros vigencia del corte | CL1: Giros meta proyecto 2021 | CM1: Giros meta proyecto 2022 | CN1: Giros meta proyecto 2023 | CO1: Giros meta proyecto 2024 | CP1: Observaciones 2021 | CQ1: Observaciones 2022 | CR1: Observaciones 2023 | CS1: Observaciones 2024 | CT1: Código GEO | CU1: TEMA GEO | CV1: CODIGO ESFERA ODS | CW1: Esferas ODS | CX1: Codigo_ODS | CY1: Nombre_ODS Conpes 3918 de 2018 | CZ1: Cod_meta ODS | DA1: Nombre Meta ODS | DB1: % POAI 2021 | DC1: % POAI 2022 | DD1: % POAI 2023 | DE1: % POAI 2024 | DF1: % Compromisos 2021 | DG1: % Compromisos 2022 | DH1: % Compromisos 2023 | DI1: % Compromisos 2024 | DJ1: Magnitud 2021-2024 normalizada | DK1: Anexo
A2: 1 | B2: 1 | C2: Usaquén | D2: 1 | E2: Hacer un nuevo contrato social con igualdad de oportunidades para la inclusión social, productiva y política | F2: 1 | G2: Subsidios y transferencias para la equidad | L2: 1 | M2: Atender 977 hogares con apoyos que contribuyan al ingreso mínimo garantizado. | N2: 1960 | O2: Integración económica y social de Usaquén | P2: INGRESO MÍNIMO | Q2: Constante | R2: 1 | S2: Atender | T2: 977 | U2: Hogares | V2: con apoyos que contribuyan al ingreso mínimo garantizado. | W2: Atender 977 hogares con apoyos que contribuyan al ingreso mínimo garantizado. | X2: =VLOOKUP(AG2,'Anexo PMR'!$B$4:$G$87,6,0) -> 1_Inflexible 45% | Y2: 3 | Z2: Sistema Bogotá Solidaria (20%) | AA2: Ingreso mínimo garantizado | AB2: 92 | AC2: INTEGRACIÓN SOCIAL | AD2: 1 | AE2: Protección integral a personas y familias en situación de vulneración. | AF2: 1 | AG2: Hogares atendidos con apoyos que contribuyan al ingreso mínimo garantizado | AH2: INGRESO MÍNIMO | AL2: 977 | AM2: 977 | AN2: 977 | AO2: 977 | AP2: 5566800000 | AQ2: 5737770000 | AR2: 5919090000 | AS2: 6107200000 | AT2: =SUM(AP2:AS2) -> 23330860000 | AU2: 1 | AV2: =IF(Q2="Constante",SUM(BO2:BR2)/4,IF(Q2="Suma",SUM(BO2:BR2),0)) -> 0 | AW2: =AV2/T2 -> 0 | AX2: =IF(Q2="Constante",SUM(BS2:BV2)/4,IF(Q2="Suma",SUM(BS2:BV2),0)) -> 0 | AY2: =AX2/T2 -> 0 | AZ2: =IF(AW2<=40%,"Bajo",IF(AW2<=70%,"Medio",IF(AW2<=90%,"Alto",IF(AW2>90%,"Muy Alto")))) -> Bajo | BA2: =IF(AY2<=40%,"Bajo",IF(AY2<=70%,"Medio",IF(AY2<=90%,"Alto",IF(AY2>90%,"Muy Alto")))) -> Bajo | BB2: =AT2/SUMIF($F$2:$F$60,F2,$AT$2:$AT$60) -> 0.7500000804 | BC2: =BB2*AW2 -> 0 | BD2: =BB2*AY2 -> 0 | BH2: 0 | BI2: 2021_1 | BJ2: 977 | BK2: 977 | BL2: 0 | BM2: 0 | BN2: 0 | BO2: 0 | BP2: 0 | BQ2: 0 | BR2: 0 | BS2: 0 | BT2: 0 | BU2: 0 | BV2: 0 | CA2: 5406826000 | CB2: 5406826000 | CC2: 0 | CD2: 0 | CE2: 0 | CF2: 4447080000 | CG2: 0 | CH2: 0 | CI2: 0 | CJ2: =SUM(CF2:CI2) -> 4447080000 | CK2: 4331333333 | CL2: 4331333333 | CM2: 0 | CN2: 0 | CO2: 0 | CP2: Corte 31 de marzo de 2021: Si bien el contrato reportado tiene previsto beneficiar una cantidad de hogares importante, no se lleva acabo el reporte debido a que se presentó modificación en el valor de los bonos/transferencias que puede conllevar a una mod | CV2: =VLOOKUP(AG2,'Anexo ODS'!$G$3:$P$86,5,0) -> 1 | CW2: =VLOOKUP(AG2,'Anexo ODS'!$G$3:$P$86,6,0) -> Las Personas | CX2: =VLOOKUP(AG2,'Anexo ODS'!$G$3:$P$86,7,0) -> 1 | CY2: =VLOOKUP(AG2,'Anexo ODS'!$G$3:$P$86,8,0) -> Fin de la pobreza | CZ2: =VLOOKUP(AG2,'Anexo ODS'!$G$3:$P$86,9,0) -> 1.2 | DA2: =VLOOKUP(AG2,'Anexo ODS'!$G$3:$P$86,10,0) -> De aquí a 2030, reducir al menos a la mitad la proporción de hombres, mujeres y niños de todas las edades que viven en la pobreza en todas sus dimensiones con arreglo a las definiciones nacionales | DJ2: 3908 | DK2: Anexo 2 (15%) | DN2: =DJ2*4 -> 15632
A3: 2 | B3: 1 | C3: Usaquén | D3: 1 | E3: Hacer un nuevo contrato social con igualdad de oportunidades para la inclusión social, productiva y política | F3: 1 | G3: Subsidios y transferencias para la equidad | L3: 2 | M3: Beneficiar 950 personas mayores con apoyo económico tipo C. | N3: 1960 | O3: Integración económica y social de Usaquén | P3: SUBSIDIO TIPO C | Q3: Constante | R3: 1 | S3: Beneficiar | T3: 950 | U3: Personas | V3: mayores con apoyo económico tipo C. | W3: Beneficiar 950 personas mayores con apoyo económico tipo C. | X3: =VLOOKUP(AG3,'Anexo PMR'!$B$4:$G$87,6,0) -> 1_Inflexible 45% | Y3: 3 | Z3: Sistema Bogotá Solidaria (20%) | AA3: Subsidio tipo C adulto mayor. | AB3: 92 | AC3: INTEGRACIÓN SOCIAL | AD3: 1 | AE3: Protección integral a personas y familias en situación de vulneración. | AF3: 2 | AG3: Número de personas mayores con apoyo económico tipo C | AH3: SUBSIDIO TIPO C | AL3: 950 | AM3: 950 | AN3: 950 | AO3: 950 | AP3: 1855600000 | AQ3: 1912590000 | AR3: 1973030000 | AS3: 2035730000 | AT3: 7776950000 | AU3: 1 | AV3: 237.5 | AW3: 0.25 | AX3: 237.5 | AY3: 0.25 | AZ3: Bajo | BA3: Bajo | BB3: 0.2499999196 | BC3: =BB3*AW3 -> 0.06249997991 | BD3: =BB3*AY3 -> 0.06249997991 | BH3: 0 | BI3: 2021_1 | BJ3: 950 | BK3: 950 | BL3: 0 | BM3: 0 | BN3: 0 | BO3: 950 | BP3: 0 | BQ3: 0 | BR3: 0 | BS3: 950 | BT3: 0 | BU3: 0 | BV3: 0 | BW3: Incompleto | CA3: 1802275000 | CB3: 1802275000 | CC3: 0 | CD3: 0 | CE3: 0 | CF3: 462004000 | CG3: 0 | CH3: 0 | CI3: 0 | CJ3: =SUM(CF3:CI3) -> 462004000 | CK3: 4017566 | CL3: 4017566 | CM3: 0 | CN3: 0 | CO3: 0 | CV3: =VLOOKUP(AG3,'Anexo ODS'!$G$3:$P$86,5,0) -> 1 | CW3: =VLOOKUP(AG3,'Anexo ODS'!$G$3:$P$86,6,0) -> Las Personas | CX3: =VLOOKUP(AG3,'Anexo ODS'!$G$3:$P$86,7,0) -> 1 | CY3: =VLOOKUP(AG3,'Anexo ODS'!$G$3:$P$86,8,0) -> Fin de la pobreza | CZ3: =VLOOKUP(AG3,'Anexo ODS'!$G$3:$P$86,9,0) -> 1.2 | DA3: =VLOOKUP(AG3,'Anexo ODS'!$G$3:$P$86,10,0) -> De aquí a 2030, reducir al menos a la mitad la proporción de hombres, mujeres y niños de todas las edades que viven en la pobreza en todas sus dimensiones con arreglo a las definiciones nacionales | DJ3: 950 | DK3: Anexo 2 (15%)
A4: 3 | B4: 1 | C4: Usaquén | D4: 1 | E4: Hacer un nuevo contrato social con igualdad de oportunidades para la inclusión social, productiva y política | F4: 6 | G4: Sistema Distrital de Cuidado | L4: 3 | M4: Promover en 208 Mipymes y/o emprendimientos la transformación empresarial y/o productiva | N4: 1941 | O4: Reactivación económica por Usaquén | P4: TRANSFORMACIÓN PRODUCTIVA | Q4: Suma | R4: 1 | S4: Promover | T4: 208 | U4: Mipymes | V4: y/o emprendimientos la transformación empresarial y/o productiva | W4: Promover en 208 Mipymes y/o emprendimientos la transformación empresarial y/o productiva | X4: =VLOOKUP(AG4,'Anexo PMR'!$B$4:$G$87,6,0) -> 2_Presupuestos Participativos 50% | Y4: 5 | Z4: Desarrollo de la Economía Local | AA4: Transformación productiva y formación de capacidades | AB4: 89 | AC4: DESARROLLO ECONÓMICO, INDUSTRIA Y TURISMO | AD4: 14 | AE4: Servicios de asesoría, asistencia técnica integral, dotación y/o apoyo financiero a Mipymes y/o emprendimientos. | AF4: 23 | AG4: Número de Mipymes y/o emprendimientos con transformacion empresarial y/o productiva | AH4: DESARROLLO DE LA ECONOMÍA LOCAL | AL4: 90 | AM4: 51 | AN4: 38 | AO4: 29 | AP4: 1100000000 | AQ4: 600000000 | AR4: 450000000 | AS4: 346000000 | AT4: 2496000000 | AU4: 1 | AV4: 5 | AW4: 0.02403846154 | AX4: 0 | AY4: 0 | AZ4: Bajo | BA4: Bajo | BB4: 0.144347628 | BC4: 0.003469894903 | BD4: 0 | BH4: 0 | BI4: 2021_1 | BJ4: 90 | BK4: 90 | BL4: 0 | BM4: 0 | BN4: 0 | BO4: 5 | BP4: 0 | BQ4: 0 | BR4: 0 | BS4: 0 | BT4: 0 | BU4: 0 | BV4: 0 | CA4: 1068389000 | CB4: 1068389000 | CC4: 0 | CD4: 0 | CE4: 0 | CF4: 102580000 | CG4: 0 | CH4: 0 | CI4: 0 | CJ4: 102580000 | CK4: 5151333 | CL4: 5151333 | CM4: 0 | CN4: 0 | CO4: 0 | CP4: Corte 31 marzo de 2021: Las contrataciones adjudicadas no contribuyen al avance directo de la meta. | CV4: =VLOOKUP(AG4,'Anexo ODS'!$G$3:$P$86,5,0) -> 3 | CW4: =VLOOKUP(AG4,'Anexo ODS'!$G$3:$P$86,6,0) -> La Prosperidad | CX4: =VLOOKUP(AG4,'Anexo ODS'!$G$3:$P$86,7,0) -> 8 | CY4: =VLOOKUP(AG4,'Anexo ODS'!$G$3:$P$86,8,0) -> Trabajo decente y crecimiento económico | CZ4: =VLOOKUP(AG4,'Anexo ODS'!$G$3:$P$86,9,0) -> 8.3 | DA4: =VLOOKUP(AG4,'Anexo ODS'!$G$3:$P$86,10,0) -> Promover políticas orientadas al desarrollo que apoyen las actividades productivas, la creación de puestos de trabajo decentes, el emprendimiento, la creatividad y la innovación, y fomentar la formalización y el crecimiento de las microempresas y las pequeñas y medianas empresas, incluso mediante el acceso a servicios financieros | DJ4: 208 | DK4: Anexo 1 (85%)
A5: 4 | B5: 1 | C5: Usaquén | D5: 1 | E5: Hacer un nuevo contrato social con igualdad de oportunidades para la inclusión social, productiva y política | F5: 6 | G5: Sistema Distrital de Cuidado | L5: 4 | M5: Revitalizar 211 Mipymes y/o emprendimientos potencializadas dentro de las aglomeraciones económicas que fomentan el empleo y/o nuevas actividades económicas | N5: 1941 | O5: Reactivación económica por Usaquén | P5: REVITALIZACIÓN | Q5: Suma | R5: 2 | S5: Revitalizar | T5: 211 | U5: Mipymes | V5: y/o emprendimientos potencializadas dentro de las aglomeraciones económicas que fomentan el empleo y/o nuevas actividades económicas | W5: Revitalizar 211 Mipymes y/o emprendimientos potencializadas dentro de las aglomeraciones económicas que fomentan el empleo y/o nuevas actividades económicas | X5: =VLOOKUP(AG5,'Anexo PMR'!$B$4:$G$87,6,0) -> 2_Presupuestos Participativos 50% | Y5: 5 | Z5: Desarrollo de la Economía Local | AA5: Revitalización del corazón productivo de las localidades | AB5: 89 | AC5: DESARROLLO ECONÓMICO, INDUSTRIA Y TURISMO | AD5: 14 | AE5: Servicios de asesoría, asistencia técnica integral, dotación y/o apoyo financiero a Mipymes y/o emprendimientos. | AF5: 24 | AG5: Número de Mipymes y/o emprendimientos revitalizadas o potencializadas dentro de las aglomeraciones económicas que fomentan el empleo y/o nuevas actividades económicas | AH5: DESARROLLO DE LA ECONOMÍA LOCAL | AL5: 98 | AM5: 56 | AN5: 29 | AO5: 28 | AP5: 1000000000 | AQ5: 550000000 | AR5: 284000000 | AS5: 282910000 | AT5: 2116910000 | AU5: 1 | AV5: 0 | AW5: 0 | AX5: 0 | AY5: 0 | AZ5: Bajo | BA5: Bajo | BB5: 0.1224242536 | BC5: 0 | BD5: 0 | BH5: 0 | BI5: 2021_1 | BJ5: 98 | BK5: 98 | BL5: 0 | BM5: 0 | BN5: 0 | BO5: 0 | BP5: 0 | BQ5: 0 | BR5: 0 | BS5: 0 | BT5: 0 | BU5: 0 | BV5: 0 | CA5: 971263000 | CB5: 971263000 | CC5: 0 | CD5: 0 | CE5: 0 | CF5: 50166000 | CG5: 0 | CH5: 0 | CI5: 0 | CJ5: 50166000 | CK5: 0 | CL5: 0 | CM5: 0 | CN5: 0 | CO5: 0 | CP5: Corte 31 marzo de 2021: Las contrataciones adjudicadas no contribuyen al avance directo de la meta. | CV5: =VLOOKUP(AG5,'Anexo ODS'!$G$3:$P$86,5,0) -> 3 | CW5: =VLOOKUP(AG5,'Anexo ODS'!$G$3:$P$86,6,0) -> La Prosperidad | CX5: =VLOOKUP(AG5,'Anexo ODS'!$G$3:$P$86,7,0) -> 8 | CY5: =VLOOKUP(AG5,'Anexo ODS'!$G$3:$P$86,8,0) -> Trabajo decente y crecimiento económico | CZ5: =VLOOKUP(AG5,'Anexo ODS'!$G$3:$P$86,9,0) -> 8.3 | DA5: =VLOOKUP(AG5,'Anexo ODS'!$G$3:$P$86,10,0) -> Promover políticas orientadas al desarrollo que apoyen las actividades productivas, la creación de puestos de trabajo decentes, el emprendimiento, la creatividad y la innovación, y fomentar la formalización y el crecimiento de las microempresas y las pequeñas y medianas empresas, incluso mediante el acceso a servicios financieros | DJ5: 211 | DK5: Anexo 2 (15%)
A6: 5 | B6: 1 | C6: Usaquén | D6: 1 | E6: Hacer un nuevo contrato social con igualdad de oportunidades para la inclusión social, productiva y política | F6: 6 | G6: Sistema Distrital de Cuidado | L6: 5 | M6: Apoyar 267 Mipymes y/o emprendimientos culturales y creativos | N6: 1941 | O6: Reactivación económica por Usaquén | P6: FORTALECIMIENTO MIPYMES | Q6: Suma | R6: 3 | S6: Apoyar | T6: 267 | U6: Mipymes | V6: y/o emprendimientos culturales y creativos | W6: Apoyar 267 Mipymes y/o emprendimientos culturales y creativos | X6: =VLOOKUP(AG6,'Anexo PMR'!$B$4:$G$87,6,0) -> 2_Presupuestos Participativos 50% | Y6: 5 | Z6: Desarrollo de la Economía Local | AA6: Apoyo a industrias culturales y creativas. | AB6: 89 | AC6: DESARROLLO ECONÓMICO, INDUSTRIA Y TURISMO | AD6: 14 | AE6: Servicios de asesoría, asistencia técnica integral, dotación y/o apoyo financiero a Mipymes y/o emprendimientos. | AF6: 21 | AG6: Número de Mipymes y/o emprendimientos culturales y creativos apoyados | AH6: DESARROLLO DE LA ECONOMÍA LOCAL | AL6: 119 | AM6: 63 | AN6: 46 | AO6: 39 | AP6: 1450000000 | AQ6: 750000000 | AR6: 550000000 | AS6: 454900000 | AT6: 3204900000 | AU6: 1 | AV6: 0 | AW6: 0 | AX6: 0 | AY6: 0 | AZ6: Bajo | BA6: Bajo | BB6: 0.1853444362 | BC6: 0 | BD6: 0 | BH6: 0 | BI6: 2021_1 | BJ6: 119 | BK6: 119 | BL6: 0 | BM6: 0 | BN6: 0 | BO6: 0 | BP6: 0 | BQ6: 0 | BR6: 0 | BS6: 0 | BT6: 0 | BU6: 0 | BV6: 0 | CA6: 1408331000 | CB6: 1408331000 | CC6: 0 | CD6: 0 | CE6: 0 | CF6: 163500000 | CG6: 0 | CH6: 0 | CI6: 0 | CJ6: 163500000 | CK6: 3250000 | CL6: 3250000 | CM6: 0 | CN6: 0 | CO6: 0 | CP6: Corte 31 marzo de 2021: Las contrataciones adjudicadas no contribuyen al avance directo de la meta. | CV6: =VLOOKUP(AG6,'Anexo ODS'!$G$3:$P$86,5,0) -> 3 | CW6: =VLOOKUP(AG6,'Anexo ODS'!$G$3:$P$86,6,0) -> La Prosperidad | CX6: =VLOOKUP(AG6,'Anexo ODS'!$G$3:$P$86,7,0) -> 8 | CY6: =VLOOKUP(AG6,'Anexo ODS'!$G$3:$P$86,8,0) -> Trabajo decente y crecimiento económico | CZ6: =VLOOKUP(AG6,'Anexo ODS'!$G$3:$P$86,9,0) -> 8.3 | DA6: =VLOOKUP(AG6,'Anexo ODS'!$G$3:$P$86,10,0) -> Promover políticas orientadas al desarrollo que apoyen las actividades productivas, la creación de puestos de trabajo decentes, el emprendimiento, la creatividad y la innovación, y fomentar la formalización y el crecimiento de las microempresas y las pequeñas y medianas empresas, incluso mediante el acceso a servicios financieros | DJ6: 267 | DK6: Anexo 2 (15%)
A7: 6 | B7: 1 | C7: Usaquén | D7: 1 | E7: Hacer un nuevo contrato social con igualdad de oportunidades para la inclusión social, productiva y política | F7: 6 | G7: Sistema Distrital de Cuidado | L7: 6 | M7: Promover en 210 Mipymes y/o emprendimientos procesos de reconversión hacia actividades sostenibles | N7: 1941 | O7: Reactivación económica por Usaquén | P7: REACTIVACIÓN | Q7: Suma | R7: 4 | S7: Promover | T7: 210 | U7: Mipymes | V7: y/o emprendimientos procesos de reconversión hacia actividades sostenibles | W7: Promover en 210 Mipymes y/o emprendimientos procesos de reconversión hacia actividades sostenibles | X7: =VLOOKUP(AG7,'Anexo PMR'!$B$4:$G$87,6,0) -> 2_Presupuestos Participativos 50% | Y7: 5 | Z7: Desarrollo de la Economía Local | AA7: Reactivación y reconversión verde | AB7: 89 | AC7: DESARROLLO ECONÓMICO, INDUSTRIA Y TURISMO | AD7: 14 | AE7: Servicios de asesoría, asistencia técnica integral, dotación y/o apoyo financiero a Mipymes y/o emprendimientos. | AF7: 22 | AG7: Número de Mipymes y/o emprendimientos con procesos de reconversión hacia actividades sostenibles | AH7: DESARROLLO DE LA ECONOMÍA LOCAL | AL7: 86 | AM7: 50 | AN7: 42 | AO7: 32 | AP7: 900000000 | AQ7: 500000000 | AR7: 421000000 | AS7: 320540000 | AT7: 2141540000 | AU7: 1 | AV7: 0 | AW7: 0 | AX7: 0 | AY7: 0 | AZ7: Bajo | BA7: Bajo | BB7: 0.1238486455 | BC7: 0 | BD7: 0 | BH7: 0 | BI7: 2021_1 | BJ7: 86 | BK7: 86 | BL7: 0 | BM7: 0 | BN7: 0 | BO7: 0 | BP7: 0 | BQ7: 0 | BR7: 0 | BS7: 0 | BT7: 0 | BU7: 0 | BV7: 0 | CA7: 874137000 | CB7: 874137000 | CC7: 0 | CD7: 0 | CE7: 0 | CF7: 52332000 | CG7: 0 | CH7: 0 | CI7: 0 | CJ7: 52332000 | CK7: 0 | CL7: 0 | CM7: 0 | CN7: 0 | CO7: 0 | CP7: Corte 31 marzo de 2021: Las contrataciones adjudicadas no contribuyen al avance directo de la meta. | CV7: =VLOOKUP(AG7,'Anexo ODS'!$G$3:$P$86,5,0) -> 3 | CW7: =VLOOKUP(AG7,'Anexo ODS'!$G$3:$P$86,6,0) -> La Prosperidad | CX7: =VLOOKUP(AG7,'Anexo ODS'!$G$3:$P$86,7,0) -> 8 | CY7: =VLOOKUP(AG7,'Anexo ODS'!$G$3:$P$86,8,0) -> Trabajo decente y crecimiento económico | CZ7: =VLOOKUP(AG7,'Anexo ODS'!$G$3:$P$86,9,0) -> 8.3 | DA7: =VLOOKUP(AG7,'Anexo ODS'!$G$3:$P$86,10,0) -> Promover políticas orientadas al desarrollo que apoyen las actividades productivas, la creación de puestos de trabajo decentes, el emprendimiento, la creatividad y la innovación, y fomentar la formalización y el crecimiento de las microempresas y las pequeñas y medianas empresas, incluso mediante el acceso a servicios financieros | DJ7: 210 | DK7: Anexo 2 (15%)
A8: 7 | B8: 1 | C8: Usaquén | D8: 1 | E8: Hacer un nuevo contrato social con igualdad de oportunidades para la inclusión social, productiva y política | F8: 6 | G8: Sistema Distrital de Cuidado | L8: 7 | M8: Beneficiar 711 personas con discapacidad a través de Dispositivos de Asistencia Personal - Ayudas Técnicas (no incluidas en los Planes de Beneficios). | N8: 1961 | O8: Usaquén te cuida | P8: DISPOSITIVOS DE ASISTENCIA PERSONAL | Q8: Suma | R8: 1 | S8: Beneficiar | T8: 711 | U8: Personas | V8: con discapacidad a través de Dispositivos de Asistencia Personal - Ayudas Técnicas (no incluidas en los Planes de Beneficios). | W8: Beneficiar 711 personas con discapacidad a través de Dispositivos de Asistencia Personal - Ayudas Técnicas (no incluidas en los Planes de Beneficios). | X8: =VLOOKUP(AG8,'Anexo PMR'!$B$4:$G$87,6,0) -> 3_Flexible 5% | Y8: 11 | Z8: Condiciones de salud | AA8: Dispositivos de asistencia personal -DAP- Ayudas técnicas a personas con discapacidad (No incluidas en el POS). | AB8: 91 | AC8: SALUD | AD8: 16 | AE8: Promoción, prevención e intervención en salud. | AF8: 33 | AG8: Número de personas con discapacidad beneficiadas con Dispostivos de Asistencia Personal - Ayudas Técnicas (no incluidas en los Planes de Beneficios). | AH8: ATENCIÓN A LA DISCAPACIDAD Y SUS CUIDADORES | AL8: 175 | AM8: 178 | AN8: 179 | AO8: 179 | AP8: 341530000 | AQ8: 352020000 | AR8: 363150000 | AS8: 374690000 | AT8: 1431390000 | AU8: 1 | AV8: 0 | AW8: 0 | AX8: 0 | AY8: 0 | AZ8: Bajo | BA8: Bajo | BB8: 0.08277954775 | BC8: 0 | BD8: 0 | BH8: 0 | BI8: 2021_1 | BJ8: 175 | BK8: 175 | BL8: 0 | BM8: 0 | BN8: 0 | BO8: 0 | BP8: 0 | BQ8: 0 | BR8: 0 | BS8: 0 | BT8: 0 | BU8: 0 | BV8: 0 | CA8: 331715000 | CB8: 331715000 | CC8: 0 | CD8: 0 | CE8: 0 | CF8: 71500000 | CG8: 0 | CH8: 0 | CI8: 0 | CJ8: 71500000 | CK8: 0 | CL8: 0 | CM8: 0 | CN8: 0 | CO8: 0 | CP8: Corte 31 marzo 2021: La contratación reportada no contribuye al avance de la magnitud de la meta. | CV8: =VLOOKUP(AG8,'Anexo ODS'!$G$3:$P$86,5,0) -> 3 | CW8: =VLOOKUP(AG8,'Anexo ODS'!$G$3:$P$86,6,0) -> La Prosperidad | CX8: =VLOOKUP(AG8,'Anexo ODS'!$G$3:$P$86,7,0) -> 10 | CY8: =VLOOKUP(AG8,'Anexo ODS'!$G$3:$P$86,8,0) -> Reducción de las desigualdades | CZ8: =VLOOKUP(AG8,'Anexo ODS'!$G$3:$P$86,9,0) -> 10.2 | DA8: =VLOOKUP(AG8,'Anexo ODS'!$G$3:$P$86,10,0) -> De aquí a 2030, potenciar y promover la inclusión social, económica y política de todas las personas, independientemente de su edad, sexo, discapacidad, raza, etnia, origen, religión o situación económica u otra condición | DJ8: 711 | DK8: Anexo 2 (15%)
A9: 8 | B9: 1 | C9: Usaquén | D9: 1 | E9: Hacer un nuevo contrato social con igualdad de oportunidades para la inclusión social, productiva y política | F9: 6 | G9: Sistema Distrital de Cuidado | L9: 8 | M9: Dotar 1 centro de atención especializado | N9: 1988 | O9: Formación de familia Usaquén | P9: DOTACIÓN CENTROS DE ATENCIÓN ESPECIALIZADOS | Q9: Suma | R9: 1 | S9: Dotar | T9: 1 | U9: Centros | V9: de atención especializado | W9: Dotar 1 centro de atención especializado | X9: =VLOOKUP(AG9,'Anexo PMR'!$B$4:$G$87,6,0) -> 2_Presupuestos Participativos 50% | Y9: 6 | Z9: Infraestructura | AA9: Dotación a Centros Crecer, Renacer. | AB9: 92 | AC9: INTEGRACIÓN SOCIAL | AD9: 5 | AE9: Dotación para la atención y la prestación de los servicios en la infraestructura del sector Integración Social. | AF9: 26 | AG9: Centros de atención especializada dotados | AH9: CENTROS DE ATENCIÓN ESPECIALIZADOS | AL9: 0 | AM9: 0 | AN9: 1 | AO9: 0 | AP9: 0 | AQ9: 0 | AR9: 200000000 | AS9: 0 | AT9: 200000000 | AU9: 1 | AV9: 0 | AW9: 0 | AX9: 0 | AY9: 0 | AZ9: Bajo | BA9: Bajo | BB9: 0.01156631634 | BC9: 0 | BD9: 0 | BH9: 0 | BI9: 2021_1 | BJ9: 0 | BK9: 0 | BL9: 0 | BM9: 0 | BN9: 0 | BO9: 0 | BP9: 0 | BQ9: 0 | BR9: 0 | BS9: 0 | BT9: 0 | BU9: 0 | BV9: 0 | CA9: 0 | CB9: 0 | CC9: 0 | CD9: 0 | CE9: 0 | CG9: 0 | CH9: 0 | CI9: 0 | CJ9: 0 | CM9: 0 | CN9: 0 | CO9: 0 | CV9: =VLOOKUP(AG9,'Anexo ODS'!$G$3:$P$86,5,0) -> 3 | CW9: =VLOOKUP(AG9,'Anexo ODS'!$G$3:$P$86,6,0) -> La Prosperidad | CX9: =VLOOKUP(AG9,'Anexo ODS'!$G$3:$P$86,7,0) -> 10 | CY9: =VLOOKUP(AG9,'Anexo ODS'!$G$3:$P$86,8,0) -> Reducción de las desigualdades | CZ9: =VLOOKUP(AG9,'Anexo ODS'!$G$3:$P$86,9,0) -> 10.2 | DA9: =VLOOKUP(AG9,'Anexo ODS'!$G$3:$P$86,10,0) -> De aquí a 2030, potenciar y promover la inclusión social, económica y política de todas las personas, independientemente de su edad, sexo, discapacidad, raza, etnia, origen, religión o situación económica u otra condición | DJ9: 1 | DK9: Anexo 2 (15%)
A10: 9 | B10: 1 | C10: Usaquén | D10: 1 | E10: Hacer un nuevo contrato social con igualdad de oportunidades para la inclusión social, productiva y política | F10: 6 | G10: Sistema Distrital de Cuidado | L10: 9 | M10: Formar 1020 personas en prevención de violencia intrafamiliar y/o violencia sexual. | N10: 1988 | O10: Formación de familia Usaquén | P10: PREVENCIÓN DE VIOLENCIAS | Q10: Suma | R10: 1 | S10: Formar | T10: 1020 | U10: Personas | V10: en prevención de violencia intrafamiliar y/o violencia sexual. | W10: Formar 1020 personas en prevención de violencia intrafamiliar y/o violencia sexual. | X10: =VLOOKUP(AG10,'Anexo PMR'!$B$4:$G$87,6,0) -> 2_Presupuestos Participativos 50% | Y10: 7 | Z10: Desarrollo social y cultural | AA10: Prevención y atención de violencia intrafamiliar y sexual para poblaciones en situaciones de riesgo y vulneración de derechos. | AB10: 92 | AC10: INTEGRACIÓN SOCIAL | AD10: 2 | AE10: Protección integral a niños y niñas y adolescentes. | AF10: 25 | AG10: Número de Personas formadas u orientadas o sensibilizadas en prevención de violencia intrafamiliar y/o violencia sexual. | AH10: PREVENCIÓN DE LA VIOLENCIA | AL10: 185 | AM10: 185 | AN10: 185 | AO10: 465 | AP10: 500000000 | AQ10: 500000000 | AR10: 500000000 | AS10: 1251990000 | AT10: 2751990000 | AU10: 1 | AV10: 0 | AW10: 0 | AX10: 0 | AY10: 0 | AZ10: Bajo | BA10: Bajo | BB10: 0.1591519346 | BC10: 0 | BD10: 0 | BH10: 0 | BI10: 2021_1 | BJ10: 185 | BK10: 185 | BL10: 0 | BM10: 0 | BN10: 0 | BO10: 0 | BP10: 0 | BQ10: 0 | BR10: 0 | BS10: 0 | BT10: 0 | BU10: 0 | BV10: 0 | CA10: 485631000 | CB10: 485631000 | CC10: 0 | CD10: 0 | CE10: 0 | CF10: 50000000 | CG10: 0 | CH10: 0 | CI10: 0 | CJ10: 50000000 | CK10: 0 | CL10: 0 | CM10: 0 | CN10: 0 | CO10: 0 | CP10: Corte 31 marzo 2021: La contratación reportada no contribuye al avance de la magnitud de la meta. | CV10: =VLOOKUP(AG10,'Anexo ODS'!$G$3:$P$86,5,0) -> 2 | CW10: =VLOOKUP(AG10,'Anexo ODS'!$G$3:$P$86,6,0) -> La Paz | CX10: =VLOOKUP(AG10,'Anexo ODS'!$G$3:$P$86,7,0) -> 16 | CY10: =VLOOKUP(AG10,'Anexo ODS'!$G$3:$P$86,8,0) -> Paz, justicia e instituciones sólidas | CZ10: =VLOOKUP(AG10,'Anexo ODS'!$G$3:$P$86,9,0) -> 16.1 | DA10: =VLOOKUP(AG10,'Anexo ODS'!$G$3:$P$86,10,0) -> Reducir significativamente todas las formas de violencia y las correspondientes tasas de mortalidad en todo el mundo | DJ10: 1020 | DK10: Anexo 2 (15%)
A11: 10 | B11: 1 | C11: Usaquén | D11: 1 | E11: Hacer un nuevo contrato social con igualdad de oportunidades para la inclusión social, productiva y política | F11: 6 | G11: Sistema Distrital de Cuidado | L11: 10 | M11: Dotar 11 Sedes de atención a la primera infancia y/o adolescencia (jardines infantiles y Centros Amar). | N11: 1988 | O11: Formación de familia Usaquén | P11: DOTACIÓN JARDINES IFANTILES Y CENTROS AMAR | Q11: Suma | R11: 2 | S11: Dotar | T11: 11 | U11: Sedes | V11: de atención a la primera infancia y/o adolescencia (jardines infantiles y Centros Amar). | W11: Dotar 11 Sedes de atención a la primera infancia y/o adolescencia (jardines infantiles y Centros Amar). | X11: =VLOOKUP(AG11,'Anexo PMR'!$B$4:$G$87,6,0) -> 2_Presupuestos Participativos 50% | Y11: 6 | Z11: Infraestructura | AA11: Dotación a Jardines Infantiles, Centros Amar y Forjar. | AB11: 92 | AC11: INTEGRACIÓN SOCIAL | AD11: 2 | AE11: Protección integral a niños y niñas y adolescentes. | AF11: 28 | AG11: Sedes de atención a la primera infancia y/o adolescencia dotadas. | AH11: JARDINES INFANTILES Y CENTROS AMAR | AL11: 0 | AM11: 0 | AN11: 11 | AO11: 0 | AP11: 0 | AQ11: 0 | AR11: 770400000 | AS11: 0 | AT11: 770400000 | AU11: 1 | AV11: 0 | AW11: 0 | AX11: 0 | AY11: 0 | AZ11: Bajo | BA11: Bajo | BB11: 0.04455345055 | BC11: 0 | BD11: 0 | BH11: 0 | BI11: 2021_1 | BJ11: 0 | BK11: 0 | BL11: 0 | BM11: 0 | BN11: 0 | BO11: 0 | BP11: 0 | BQ11: 0 | BR11: 0 | BS11: 0 | BT11: 0 | BU11: 0 | BV11: 0 | CA11: 0 | CB11: 0 | CC11: 0 | CD11: 0 | CE11: 0 | CG11: 0 | CH11: 0 | CI11: 0 | CJ11: 0 | CM11: 0 | CN11: 0 | CO11: 0 | CV11: =VLOOKUP(AG11,'Anexo ODS'!$G$3:$P$86,5,0) -> 1 | CW11: =VLOOKUP(AG11,'Anexo ODS'!$G$3:$P$86,6,0) -> Las Personas | CX11: =VLOOKUP(AG11,'Anexo ODS'!$G$3:$P$86,7,0) -> 1 | CY11: =VLOOKUP(AG11,'Anexo ODS'!$G$3:$P$86,8,0) -> Fin de la Pobreza | CZ11: =VLOOKUP(AG11,'Anexo ODS'!$G$3:$P$86,9,0) -> 1.2 | DA11: =VLOOKUP(AG11,'Anexo ODS'!$G$3:$P$86,10,0) -> De aquí a 2030, reducir al menos a la mitad la proporción de hombres, mujeres y niños de todas las edades que viven en la pobreza en todas sus dimensiones con arreglo a las definiciones nacionales | DJ11: 11 | DK11: Anexo 1 (85%)
A12: 11 | B12: 1 | C12: Usaquén | D12: 1 | E12: Hacer un nuevo contrato social con igualdad de oportunidades para la inclusión social, productiva y política | F12: 6 | G12: Sistema Distrital de Cuidado | L12: 11 | M12: Dotar 1 Centro de Desarrollo comunitario. | N12: 1988 | O12: Formación de familia Usaquén | P12: DOTACIÓN CDC | Q12: Suma | R12: 3 | S12: Dotar | T12: 1 | U12: Centros | V12: de Desarrollo comunitario. | W12: Dotar 1 Centro de Desarrollo comunitario. | X12: =VLOOKUP(AG12,'Anexo PMR'!$B$4:$G$87,6,0) -> 2_Presupuestos Participativos 50% | Y12: 6 | Z12: Infraestructura | AA12: Dotación Centros de Desarrollo Comunitario. | AB12: 92 | AC12: INTEGRACIÓN SOCIAL | AD12: 5 | AE12: Dotación para la atención y la prestación de los servicios en la infraestructura del sector Integración Social. | AF12: 27 | AG12: Sedes de Centros de Desarrollo comunitarios dotados | AH12: CENTROS DE DESARROLLO COMUNITARIO | AL12: 0 | AM12: 0 | AN12: 1 | AO12: 0 | AP12: 0 | AQ12: 0 | AR12: 352000000 | AS12: 0 | AT12: 352000000 | AU12: 1 | AV12: 0 | AW12: 0 | AX12: 0 | AY12: 0 | AZ12: Bajo | BA12: Bajo | BB12: 0.02035671676 | BC12: 0 | BD12: 0 | BH12: 0 | BI12: 2021_1 | BJ12: 0 | BK12: 0 | BL12: 0 | BM12: 0 | BN12: 0 | BO12: 0 | BP12: 0 | BQ12: 0 | BR12: 0 | BS12: 0 | BT12: 0 | BU12: 0 | BV12: 0 | CA12: 0 | CB12: 0 | CC12: 0 | CD12: 0 | CE12: 0 | CG12: 0 | CH12: 0 | CI12: 0 | CJ12: 0 | CM12: 0 | CN12: 0 | CO12: 0 | CV12: =VLOOKUP(AG12,'Anexo ODS'!$G$3:$P$86,5,0) -> 3 | CW12: =VLOOKUP(AG12,'Anexo ODS'!$G$3:$P$86,6,0) -> La Prosperidad | CX12: =VLOOKUP(AG12,'Anexo ODS'!$G$3:$P$86,7,0) -> 10 | CY12: =VLOOKUP(AG12,'Anexo ODS'!$G$3:$P$86,8,0) -> Reducción de las desigualdades | CZ12: =VLOOKUP(AG12,'Anexo ODS'!$G$3:$P$86,9,0) -> 10.2 | DA12: =VLOOKUP(AG12,'Anexo ODS'!$G$3:$P$86,10,0) -> De aquí a 2030, potenciar y promover la inclusión social, económica y política de todas las personas, independientemente de su edad, sexo, discapacidad, raza, etnia, origen, religión o situación económica u otra condición | DJ12: 1 | DK12: Anexo 1 (85%)
A13: 12 | B13: 1 | C13: Usaquén | D13: 1 | E13: Hacer un nuevo contrato social con igualdad de oportunidades para la inclusión social, productiva y política | F13: 6 | G13: Sistema Distrital de Cuidado | L13: 12 | M13: Vincular 711 mujeres cuidadoras a estrategias de cuidado | N13: 1989 | O13: Usaquén cuidadora | P13: ESTRATEGIAS DE CUIDADO | Q13: Suma | R13: 4 | S13: Vincular | T13: 711 | U13: Mujeres | V13: cuidadoras a estrategias de cuidado | W13: Vincular 711 mujeres cuidadoras a estrategias de cuidado | X13: =VLOOKUP(AG13,'Anexo PMR'!$B$4:$G$87,6,0) -> 2_Presupuestos Participativos 50% | Y13: 7 | Z13: Desarrollo social y cultural | AA13: Estrategias de cuidado para cuidadoras, cuidadores y a personas con discapacidad | AB13: 100 | AC13: MUJERES | AD13: 15 | AE13: Estrategias del cuidado para cuidadoras. | AF13: 30 | AG13: Mujeres cuidadoras vinculadas a estrategias de cuidado | AH13: ESTRATEGIAS DE CUIDADO | AL13: 175 | AM13: 178 | AN13: 179 | AO13: 179 | AP13: 300000000 | AQ13: 350000000 | AR13: 500000000 | AS13: 676460000 | AT13: 1826460000 | AU13: 1 | AV13: 0 | AW13: 0 | AX13: 0 | AY13: 0 | AZ13: Bajo | BA13: Bajo | BB13: 0.1056270707 | BC13: 0 | BD13: 0 | BH13: 0 | BI13: 2021_1 | BJ13: 175 | BK13: 175 | BL13: 0 | BM13: 0 | BN13: 0 | BO13: 0 | BP13: 0 | BQ13: 0 | BR13: 0 | BS13: 0 | BT13: 0 | BU13: 0 | BV13: 0 | CA13: 291379000 | CB13: 291379000 | CC13: 0 | CD13: 0 | CE13: 0 | CF13: 24000000 | CG13: 0 | CH13: 0 | CI13: 0 | CJ13: 24000000 | CK13: 0 | CL13: 0 | CM13: 0 | CN13: 0 | CO13: 0 | CP13: Corte 31 marzo 2021: La contratación reportada no contribuye al avance de la magnitud de la meta. | CV13: =VLOOKUP(AG13,'Anexo ODS'!$G$3:$P$86,5,0) -> 1 | CW13: =VLOOKUP(AG13,'Anexo ODS'!$G$3:$P$86,6,0) -> Las Personas | CX13: =VLOOKUP(AG13,'Anexo ODS'!$G$3:$P$86,7,0) -> 5 | CY13: =VLOOKUP(AG13,'Anexo ODS'!$G$3:$P$86,8,0) -> Igualdad de género | CZ13: =VLOOKUP(AG13,'Anexo ODS'!$G$3:$P$86,9,0) -> 5.4 | DA13: =VLOOKUP(AG13,'Anexo ODS'!$G$3:$P$86,10,0) -> Reconocer y valorar los cuidados y el trabajo doméstico no remunerados mediante servicios públicos, infraestructuras y políticas de protección social, y promoviendo la responsabilidad compartida en el hogar y la familia, según proceda en cada país | DJ13: 711 | DK13: Anexo 1 (85%)
A14: 13 | B14: 1 | C14: Usaquén | D14: 1 | E14: Hacer un nuevo contrato social con igualdad de oportunidades para la inclusión social, productiva y política | F14: 12 | G14: Educación inicial: Bases sólidas para la vida | L14: 13 | M14: Implementar 12 Proyectos para el desarrollo integral de la primera infancia y la relación escuela, familia y comunidad. | N14: 1943 | O14: Oportunidades para la primera infancia | P14: EDUCACIÓN INICIAL | Q14: Suma | R14: 1 | S14: Implementar | T14: 12 | U14: Proyectos | V14: para el desarrollo integral de la primera infancia y la relación escuela, familia y comunidad. | W14: Implementar 12 Proyectos para el desarrollo integral de la primera infancia y la relación escuela, familia y comunidad. | X14: =VLOOKUP(AG14,'Anexo PMR'!$B$4:$G$87,6,0) -> 1_Inflexible 45% | Y14: 4 | Z14: Educación superior y primera infancia (10%) | AA14: Apoyo para educación inicial. | AB14: 90 | AC14: EDUCACIÓN | AD14: 2 | AE14: Protección integral a niños y niñas y adolescentes. | AF14: 3 | AG14: Proyectos para el desarrollo integral de la primera infancia y la relación escuela, familia y comunidad. | AH14: PROYECTOS PRIMERA INFANCIA | AL14: 3 | AM14: 3 | AN14: 3 | AO14: 3 | AP14: 371120000 | AQ14: 382520000 | AR14: 394610000 | AS14: 407150000 | AT14: 1555400000 | AU14: 1 | AV14: 0 | AW14: 0 | AX14: 0 | AY14: 0 | AZ14: Bajo | BA14: Bajo | BB14: 1 | BC14: 0 | BD14: 0 | BH14: 0 | BI14: 2021_1 | BJ14: 3 | BK14: 3 | BL14: 0 | BM14: 0 | BN14: 0 | BO14: 0 | BP14: 0 | BQ14: 0 | BR14: 0 | BS14: 0 | BT14: 0 | BU14: 0 | BV14: 0 | CA14: 360455000 | CB14: 360455000 | CC14: 0 | CD14: 0 | CE14: 0 | CF14: 36000000 | CG14: 0 | CH14: 0 | CI14: 0 | CJ14: 36000000 | CK14: 3300000 | CL14: 3300000 | CM14: 0 | CN14: 0 | CO14: 0 | CP14: Corte 31 marzo de 2021: Las contrataciones adjudicadas no contribuyen al avance directo de la meta. | CV14: =VLOOKUP(AG14,'Anexo ODS'!$G$3:$P$86,5,0) -> 1 | CW14: =VLOOKUP(AG14,'Anexo ODS'!$G$3:$P$86,6,0) -> Las Personas | CX14: =VLOOKUP(AG14,'Anexo ODS'!$G$3:$P$86,7,0) -> 4 | CY14: =VLOOKUP(AG14,'Anexo ODS'!$G$3:$P$86,8,0) -> Educación de calidad | CZ14: =VLOOKUP(AG14,'Anexo ODS'!$G$3:$P$86,9,0) -> 4.2 | DA14: =VLOOKUP(AG14,'Anexo ODS'!$G$3:$P$86,10,0) -> De aquí a 2030, asegurar que todas las niñas y todos los niños tengan acceso a servicios de atención y desarrollo en la primera infancia y educación preescolar de calidad, a fin de que estén preparados para la enseñanza primaria. | DJ14: 12 | DK14: Anexo 1 (85%)
A15: 14 | B15: 1 | C15: Usaquén | D15: 1 | E15: Hacer un nuevo contrato social con igualdad de oportunidades para la inclusión social, productiva y política | F15: 14 | G15: Formación integral: más y mejor tiempo en los colegios | L15: 14 | M15: Dotar 10 sedes educativas urbanas | N15: 1947 | O15: Dotaciones tecnológicas para al innovación en educación | P15: DOTACIÓN | Q15: Suma | R15: 1 | S15: Dotar | T15: 10 | U15: Sedes | V15: educativas urbanas | W15: Dotar 10 sedes educativas urbanas | X15: =VLOOKUP(AG15,'Anexo PMR'!$B$4:$G$87,6,0) -> 2_Presupuestos Participativos 50% | Y15: 6 | Z15: Infraestructura | AA15: Dotación pedagógica a colegios. | AB15: 90 | AC15: EDUCACIÓN | AD15: 3 | AE15: Infraestructura y dotación escolar. | AF15: 4 | AG15: Sedes educativas urbanas y rurales dotadas | AH15: SEDES EDUCATIVAS | AL15: 0 | AM15: 3 | AN15: 3 | AO15: 4 | AP15: 0 | AQ15: 200000000 | AR15: 200000000 | AS15: 372060000 | AT15: 772060000 | AU15: 1 | AV15: 0 | AW15: 0 | AX15: 0 | AY15: 0 | AZ15: Bajo | BA15: Bajo | BB15: 1 | BC15: 0 | BD15: 0 | BH15: 0 | BI15: 2021_1 | BJ15: 0 | BK15: 0 | BL15: 0 | BM15: 0 | BN15: 0 | BO15: 0 | BP15: 0 | BQ15: 0 | BR15: 0 | BS15: 0 | BT15: 0 | BU15: 0 | BV15: 0 | CA15: 0 | CB15: 0 | CC15: 0 | CD15: 0 | CE15: 0 | CG15: 0 | CH15: 0 | CI15: 0 | CJ15: 0 | CM15: 0 | CN15: 0 | CO15: 0 | CV15: =VLOOKUP(AG15,'Anexo ODS'!$G$3:$P$86,5,0) -> 1 | CW15: =VLOOKUP(AG15,'Anexo ODS'!$G$3:$P$86,6,0) -> Las Personas | CX15: =VLOOKUP(AG15,'Anexo ODS'!$G$3:$P$86,7,0) -> 4 | CY15: =VLOOKUP(AG15,'Anexo ODS'!$G$3:$P$86,8,0) -> Educación de calidad | CZ15: =VLOOKUP(AG15,'Anexo ODS'!$G$3:$P$86,9,0) -> 4.7 | DA15: =VLOOKUP(AG15,'Anexo ODS'!$G$3:$P$86,10,0) -> De aquí a 2030, asegurar que todos los alumnos adquieran los conocimientos teóricos y prácticos necesarios para promover el desarrollo sostenible, entre otras cosas mediante la educación para el desarrollo sostenible y los estilos de vida sostenibles, los derechos humanos, la igualdad de género, la promoción de una cultura de paz y no violencia, la ciudadanía mundial y la valoración de la diversidad cultural y la contribución de la cultura al desarrollo sostenible | DJ15: 10 | DK15: Anexo 1 (85%)
A16: 15 | B16: 1 | C16: Usaquén | D16: 1 | E16: Hacer un nuevo contrato social con igualdad de oportunidades para la inclusión social, productiva y política | F16: 17 | G16: Jóvenes con capacidades: Proyecto de vida para la ciudadanía, la innovación y el trabajo del siglo XXI | L16: 15 | M16: Beneficiar 250 estudiantes de programas de educación superior con apoyo de sostenimiento para la permanencia | N16: 1687 | O16: Usaquén, territorio de oportunidades para los jóvenes | P16: SOSTENIMIENTO | Q16: Suma | R16: 1 | S16: Beneficiar | T16: 250 | U16: estudiantes | V16: de programas de educación superior con apoyo de sostenimiento para la permanencia | W16: Beneficiar 250 estudiantes de programas de educación superior con apoyo de sostenimiento para la permanencia | X16: =VLOOKUP(AG16,'Anexo PMR'!$B$4:$G$87,6,0) -> 1_Inflexible 45% | Y16: 4 | Z16: Educación superior y primera infancia (10%) | AA16: Apoyo para educación superior. | AB16: 90 | AC16: EDUCACIÓN | AD16: 4 | AE16: Apoyo a la educación superior. | AF16: 6 | AG16: Número de estudiantes de programas de educación superior con apoyo de sostenimiento para la permanencia. | AH16: EDUCACIÓN SUPERIOR | AL16: 60 | AM16: 63 | AN16: 63 | AO16: 64 | AP16: 104720000 | AQ16: 107940000 | AR16: 111350000 | AS16: 114890000 | AT16: 438900000 | AU16: 1 | AV16: 0 | AW16: 0 | AX16: 0 | AY16: 0 | AZ16: Bajo | BA16: Bajo | BB16: 0.03135333689 | BC16: 0 | BD16: 0 | BH16: 0 | BI16: 2021_1 | BJ16: 60 | BK16: 60 | BL16: 0 | BM16: 0 | BN16: 0 | BO16: 0 | BP16: 0 | BQ16: 0 | BR16: 0 | BS16: 0 | BT16: 0 | BU16: 0 | BV16: 0 | CA16: 101711000 | CB16: 101711000 | CC16: 0 | CD16: 0 | CE16: 0 | CG16: 0 | CH16: 0 | CI16: 0 | CJ16: 0 | CM16: 0 | CN16: 0 | CO16: 0 | CV16: =VLOOKUP(AG16,'Anexo ODS'!$G$3:$P$86,5,0) -> 1 | CW16: =VLOOKUP(AG16,'Anexo ODS'!$G$3:$P$86,6,0) -> Las Personas | CX16: =VLOOKUP(AG16,'Anexo ODS'!$G$3:$P$86,7,0) -> 4 | CY16: =VLOOKUP(AG16,'Anexo ODS'!$G$3:$P$86,8,0) -> Educación de calidad | CZ16: =VLOOKUP(AG16,'Anexo ODS'!$G$3:$P$86,9,0) -> 4.3 | DA16: =VLOOKUP(AG16,'Anexo ODS'!$G$3:$P$86,10,0) -> De aquí a 2030, asegurar el acceso igualitario de todos los hombres y las mujeres a una formación técnica, profesional y superior de calidad, incluida la enseñanza universitaria. | DJ16: 250 | DK16: Anexo 1 (85%)
A17: 16 | B17: 1 | C17: Usaquén | D17: 1 | E17: Hacer un nuevo contrato social con igualdad de oportunidades para la inclusión social, productiva y política | F17: 17 | G17: Jóvenes con capacidades: Proyecto de vida para la ciudadanía, la innovación y el trabajo del siglo XXI | L17: 16 | M17: Beneficiar 250 personas con apoyo para la educación superior | N17: 1687 | O17: Usaquén, territorio de oportunidades para los jóvenes | P17: APOYO EDUCACIÓN SUPERIOR | Q17: Suma | R17: 1 | S17: Beneficiar | T17: 250 | U17: Personas | V17: con apoyo para la educación superior | W17: Beneficiar 250 personas con apoyo para la educación superior | X17: =VLOOKUP(AG17,'Anexo PMR'!$B$4:$G$87,6,0) -> 1_Inflexible 45% | Y17: 4 | Z17: Educación superior y primera infancia (10%) | AA17: Apoyo para educación superior. | AB17: 90 | AC17: EDUCACIÓN | AD17: 4 | AE17: Apoyo a la educación superior. | AF17: 5 | AG17: Personas beneficiadas con apoyo para la educación superior | AH17: EDUCACIÓN SUPERIOR | AL17: 60 | AM17: 63 | AN17: 63 | AO17: 64 | AP17: 3235360000 | AQ17: 3334720000 | AR17: 3440100000 | AS17: 3549430000 | AT17: 13559610000 | AU17: 1 | AV17: 0 | AW17: 0 | AX17: 0 | AY17: 0 | AZ17: Bajo | BA17: Bajo | BB17: 0.9686466631 | BC17: 0 | BD17: 0 | BH17: 0 | BI17: 2021_1 | BJ17: 60 | BK17: 60 | BL17: 0 | BM17: 0 | BN17: 0 | BO17: 0 | BP17: 0 | BQ17: 0 | BR17: 0 | BS17: 0 | BT17: 0 | BU17: 0 | BV17: 0 | BW17: No mueve meta | CA17: 3142385000 | CB17: 3142385000 | CC17: 0 | CD17: 0 | CE17: 0 | CF17: 212810000 | CG17: 0 | CH17: 0 | CI17: 0 | CJ17: 212810000 | CK17: 581466 | CL17: 581466 | CM17: 0 | CN17: 0 | CO17: 0 | CP17: Corte 31 marzo de 2021: Las contrataciones adjudicadas no contribuyen al avance directo de la meta. | CV17: =VLOOKUP(AG17,'Anexo ODS'!$G$3:$P$86,5,0) -> 1 | CW17: =VLOOKUP(AG17,'Anexo ODS'!$G$3:$P$86,6,0) -> Las Personas | CX17: =VLOOKUP(AG17,'Anexo ODS'!$G$3:$P$86,7,0) -> 4 | CY17: =VLOOKUP(AG17,'Anexo ODS'!$G$3:$P$86,8,0) -> Educación de calidad | CZ17: =VLOOKUP(AG17,'Anexo ODS'!$G$3:$P$86,9,0) -> 4.3 | DA17: =VLOOKUP(AG17,'Anexo ODS'!$G$3:$P$86,10,0) -> De aquí a 2030, asegurar el acceso igualitario de todos los hombres y las mujeres a una formación técnica, profesional y superior de calidad, incluida la enseñanza universitaria. | DJ17: 250 | DK17: Anexo 1 (85%)
A18: 17 | B18: 1 | C18: Usaquén | D18: 1 | E18: Hacer un nuevo contrato social con igualdad de oportunidades para la inclusión social, productiva y política | F18: 20 | G18: Bogotá, referente en cultura, deporte, recreación y actividad física, con parques para el desarrollo y la salud | L18: 17 | M18: Vincular 9142 personas en actividades recreodeportivas comunitarias | N18: 1939 | O18: Usaquén deportiva y recreativa | P18: EVENTOS | Q18: Suma | R18: 2 | S18: Vincular | T18: 9142 | U18: Personas | V18: en actividades recreodeportivas comunitarias | W18: Vincular 9142 personas en actividades recreodeportivas comunitarias | X18: =VLOOKUP(AG18,'Anexo PMR'!$B$4:$G$87,6,0) -> 2_Presupuestos Participativos 50% | Y18: 7 | Z18: Desarrollo social y cultural | AA18: Eventos recreo-deportivos. | AB18: 93 | AC18: CULTURA, RECREACIÓN Y DEPORTE | AD18: 7 | AE18: Eventos y actividades recreativas y deportivas. | AF18: 10 | AG18: Personas vinculadas en actividades recreo-deportivas comunitarias | AH18: ACTIVIDAD DEPORTIVA | AL18: 2200 | AM18: 2300 | AN18: 2300 | AO18: 2342 | AP18: 513320000 | AQ18: 529090000 | AR18: 545810000 | AS18: 563150000 | AT18: 2151370000 | AU18: 1 | AV18: 0 | AW18: 0 | AX18: 0 | AY18: 0 | AZ18: Bajo | BA18: Bajo | BB18: 0.5174647386 | BC18: 0 | BD18: 0 | BH18: 0 | BI18: 2021_1 | BJ18: 2200 | BK18: 2200 | BL18: 0 | BM18: 0 | BN18: 0 | BO18: 0 | BP18: 0 | BQ18: 0 | BR18: 0 | BS18: 0 | BT18: 0 | BU18: 0 | BV18: 0 | CA18: 498569000 | CB18: 498569000 | CC18: 0 | CD18: 0 | CE18: 0 | CF18: 47808000 | CG18: 0 | CH18: 0 | CI18: 0 | CJ18: 47808000 | CK18: 0 | CL18: 0 | CM18: 0 | CN18: 0 | CO18: 0 | CP18: Corte 31 marzo de 2021: Las contrataciones adjudicadas no contribuyen al avance directo de la meta. | CV18: =VLOOKUP(AG18,'Anexo ODS'!$G$3:$P$86,5,0) -> 1 | CW18: =VLOOKUP(AG18,'Anexo ODS'!$G$3:$P$86,6,0) -> Las Personas | CX18: =VLOOKUP(AG18,'Anexo ODS'!$G$3:$P$86,7,0) -> 3 | CY18: =VLOOKUP(AG18,'Anexo ODS'!$G$3:$P$86,8,0) -> Salud y Bienestar | CZ18: =VLOOKUP(AG18,'Anexo ODS'!$G$3:$P$86,9,0) -> 3.d | DA18: =VLOOKUP(AG18,'Anexo ODS'!$G$3:$P$86,10,0) -> Reforzar la capacidad de todos los países, en particular los países en desarrollo, en materia de alerta temprana, reducción de riesgos y gestión de los riesgos para la salud nacional y mundial | DJ18: 9142 | DK18: Anexo 1 (85%)
A19: 18 | B19: 1 | C19: Usaquén | D19: 1 | E19: Hacer un nuevo contrato social con igualdad de oportunidades para la inclusión social, productiva y política | F19: 20 | G19: Bogotá, referente en cultura, deporte, recreación y actividad física, con parques para el desarrollo y la salud | L19: 18 | M19: Capacitar 680 personas en los campos deportivos | N19: 1939 | O19: Usaquén deportiva y recreativa | P19: FORMACIÓN DEPORTIVA | Q19: Suma | R19: 3 | S19: Capacitar | T19: 680 | U19: Personas | V19: en los campos deportivos | W19: Capacitar 680 personas en los campos deportivos | X19: =VLOOKUP(AG19,'Anexo PMR'!$B$4:$G$87,6,0) -> 2_Presupuestos Participativos 50% | Y19: 7 | Z19: Desarrollo social y cultural | AA19: Procesos de formación y dotación de insumos para los campos artísticos, interculturales, culturales, patrimoniales y deportivos. | AB19: 93 | AC19: CULTURA, RECREACIÓN Y DEPORTE | AD19: 7 | AE19: Eventos y actividades recreativas y deportivas. | AF19: 11 | AG19: Personas capacitadas en los campos deportivos | AH19: FORMACIÓN DEPORTIVA | AL19: 170 | AM19: 170 | AN19: 170 | AO19: 170 | AP19: 200000000 | AQ19: 200000000 | AR19: 200000000 | AS19: 200000000 | AT19: 800000000 | AU19: 1 | AV19: 0 | AW19: 0 | AX19: 0 | AY19: 0 | AZ19: Bajo | BA19: Bajo | BB19: 0.1924224057 | BC19: 0 | BD19: 0 | BH19: 0 | BI19: 2021_1 | BJ19: 170 | BK19: 170 | BL19: 0 | BM19: 0 | BN19: 0 | BO19: 0 | BP19: 0 | BQ19: 0 | BR19: 0 | BS19: 0 | BT19: 0 | BU19: 0 | BV19: 0 | CA19: 194253000 | CB19: 194253000 | CC19: 0 | CD19: 0 | CE19: 0 | CF19: 18000000 | CG19: 0 | CH19: 0 | CI19: 0 | CJ19: 18000000 | CK19: 0 | CL19: 0 | CM19: 0 | CN19: 0 | CO19: 0 | CP19: Corte 31 marzo de 2021: Las contrataciones adjudicadas no contribuyen al avance directo de la meta. | CV19: =VLOOKUP(AG19,'Anexo ODS'!$G$3:$P$86,5,0) -> 1 | CW19: =VLOOKUP(AG19,'Anexo ODS'!$G$3:$P$86,6,0) -> Las Personas | CX19: =VLOOKUP(AG19,'Anexo ODS'!$G$3:$P$86,7,0) -> 4 | CY19: =VLOOKUP(AG19,'Anexo ODS'!$G$3:$P$86,8,0) -> Educación de calidad | CZ19: =VLOOKUP(AG19,'Anexo ODS'!$G$3:$P$86,9,0) -> 4.7 | DA19: =VLOOKUP(AG19,'Anexo ODS'!$G$3:$P$86,10,0) -> De aquí a 2030, asegurar que todos los alumnos adquieran los conocimientos teóricos y prácticos necesarios para promover el desarrollo sostenible, entre otras cosas mediante la educación para el desarrollo sostenible y los estilos de vida sostenibles, los derechos humanos, la igualdad de género, la promoción de una cultura de paz y no violencia, la ciudadanía mundial y la valoración de la diversidad cultural y la contribución de la cultura al desarrollo sostenible | DJ19: 680 | DK19: Anexo 1 (85%)
A20: 19 | B20: 1 | C20: Usaquén | D20: 1 | E20: Hacer un nuevo contrato social con igualdad de oportunidades para la inclusión social, productiva y política | F20: 20 | G20: Bogotá, referente en cultura, deporte, recreación y actividad física, con parques para el desarrollo y la salud | L20: 19 | M20: Beneficiar 680 Personas con artículos deportivos entregados | N20: 1939 | O20: Usaquén deportiva y recreativa | P20: DOTACIÓN | Q20: Suma | R20: 4 | S20: Beneficiar | T20: 680 | U20: Personas | V20: con artículos deportivos entregados | W20: Beneficiar 680 Personas con artículos deportivos entregados | X20: =VLOOKUP(AG20,'Anexo PMR'!$B$4:$G$87,6,0) -> 2_Presupuestos Participativos 50% | Y20: 7 | Z20: Desarrollo social y cultural | AA20: Procesos de formación y dotación de insumos para los campos artísticos, interculturales, culturales, patrimoniales y deportivos. | AB20: 93 | AC20: CULTURA, RECREACIÓN Y DEPORTE | AD20: 7 | AE20: Eventos y actividades recreativas y deportivas. | AF20: 12 | AG20: Personas beneficiadas con artículos entregados. | AH20: ACTIVIDAD DEPORTIVA | AL20: 170 | AM20: 170 | AN20: 170 | AO20: 170 | AP20: 287790000 | AQ20: 296630000 | AR20: 306000000 | AS20: 315730000 | AT20: 1206150000 | AU20: 1 | AV20: 0 | AW20: 0 | AX20: 0 | AY20: 0 | AZ20: Bajo | BA20: Bajo | BB20: 0.2901128557 | BC20: 0 | BD20: 0 | BH20: 0 | BI20: 2021_1 | BJ20: 170 | BK20: 170 | BL20: 0 | BM20: 0 | BN20: 0 | BO20: 0 | BP20: 0 | BQ20: 0 | BR20: 0 | BS20: 0 | BT20: 0 | BU20: 0 | BV20: 0 | CA20: 279520000 | CB20: 279520000 | CC20: 0 | CD20: 0 | CE20: 0 | CF20: 36000000 | CG20: 0 | CH20: 0 | CI20: 0 | CJ20: 36000000 | CK20: 0 | CL20: 0 | CM20: 0 | CN20: 0 | CO20: 0 | CP20: Corte 31 marzo de 2021: Las contrataciones adjudicadas no contribuyen al avance directo de la meta. | CV20: =VLOOKUP(AG20,'Anexo ODS'!$G$3:$P$86,5,0) -> 1 | CW20: =VLOOKUP(AG20,'Anexo ODS'!$G$3:$P$86,6,0) -> Las Personas | CX20: =VLOOKUP(AG20,'Anexo ODS'!$G$3:$P$86,7,0) -> 3 | CY20: =VLOOKUP(AG20,'Anexo ODS'!$G$3:$P$86,8,0) -> Salud y Bienestar | CZ20: =VLOOKUP(AG20,'Anexo ODS'!$G$3:$P$86,9,0) -> 3.d | DA20: =VLOOKUP(AG20,'Anexo ODS'!$G$3:$P$86,10,0) -> Reforzar la capacidad de todos los países, en particular los países en desarrollo, en materia de alerta temprana, reducción de riesgos y gestión de los riesgos para la salud nacional y mundial | DJ20: 680 | DK20: Anexo 1 (85%)
A21: 20 | B21: 1 | C21: Usaquén | D21: 1 | E21: Hacer un nuevo contrato social con igualdad de oportunidades para la inclusión social, productiva y política | F21: 21 | G21: Creación y vida cotidiana: Apropiación ciudadana del arte, la cultura y el patrimonio, para la democracia cultural | L21: 20 | M21: Capacitar 680 personas en los campos artísticos, interculturales, culturales y/o patrimoniales. | N21: 1992 | O21: Usaquén cultura creativa y diversa | P21: FORMACIÓN | Q21: Suma | R21: 1 | S21: Capacitar | T21: 680 | U21: Personas | V21: en los campos artísticos, interculturales, culturales y/o patrimoniales. | W21: Capacitar 680 personas en los campos artísticos, interculturales, culturales y/o patrimoniales. | X21: =VLOOKUP(AG21,'Anexo PMR'!$B$4:$G$87,6,0) -> 2_Presupuestos Participativos 50% | Y21: 7 | Z21: Desarrollo social y cultural | AA21: Procesos de formación y dotación de insumos para los campos artísticos, interculturales, culturales, patrimoniales y deportivos. | AB21: 93 | AC21: CULTURA, RECREACIÓN Y DEPORTE | AD21: 10 | AE21: Formación artística y cultural. | AF21: 15 | AG21: Personas capacitadas en los campos artísticos, interculturales, culturales y/o patrimoniales | AH21: FORMACIÓN CULTURAL | AL21: 170 | AM21: 170 | AN21: 170 | AO21: 170 | AP21: 200000000 | AQ21: 200000000 | AR21: 200000000 | AS21: 200000000 | AT21: 800000000 | AU21: 1 | AV21: 0 | AW21: 0 | AX21: 0 | AY21: 0 | AZ21: Bajo | BA21: Bajo | BB21: 0.1058292049 | BC21: 0 | BD21: 0 | BH21: 0 | BI21: 2021_1 | BJ21: 170 | BK21: 170 | BL21: 0 | BM21: 0 | BN21: 0 | BO21: 0 | BP21: 0 | BQ21: 0 | BR21: 0 | BS21: 0 | BT21: 0 | BU21: 0 | BV21: 0 | CA21: 194253000 | CB21: 194253000 | CC21: 0 | CD21: 0 | CE21: 0 | CG21: 0 | CH21: 0 | CI21: 0 | CJ21: 0 | CM21: 0 | CN21: 0 | CO21: 0 | CV21: =VLOOKUP(AG21,'Anexo ODS'!$G$3:$P$86,5,0) -> 3 | CW21: =VLOOKUP(AG21,'Anexo ODS'!$G$3:$P$86,6,0) -> La Prosperidad | CX21: =VLOOKUP(AG21,'Anexo ODS'!$G$3:$P$86,7,0) -> 11 | CY21: =VLOOKUP(AG21,'Anexo ODS'!$G$3:$P$86,8,0) -> Ciudades y comunidades sostenibles | CZ21: =VLOOKUP(AG21,'Anexo ODS'!$G$3:$P$86,9,0) -> 11.4 | DA21: =VLOOKUP(AG21,'Anexo ODS'!$G$3:$P$86,10,0) -> Redoblar los esfuerzos para proteger y salvaguardar el patrimonio cultural y natural del mundo | DJ21: 680 | DK21: Anexo 2 (15%)
A22: 21 | B22: 1 | C22: Usaquén | D22: 1 | E22: Hacer un nuevo contrato social con igualdad de oportunidades para la inclusión social, productiva y política | F22: 21 | G22: Creación y vida cotidiana: Apropiación ciudadana del arte, la cultura y el patrimonio, para la democracia cultural | L22: 21 | M22: Realizar 16 eventos de promoción de actividades culturales | N22: 1992 | O22: Usaquén cultura creativa y diversa | P22: EVENTOS | Q22: Suma | R22: 1 | S22: Realizar | T22: 16 | U22: Eventos | V22: de promoción de actividades culturales | W22: Realizar 16 eventos de promoción de actividades culturales | X22: =VLOOKUP(AG22,'Anexo PMR'!$B$4:$G$87,6,0) -> 2_Presupuestos Participativos 50% | Y22: 7 | Z22: Desarrollo social y cultural | AA22: Circulación y apropiación de prácticas artísticas, interculturales, culturales y patrimoniales. | AB22: 93 | AC22: CULTURA, RECREACIÓN Y DEPORTE | AD22: 8 | AE22: Espacios artísticos y culturales. | AF22: 13 | AG22: Eventos de promoción de actividades culturales realizadas | AH22: ACTIVIDAD CULTURAL | AL22: 4 | AM22: 4 | AN22: 4 | AO22: 4 | AP22: 460460000 | AQ22: 474610000 | AR22: 489600000 | AS22: 505160000 | AT22: 1929830000 | AU22: 1 | AV22: 0 | AW22: 0 | AX22: 0 | AY22: 0 | AZ22: Bajo | BA22: Bajo | BB22: 0.2552904681 | BC22: 0 | BD22: 0 | BH22: 0 | BI22: 2021_1 | BJ22: 4 | BK22: 4 | BL22: 0 | BM22: 0 | BN22: 0 | BO22: 0 | BP22: 0 | BQ22: 0 | BR22: 0 | BS22: 0 | BT22: 0 | BU22: 0 | BV22: 0 | CA22: 447228000 | CB22: 447228000 | CC22: 0 | CD22: 0 | CE22: 0 | CG22: 0 | CH22: 0 | CI22: 0 | CJ22: 0 | CM22: 0 | CN22: 0 | CO22: 0 | CV22: =VLOOKUP(AG22,'Anexo ODS'!$G$3:$P$86,5,0) -> 3 | CW22: =VLOOKUP(AG22,'Anexo ODS'!$G$3:$P$86,6,0) -> La Prosperidad | CX22: =VLOOKUP(AG22,'Anexo ODS'!$G$3:$P$86,7,0) -> 11 | CY22: =VLOOKUP(AG22,'Anexo ODS'!$G$3:$P$86,8,0) -> Ciudades y comunidades sostenibles | CZ22: =VLOOKUP(AG22,'Anexo ODS'!$G$3:$P$86,9,0) -> 11.4 | DA22: =VLOOKUP(AG22,'Anexo ODS'!$G$3:$P$86,10,0) -> Redoblar los esfuerzos para proteger y salvaguardar el patrimonio cultural y natural del mundo | DJ22: 16 | DK22: Anexo 2 (15%)
A23: 22 | B23: 1 | C23: Usaquén | D23: 1 | E23: Hacer un nuevo contrato social con igualdad de oportunidades para la inclusión social, productiva y política | F23: 21 | G23: Creación y vida cotidiana: Apropiación ciudadana del arte, la cultura y el patrimonio, para la democracia cultural | L23: 22 | M23: Intervenir 1 sede cultural con dotación y/o adecuación | N23: 1992 | O23: Usaquén cultura creativa y diversa | P23: FORTALECIMIENTO INFRAESTRUCTURA | Q23: Suma | R23: 2 | S23: Intervenir | T23: 1 | U23: Sedes | V23: cultural con dotación y/o adecuación | W23: Intervenir 1 sede cultural con dotación y/o adecuación | X23: =VLOOKUP(AG23,'Anexo PMR'!$B$4:$G$87,6,0) -> 2_Presupuestos Participativos 50% | Y23: 6 | Z23: Infraestructura | AA23: Dotación e infraestructura cultural. | AB23: 93 | AC23: CULTURA, RECREACIÓN Y DEPORTE | AD23: 11 | AE23: Infraestructura y dotación a centros artísticos y culturales. | AF23: 16 | AG23: Sedes dotadas/Sedes adecuadas | AH23: SEDES CULTURALES | AL23: 0.25 | AM23: 0.25 | AN23: 0.25 | AO23: 0.25 | AP23: 600000000 | AQ23: 500000000 | AR23: 800000000 | AS23: 655070000 | AT23: 2555070000 | AU23: 1 | AV23: 0 | AW23: 0 | AX23: 0 | AY23: 0 | AZ23: Bajo | BA23: Bajo | BB23: 0.3380012832 | BC23: 0 | BD23: 0 | BH23: 0 | BI23: 2021_1 | BJ23: 0.25 | BK23: 0.25 | BL23: 0 | BM23: 0 | BN23: 0 | BO23: 0 | BP23: 0 | BQ23: 0 | BR23: 0 | BS23: 0 | BT23: 0 | BU23: 0 | BV23: 0 | CA23: 582758000 | CB23: 582758000 | CC23: 0 | CD23: 0 | CE23: 0 | CF23: 61366000 | CG23: 0 | CH23: 0 | CI23: 0 | CJ23: 61366000 | CK23: 3960000 | CL23: 3960000 | CM23: 0 | CN23: 0 | CO23: 0 | CP23: Corte 31 marzo 2021: La contratación reportada no contribuye al avance de la magnitud de la meta. | CV23: =VLOOKUP(AG23,'Anexo ODS'!$G$3:$P$86,5,0) -> 3 | CW23: =VLOOKUP(AG23,'Anexo ODS'!$G$3:$P$86,6,0) -> La Prosperidad | CX23: =VLOOKUP(AG23,'Anexo ODS'!$G$3:$P$86,7,0) -> 9 | CY23: =VLOOKUP(AG23,'Anexo ODS'!$G$3:$P$86,8,0) -> Industria, innovación e infraestructura | CZ23: =VLOOKUP(AG23,'Anexo ODS'!$G$3:$P$86,9,0) -> 9.1 | DA23: =VLOOKUP(AG23,'Anexo ODS'!$G$3:$P$86,10,0) -> Desarrollar infraestructuras fiables, sostenibles, resilientes y de calidad, incluidas infraestructuras regionales y transfronterizas, para apoyar el desarrollo económico y el bienestar humano, haciendo especial hincapié en el acceso asequible y equitativo para todos | DJ23: 1 | DK23: Anexo 2 (15%)
A24: 23 | B24: 1 | C24: Usaquén | D24: 1 | E24: Hacer un nuevo contrato social con igualdad de oportunidades para la inclusión social, productiva y política | F24: 21 | G24: Creación y vida cotidiana: Apropiación ciudadana del arte, la cultura y el patrimonio, para la democracia cultural | L24: 23 | M24: Otorgar 50 estímulos de apoyo al sector artístico y cultural | N24: 1992 | O24: Usaquén cultura creativa y diversa | P24: ESTÍMULOS | Q24: Suma | R24: 2 | S24: Otorgar | T24: 50 | U24: Estímulos | V24: de apoyo al sector artístico y cultural | W24: Otorgar 50 estímulos de apoyo al sector artístico y cultural | X24: =VLOOKUP(AG24,'Anexo PMR'!$B$4:$G$87,6,0) -> 2_Presupuestos Participativos 50% | Y24: 7 | Z24: Desarrollo social y cultural | AA24: Iniciativas de interés cultural, artístico, patrimonial y recreo deportivas. | AB24: 93 | AC24: CULTURA, RECREACIÓN Y DEPORTE | AD24: 9 | AE24: Servicio de apoyo financiero para el desarrollo de prácticas artísticas y culturales en el Distrito de Bogotá. | AF24: 14 | AG24: Estímulos otorgados de apoyo al sector artístico y cultural | AH24: ESTIMULOS CULTURALES | AL24: 12 | AM24: 12 | AN24: 13 | AO24: 13 | AP24: 600000000 | AQ24: 500000000 | AR24: 400000000 | AS24: 774450000 | AT24: 2274450000 | AU24: 1 | AV24: 0 | AW24: 0 | AX24: 0 | AY24: 0 | AZ24: Bajo | BA24: Bajo | BB24: 0.3008790438 | BC24: 0 | BD24: 0 | BH24: 0 | BI24: 2021_1 | BJ24: 12 | BK24: 12 | BL24: 0 | BM24: 0 | BN24: 0 | BO24: 0 | BP24: 0 | BQ24: 0 | BR24: 0 | BS24: 0 | BT24: 0 | BU24: 0 | BV24: 0 | CA24: 582758000 | CB24: 582758000 | CC24: 0 | CD24: 0 | CE24: 0 | CF24: 45000000 | CG24: 0 | CH24: 0 | CI24: 0 | CJ24: 45000000 | CK24: 0 | CL24: 0 | CM24: 0 | CN24: 0 | CO24: 0 | CP24: Corte 31 marzo 2021: La contratación reportada no contribuye al avance de la magnitud de la meta. | CV24: =VLOOKUP(AG24,'Anexo ODS'!$G$3:$P$86,5,0) -> 3 | CW24: =VLOOKUP(AG24,'Anexo ODS'!$G$3:$P$86,6,0) -> La Prosperidad | CX24: =VLOOKUP(AG24,'Anexo ODS'!$G$3:$P$86,7,0) -> 11 | CY24: =VLOOKUP(AG24,'Anexo ODS'!$G$3:$P$86,8,0) -> Ciudades y comunidades sostenibles | CZ24: =VLOOKUP(AG24,'Anexo ODS'!$G$3:$P$86,9,0) -> 11.4 | DA24: =VLOOKUP(AG24,'Anexo ODS'!$G$3:$P$86,10,0) -> Redoblar los esfuerzos para proteger y salvaguardar el patrimonio cultural y natural del mundo | DJ24: 50 | DK24: Anexo 2 (15%)
A25: 24 | B25: 1 | C25: Usaquén | D25: 1 | E25: Hacer un nuevo contrato social con igualdad de oportunidades para la inclusión social, productiva y política | F25: 24 | G25: Bogotá región emprendedora e innovadora | L25: 24 | M25: Implementar 4 acciones de fomento para la agricultura urbana | N25: 1932 | O25: Cultivando en Usaquén | P25: AGRICULTURA URBANA | Q25: Suma | R25: 1 | S25: Implementar | T25: 4 | U25: Acciones | V25: de fomento para la agricultura urbana | W25: Implementar 4 acciones de fomento para la agricultura urbana | X25: =VLOOKUP(AG25,'Anexo PMR'!$B$4:$G$87,6,0) -> 2_Presupuestos Participativos 50% | Y25: 8 | Z25: Inversiones ambientales sostenibles | AA25: Agricultura urbana. | AB25: 94 | AC25: AMBIENTE | AD25: 13 | AE25: Servicios de asesoría, asistencia técnica integral y dotación de infraestructura productiva para la Agricultura urbana y periurbana. | AF25: 19 | AG25: Número acciones de fomento para la agricultura urbana | AH25: AGRICULTURA URBANA | AL25: 1 | AM25: 1 | AN25: 1 | AO25: 1 | AP25: 200000000 | AQ25: 200000000 | AR25: 200000000 | AS25: 527390000 | AT25: 1127390000 | AU25: 1 | AV25: 0 | AW25: 0 | AX25: 0 | AY25: 0 | AZ25: Bajo | BA25: Bajo | BB25: 0.3309263613 | BC25: 0 | BD25: 0 | BH25: 0 | BI25: 2021_1 | BJ25: 1 | BK25: 1 | BL25: 0 | BM25: 0 | BN25: 0 | BO25: 0 | BP25: 0 | BQ25: 0 | BR25: 0 | BS25: 0 | BT25: 0 | BU25: 0 | BV25: 0 | CA25: 194253000 | CB25: 194253000 | CC25: 0 | CD25: 0 | CE25: 0 | CF25: 49500000 | CG25: 0 | CH25: 0 | CI25: 0 | CJ25: 49500000 | CK25: 0 | CL25: 0 | CM25: 0 | CN25: 0 | CO25: 0 | CP25: Corte 31 marzo de 2021: Las contrataciones adjudicadas no contribuyen al avance directo de la meta. | CV25: =VLOOKUP(AG25,'Anexo ODS'!$G$3:$P$86,5,0) -> 4 | CW25: =VLOOKUP(AG25,'Anexo ODS'!$G$3:$P$86,6,0) -> El Planeta | CX25: =VLOOKUP(AG25,'Anexo ODS'!$G$3:$P$86,7,0) -> 12 | CY25: =VLOOKUP(AG25,'Anexo ODS'!$G$3:$P$86,8,0) -> Producción y consumo responsables | CZ25: =VLOOKUP(AG25,'Anexo ODS'!$G$3:$P$86,9,0) -> 12.2 | DA25: =VLOOKUP(AG25,'Anexo ODS'!$G$3:$P$86,10,0) -> De aquí a 2030, lograr la gestión sostenible y el uso eficiente de los recursos naturales | DJ25: 4 | DK25: Anexo 2 (15%)
A26: 25 | B26: 1 | C26: Usaquén | D26: 1 | E26: Hacer un nuevo contrato social con igualdad de oportunidades para la inclusión social, productiva y política | F26: 24 | G26: Bogotá región emprendedora e innovadora | L26: 25 | M26: Financiar 65 proyectos del sector cultural y creativo | N26: 1990 | O26: Usaquén emprendedora y creativa | P26: FORTALECIMIENTO INDUSTRIA CULTURAL | Q26: Suma | R26: 2 | S26: Financiar | T26: 65 | U26: Proyectos | V26: del sector cultural y creativo | W26: Financiar 65 proyectos del sector cultural y creativo | X26: =VLOOKUP(AG26,'Anexo PMR'!$B$4:$G$87,6,0) -> 2_Presupuestos Participativos 50% | Y26: 7 | Z26: Desarrollo social y cultural | AA26: Apoyo y fortalecimiento a las industrias culturales y creativas en las localidades | AB26: 93 | AC26: CULTURA, RECREACIÓN Y DEPORTE | AD26: 9 | AE26: Servicio de apoyo financiero para el desarrollo de prácticas artísticas y culturales en el Distrito de Bogotá. | AF26: 20 | AG26: Número de proyectos financiados y acompañados del sector cultural y creativo. | AH26: ACTIVIDAD CULTURAL | AL26: 15 | AM26: 15 | AN26: 15 | AO26: 20 | AP26: 500000000 | AQ26: 500000000 | AR26: 500000000 | AS26: 779380000 | AT26: 2279380000 | AU26: 1 | AV26: 0 | AW26: 0 | AX26: 0 | AY26: 0 | AZ26: Bajo | BA26: Bajo | BB26: 0.6690736387 | BC26: 0 | BD26: 0 | BH26: 0 | BI26: 2021_1 | BJ26: 15 | BK26: 15 | BL26: 0 | BM26: 0 | BN26: 0 | BO26: 0 | BP26: 0 | BQ26: 0 | BR26: 0 | BS26: 0 | BT26: 0 | BU26: 0 | BV26: 0 | CA26: 485631000 | CB26: 485631000 | CC26: 0 | CD26: 0 | CE26: 0 | CF26: 35319280 | CG26: 0 | CH26: 0 | CI26: 0 | CJ26: 35319280 | CK26: 0 | CL26: 0 | CM26: 0 | CN26: 0 | CO26: 0 | CP26: Corte 31 marzo 2021: La contratación reportada no contribuye al avance de la magnitud de la meta. | CV26: =VLOOKUP(AG26,'Anexo ODS'!$G$3:$P$86,5,0) -> 3 | CW26: =VLOOKUP(AG26,'Anexo ODS'!$G$3:$P$86,6,0) -> La Prosperidad | CX26: =VLOOKUP(AG26,'Anexo ODS'!$G$3:$P$86,7,0) -> 8 | CY26: =VLOOKUP(AG26,'Anexo ODS'!$G$3:$P$86,8,0) -> Trabajo decente y crecimiento económico | CZ26: =VLOOKUP(AG26,'Anexo ODS'!$G$3:$P$86,9,0) -> 8.3 | DA26: =VLOOKUP(AG26,'Anexo ODS'!$G$3:$P$86,10,0) -> Promover políticas orientadas al desarrollo que apoyen las actividades productivas, la creación de puestos de trabajo decentes, el emprendimiento, la creatividad y la innovación, y fomentar la formalización y el crecimiento de las microempresas y las pequeñas y medianas empresas, incluso mediante el acceso a servicios financieros | DJ26: 65 | DK26: Anexo 2 (15%)
A27: 26 | B27: 1 | C27: Usaquén | D27: 2 | E27: Cambiar nuestros hábitos de vida para reverdecer a Bogotá y adaptarnos y mitigar el cambio climático. | F27: 27 | G27: Cambio cultural para la gestión de la crisis climática | L27: 26 | M27: Construir 167 m2 de muros y techos verdes | N27: 1944 | O27: Usaquén más verde | P27: MUROS VERDES | Q27: Suma | R27: 1 | S27: Construir | T27: 167 | U27: Metros cuadrados | V27: de muros y techos verdes | W27: Construir 167 m2 de muros y techos verdes | X27: =VLOOKUP(AG27,'Anexo PMR'!$B$4:$G$87,6,0) -> 2_Presupuestos Participativos 50% | Y27: 8 | Z27: Inversiones ambientales sostenibles | AA27: Eco-urbanismo. | AB27: 94 | AC27: AMBIENTE | AD27: 17 | AE27: Calidad ambiental y preservación del patrimonio natural. | AF27: 39 | AG27: m2 de muros y techos verdes | AH27: INTERVENCIONES VERDES | AL27: 0 | AM27: 0 | AN27: 167 | AO27: 0 | AP27: 0 | AQ27: 0 | AR27: 212620000 | AS27: 0 | AT27: 212620000 | AU27: 1 | AV27: 0 | AW27: 0 | AX27: 0 | AY27: 0 | AZ27: Bajo | BA27: Bajo | BB27: 0.1013813459 | BC27: 0 | BD27: 0 | BH27: 0 | BI27: 2021_1 | BJ27: 0 | BK27: 0 | BL27: 0 | BM27: 0 | BN27: 0 | BO27: 0 | BP27: 0 | BQ27: 0 | BR27: 0 | BS27: 0 | BT27: 0 | BU27: 0 | BV27: 0 | CA27: 0 | CB27: 0 | CC27: 0 | CD27: 0 | CE27: 0 | CG27: 0 | CH27: 0 | CI27: 0 | CJ27: 0 | CM27: 0 | CN27: 0 | CO27: 0 | CV27: =VLOOKUP(AG27,'Anexo ODS'!$G$3:$P$86,5,0) -> 3 | CW27: =VLOOKUP(AG27,'Anexo ODS'!$G$3:$P$86,6,0) -> La Prosperidad | CX27: =VLOOKUP(AG27,'Anexo ODS'!$G$3:$P$86,7,0) -> 11 | CY27: =VLOOKUP(AG27,'Anexo ODS'!$G$3:$P$86,8,0) -> Ciudades y comunidades sostenibles | CZ27: =VLOOKUP(AG27,'Anexo ODS'!$G$3:$P$86,9,0) -> 11.3 | DA27: =VLOOKUP(AG27,'Anexo ODS'!$G$3:$P$86,10,0) -> De aquí a 2030, aumentar la urbanización inclusiva y sostenible y la capacidad para la planificación y la gestión participativas, integradas y sostenibles de los asentamientos | DJ27: 167 | DK27: Anexo 2 (15%)
A28: 27 | B28: 1 | C28: Usaquén | D28: 2 | E28: Cambiar nuestros hábitos de vida para reverdecer a Bogotá y adaptarnos y mitigar el cambio climático. | F28: 27 | G28: Cambio cultural para la gestión de la crisis climática | L28: 27 | M28: Implementar 6 PROCEDAS. | N28: 1944 | O28: Usaquén más verde | P28: EDUCACIÓN AMBIENTAL | Q28: Suma | R28: 2 | S28: Implementar | T28: 6 | U28: PROCEDAS | W28: Implementar 6 PROCEDAS. | X28: =VLOOKUP(AG28,'Anexo PMR'!$B$4:$G$87,6,0) -> 2_Presupuestos Participativos 50% | Y28: 8 | Z28: Inversiones ambientales sostenibles | AA28: Educación ambiental. | AB28: 94 | AC28: AMBIENTE | AD28: 17 | AE28: Calidad ambiental y preservación del patrimonio natural. | AF28: 38 | AG28: Número de PROCEDAS implementados | AH28: PROCEDAS | AL28: 1 | AM28: 1 | AN28: 2 | AO28: 2 | AP28: 200000000 | AQ28: 280000000 | AR28: 360000000 | AS28: 366150000 | AT28: 1206150000 | AU28: 1 | AV28: 0 | AW28: 0 | AX28: 0 | AY28: 0 | AZ28: Bajo | BA28: Bajo | BB28: 0.5751157479 | BC28: 0 | BD28: 0 | BH28: 0 | BI28: 2021_1 | BJ28: 1 | BK28: 1 | BL28: 0 | BM28: 0 | BN28: 0 | BO28: 0 | BP28: 0 | BQ28: 0 | BR28: 0 | BS28: 0 | BT28: 0 | BU28: 0 | BV28: 0 | CA28: 194253000 | CB28: 194253000 | CC28: 0 | CD28: 0 | CE28: 0 | CF28: 52000000 | CG28: 0 | CH28: 0 | CI28: 0 | CJ28: 52000000 | CK28: 0 | CL28: 0 | CM28: 0 | CN28: 0 | CO28: 0 | CP28: Corte 31 marzo de 2021: Las contrataciones adjudicadas no contribuyen al avance directo de la meta. | CV28: =VLOOKUP(AG28,'Anexo ODS'!$G$3:$P$86,5,0) -> 4 | CW28: =VLOOKUP(AG28,'Anexo ODS'!$G$3:$P$86,6,0) -> El Planeta | CX28: =VLOOKUP(AG28,'Anexo ODS'!$G$3:$P$86,7,0) -> 13 | CY28: =VLOOKUP(AG28,'Anexo ODS'!$G$3:$P$86,8,0) -> Acción por el Clima | CZ28: =VLOOKUP(AG28,'Anexo ODS'!$G$3:$P$86,9,0) -> 13.3 | DA28: =VLOOKUP(AG28,'Anexo ODS'!$G$3:$P$86,10,0) -> Mejorar la educación, la sensibilización y la capacidad humana e institucional respecto de la mitigación del cambio climático, la adaptación a él, la reducción de sus efectos y la alerta temprana | DJ28: 6 | DK28: Anexo 1 (85%)
A29: 28 | B29: 1 | C29: Usaquén | D29: 2 | E29: Cambiar nuestros hábitos de vida para reverdecer a Bogotá y adaptarnos y mitigar el cambio climático. | F29: 27 | G29: Cambio cultural para la gestión de la crisis climática | L29: 28 | M29: Intervenir 9000 m2 de jardinería y coberturas verdes | N29: 1944 | O29: Usaquén más verde | P29: JARDINERÍA | Q29: Suma | R29: 2 | S29: Intervenir | T29: 9000 | U29: Metros cuadrados | V29: de jardinería y coberturas verdes | W29: Intervenir 9000 m2 de jardinería y coberturas verdes | X29: =VLOOKUP(AG29,'Anexo PMR'!$B$4:$G$87,6,0) -> 2_Presupuestos Participativos 50% | Y29: 8 | Z29: Inversiones ambientales sostenibles | AA29: Eco-urbanismo. | AB29: 94 | AC29: AMBIENTE | AD29: 17 | AE29: Calidad ambiental y preservación del patrimonio natural. | AF29: 40 | AG29: m2 de jardinería y coberturas verdes | AH29: INTERVENCIONES VERDES | AL29: 0 | AM29: 3000 | AN29: 3000 | AO29: 3000 | AP29: 0 | AQ29: 219140000 | AR29: 226060000 | AS29: 233260000 | AT29: 678460000 | AU29: 1 | AV29: 0 | AW29: 0 | AX29: 0 | AY29: 0 | AZ29: Bajo | BA29: Bajo | BB29: 0.3235029062 | BC29: 0 | BD29: 0 | BH29: 0 | BI29: 2021_1 | BJ29: 0 | BK29: 0 | BL29: 0 | BM29: 0 | BN29: 0 | BO29: 0 | BP29: 0 | BQ29: 0 | BR29: 0 | BS29: 0 | BT29: 0 | BU29: 0 | BV29: 0 | CA29: 0 | CB29: 0 | CC29: 0 | CD29: 0 | CE29: 0 | CG29: 0 | CH29: 0 | CI29: 0 | CJ29: 0 | CM29: 0 | CN29: 0 | CO29: 0 | CV29: =VLOOKUP(AG29,'Anexo ODS'!$G$3:$P$86,5,0) -> 3 | CW29: =VLOOKUP(AG29,'Anexo ODS'!$G$3:$P$86,6,0) -> La Prosperidad | CX29: =VLOOKUP(AG29,'Anexo ODS'!$G$3:$P$86,7,0) -> 11 | CY29: =VLOOKUP(AG29,'Anexo ODS'!$G$3:$P$86,8,0) -> Ciudades y comunidades sostenibles | CZ29: =VLOOKUP(AG29,'Anexo ODS'!$G$3:$P$86,9,0) -> 11.3 | DA29: =VLOOKUP(AG29,'Anexo ODS'!$G$3:$P$86,10,0) -> De aquí a 2030, aumentar la urbanización inclusiva y sostenible y la capacidad para la planificación y la gestión participativas, integradas y sostenibles de los asentamientos | DJ29: 9000 | DK29: Anexo 1 (85%)
A30: 29 | B30: 1 | C30: Usaquén | D30: 2 | E30: Cambiar nuestros hábitos de vida para reverdecer a Bogotá y adaptarnos y mitigar el cambio climático. | F30: 28 | G30: Bogotá protectora de sus recursos naturales | L30: 29 | M30: Intervenir 6 hectáreas con procesos de restauración, rehabilitación o recuperación ecológica. | N30: 1935 | O30: Recuperación de la estructura , composición , función y conservación de ecosistemas de Usaquén | P30: RESTAURACIÓN ECOLÓGICA | Q30: Suma | R30: 3 | S30: Intervenir | T30: 6 | U30: Hectáreas | V30: con procesos de restauración, rehabilitación o recuperación ecológica. | W30: Intervenir 6 hectáreas con procesos de restauración, rehabilitación o recuperación ecológica. | X30: =VLOOKUP(AG30,'Anexo PMR'!$B$4:$G$87,6,0) -> 2_Presupuestos Participativos 50% | Y30: 8 | Z30: Inversiones ambientales sostenibles | AA30: Restauración ecológica urbana y/o rural. | AB30: 94 | AC30: AMBIENTE | AD30: 17 | AE30: Calidad ambiental y preservación del patrimonio natural. | AF30: 41 | AG30: Hectáreas en restauración, rehabilitación o recuperación ecológica y mantenimiento | AH30: INTERVENCIONES VERDES | AL30: 0 | AM30: 1 | AN30: 2 | AO30: 3 | AP30: 0 | AQ30: 300000000 | AR30: 402170000 | AS30: 883060000 | AT30: 1585230000 | AU30: 1 | AV30: 0 | AW30: 0 | AX30: 0 | AY30: 0 | AZ30: Bajo | BA30: Bajo | BB30: 1 | BC30: 0 | BD30: 0 | BH30: 0 | BI30: 2021_1 | BJ30: 0 | BK30: 0 | BL30: 0 | BM30: 0 | BN30: 0 | BO30: 0 | BP30: 0 | BQ30: 0 | BR30: 0 | BS30: 0 | BT30: 0 | BU30: 0 | BV30: 0 | CA30: 0 | CB30: 0 | CC30: 0 | CD30: 0 | CE30: 0 | CG30: 0 | CH30: 0 | CI30: 0 | CJ30: 0 | CM30: 0 | CN30: 0 | CO30: 0 | CV30: =VLOOKUP(AG30,'Anexo ODS'!$G$3:$P$86,5,0) -> 4 | CW30: =VLOOKUP(AG30,'Anexo ODS'!$G$3:$P$86,6,0) -> El Planeta | CX30: =VLOOKUP(AG30,'Anexo ODS'!$G$3:$P$86,7,0) -> 15 | CY30: =VLOOKUP(AG30,'Anexo ODS'!$G$3:$P$86,8,0) -> Vida de ecosistemas terrestres | CZ30: =VLOOKUP(AG30,'Anexo ODS'!$G$3:$P$86,9,0) -> 15.1 | DA30: =VLOOKUP(AG30,'Anexo ODS'!$G$3:$P$86,10,0) -> De aquí a 2020, asegurar la conservación, el restablecimiento y el uso sostenible de los ecosistemas terrestres y los ecosistemas interiores de agua dulce y sus servicios, en particular los bosques, los humedales, las montañas y las zonas áridas, en consonancia con las obligaciones contraídas en virtud de acuerdos internacionales | DJ30: 6 | DK30: Anexo 1 (85%)
A31: 30 | B31: 1 | C31: Usaquén | D31: 2 | E31: Cambiar nuestros hábitos de vida para reverdecer a Bogotá y adaptarnos y mitigar el cambio climático. | F31: 30 | G31: Eficiencia en la atención de emergencias | L31: 30 | M31: Desarrollar 1 intervención para la reducción del riesgo y adaptación al cambio climático | N31: 1940 | O31: Adaptación del territorio a los efectos del cambio climático | P31: REDUCCIÓN DEL RIESGO Y ADAPTACIÓN AL CAMBIO CLIMÁTICO | Q31: Suma | R31: 1 | S31: Desarrollar | T31: 1 | U31: Intervenciones | V31: para la reducción del riesgo y adaptación al cambio climático | W31: Desarrollar 1 intervención para la reducción del riesgo y adaptación al cambio climático | X31: =VLOOKUP(AG31,'Anexo PMR'!$B$4:$G$87,6,0) -> 2_Presupuestos Participativos 50% | Y31: 8 | Z31: Inversiones ambientales sostenibles | AA31: Mitigación del riesgo. | AB31: 94 | AC31: AMBIENTE | AD31: 18 | AE31: Gestión para la prevención y mitigación del riesgo. | AF31: 43 | AG31: Intervenciones para la reducción del riesgo y adaptación al cambio climático | AH31: REDUCCIÓN DEL RIESGO | AL31: 0 | AM31: 1 | AN31: 0 | AO31: 0 | AP31: 0 | AQ31: 1088000000 | AR31: 0 | AS31: 0 | AT31: 1088000000 | AU31: 1 | AV31: 0 | AW31: 0 | AX31: 0 | AY31: 0 | AZ31: Bajo | BA31: Bajo | BB31: 0.5364045121 | BC31: 0 | BD31: 0 | BH31: 0 | BI31: 2021_1 | BJ31: 0 | BK31: 0 | BL31: 0 | BM31: 0 | BN31: 0 | BO31: 0 | BP31: 0 | BQ31: 0 | BR31: 0 | BS31: 0 | BT31: 0 | BU31: 0 | BV31: 0 | CA31: 0 | CB31: 0 | CC31: 0 | CD31: 0 | CE31: 0 | CG31: 0 | CH31: 0 | CI31: 0 | CJ31: 0 | CM31: 0 | CN31: 0 | CO31: 0 | CV31: =VLOOKUP(AG31,'Anexo ODS'!$G$3:$P$86,5,0) -> 4 | CW31: =VLOOKUP(AG31,'Anexo ODS'!$G$3:$P$86,6,0) -> El Planeta | CX31: =VLOOKUP(AG31,'Anexo ODS'!$G$3:$P$86,7,0) -> 13 | CY31: =VLOOKUP(AG31,'Anexo ODS'!$G$3:$P$86,8,0) -> Acción por el clima | CZ31: =VLOOKUP(AG31,'Anexo ODS'!$G$3:$P$86,9,0) -> 13.1 | DA31: =VLOOKUP(AG31,'Anexo ODS'!$G$3:$P$86,10,0) -> Fortalecer la resiliencia y la capacidad de adaptación a los riesgos relacionados con el clima y los desastres naturales en todos los países | DJ31: 1 | DK31: Anexo 3 (Construcción Sedes, CAI)
A32: 31 | B32: 1 | C32: Usaquén | D32: 2 | E32: Cambiar nuestros hábitos de vida para reverdecer a Bogotá y adaptarnos y mitigar el cambio climático. | F32: 30 | G32: Eficiencia en la atención de emergencias | L32: 31 | M32: Realizar 1 acción efectiva para el fortalecimiento de las capacidades locales para la respuesta a emergencias y desastres | N32: 1940 | O32: Adaptación del territorio a los efectos del cambio climático | P32: MANEJO DE EMERGENCIAS, CALAMIDADES Y DESASTRES | Q32: Suma | R32: 4 | S32: Realizar | T32: 1 | U32: Acciones | V32: efectiva para el fortalecimiento de las capacidades locales para la respuesta a emergencias y desastres | W32: Realizar 1 acción efectiva para el fortalecimiento de las capacidades locales para la respuesta a emergencias y desastres | X32: =VLOOKUP(AG32,'Anexo PMR'!$B$4:$G$87,6,0) -> 2_Presupuestos Participativos 50% | Y32: 8 | Z32: Inversiones ambientales sostenibles | AA32: Manejo de emergencias y desastres. | AB32: 94 | AC32: AMBIENTE | AD32: 18 | AE32: Gestión para la prevención y mitigación del riesgo. | AF32: 42 | AG32: Acciones efectivas para el fortalecimiento de las capacidades locales para la respuesta a emergencias y desastres | AH32: REDUCCIÓN DEL RIESGO | AL32: 0 | AM32: 0.5 | AN32: 0 | AO32: 0.5 | AP32: 0 | AQ32: 470160000 | AR32: 0 | AS32: 470160000 | AT32: 940320000 | AU32: 1 | AV32: 0 | AW32: 0 | AX32: 0 | AY32: 0 | AZ32: Bajo | BA32: Bajo | BB32: 0.4635954879 | BC32: 0 | BD32: 0 | BH32: 0 | BI32: 2021_1 | BJ32: 0 | BK32: 0 | BL32: 0 | BM32: 0 | BN32: 0 | BO32: 0 | BP32: 0 | BQ32: 0 | BR32: 0 | BS32: 0 | BT32: 0 | BU32: 0 | BV32: 0 | CA32: 0 | CB32: 0 | CC32: 0 | CD32: 0 | CE32: 0 | CG32: 0 | CH32: 0 | CI32: 0 | CJ32: 0 | CM32: 0 | CN32: 0 | CO32: 0 | CV32: =VLOOKUP(AG32,'Anexo ODS'!$G$3:$P$86,5,0) -> 3 | CW32: =VLOOKUP(AG32,'Anexo ODS'!$G$3:$P$86,6,0) -> La Prosperidad | CX32: =VLOOKUP(AG32,'Anexo ODS'!$G$3:$P$86,7,0) -> 11 | CY32: =VLOOKUP(AG32,'Anexo ODS'!$G$3:$P$86,8,0) -> Ciudades y comunidades sostenibles | CZ32: =VLOOKUP(AG32,'Anexo ODS'!$G$3:$P$86,9,0) -> 11.5 | DA32: =VLOOKUP(AG32,'Anexo ODS'!$G$3:$P$86,10,0) -> De aquí a 2030, reducir significativamente el número de muertes causadas por los desastres, incluidos los relacionados con el agua, y de personas afectadas por ellos, y reducir considerablemente las pérdidas económicas directas provocadas por los desastres en comparación con el producto interno bruto mundial, haciendo especial hincapié en la protección de los pobres y las personas en situaciones de vulnerabilidad | DJ32: 1 | DK32: Anexo 2 (15%)
A33: 32 | B33: 1 | C33: Usaquén | D33: 2 | E33: Cambiar nuestros hábitos de vida para reverdecer a Bogotá y adaptarnos y mitigar el cambio climático. | F33: 33 | G33: Más árboles y más y mejor espacio público | L33: 32 | M33: Mantener 8000 árboles urbanos y/o rurales | N33: 1942 | O33: Usaquén reverdece | P33: ARBORIZACIÓN | Q33: Suma | R33: 2 | S33: Mantener | T33: 8000 | U33: Árboles | V33: urbanos y/o rurales | W33: Mantener 8000 árboles urbanos y/o rurales | X33: =VLOOKUP(AG33,'Anexo PMR'!$B$4:$G$87,6,0) -> 2_Presupuestos Participativos 50% | Y33: 8 | Z33: Inversiones ambientales sostenibles | AA33: Arbolado urbano y/o rural. | AB33: 94 | AC33: AMBIENTE | AD33: 19 | AE33: Plantación y mantenimiento de árboles, jardines y especies vegetales. | AF33: 44 | AG33: Número de árboles mantenidos | AH33: ARBOLADO | AL33: 2000 | AM33: 2000 | AN33: 2000 | AO33: 2000 | AP33: 200000000 | AQ33: 200000000 | AR33: 200000000 | AS33: 720950000 | AT33: 1320950000 | AU33: 1 | AV33: 0 | AW33: 0 | AX33: 0 | AY33: 0 | AZ33: Bajo | BA33: Bajo | BB33: 0.2897614478 | BC33: 0 | BD33: 0 | BH33: 0 | BI33: 2021_1 | BJ33: 2000 | BK33: 2000 | BL33: 0 | BM33: 0 | BN33: 0 | BO33: 0 | BP33: 0 | BQ33: 0 | BR33: 0 | BS33: 0 | BT33: 0 | BU33: 0 | BV33: 0 | CA33: 194253000 | CB33: 194253000 | CC33: 0 | CD33: 0 | CE33: 0 | CG33: 0 | CH33: 0 | CI33: 0 | CJ33: 0 | CM33: 0 | CN33: 0 | CO33: 0 | CV33: =VLOOKUP(AG33,'Anexo ODS'!$G$3:$P$86,5,0) -> 4 | CW33: =VLOOKUP(AG33,'Anexo ODS'!$G$3:$P$86,6,0) -> El Planeta | CX33: =VLOOKUP(AG33,'Anexo ODS'!$G$3:$P$86,7,0) -> 15 | CY33: =VLOOKUP(AG33,'Anexo ODS'!$G$3:$P$86,8,0) -> Vida de ecosistemas terrestres | CZ33: =VLOOKUP(AG33,'Anexo ODS'!$G$3:$P$86,9,0) -> 15.1 | DA33: =VLOOKUP(AG33,'Anexo ODS'!$G$3:$P$86,10,0) -> De aquí a 2020, asegurar la conservación, el restablecimiento y el uso sostenible de los ecosistemas terrestres y los ecosistemas interiores de agua dulce y sus servicios, en particular los bosques, los humedales, las montañas y las zonas áridas, en consonancia con las obligaciones contraídas en virtud de acuerdos internacionales | DJ33: 8000 | DK33: Anexo 2 (15%)
A34: 33 | B34: 1 | C34: Usaquén | D34: 2 | E34: Cambiar nuestros hábitos de vida para reverdecer a Bogotá y adaptarnos y mitigar el cambio climático. | F34: 33 | G34: Más árboles y más y mejor espacio público | L34: 33 | M34: Plantar 340 árboles urbanos y/o rurales. | N34: 1942 | O34: Usaquén reverdece | P34: ARBORIZACIÓN | Q34: Suma | R34: 3 | S34: Plantar | T34: 340 | U34: Árboles | V34: urbanos y/o rurales | W34: Plantar 340 árboles urbanos y/o rurales. | X34: =VLOOKUP(AG34,'Anexo PMR'!$B$4:$G$87,6,0) -> 2_Presupuestos Participativos 50% | Y34: 8 | Z34: Inversiones ambientales sostenibles | AA34: Arbolado urbano y/o rural. | AB34: 94 | AC34: AMBIENTE | AD34: 19 | AE34: Plantación y mantenimiento de árboles, jardines y especies vegetales. | AF34: 45 | AG34: Número de árboles plantados | AH34: ARBOLADO | AL34: 0 | AM34: 340 | AN34: 0 | AO34: 0 | AP34: 0 | AQ34: 215040000 | AR34: 0 | AS34: 0 | AT34: 215040000 | AU34: 1 | AV34: 0 | AW34: 0 | AX34: 0 | AY34: 0 | AZ34: Bajo | BA34: Bajo | BB34: =AT34/SUMIF($F$2:$F$60,F34,$AT$2:$AT$60) -> 0.04717082534 | BC34: 0 | BD34: 0 | BH34: 0 | BI34: 2021_1 | BJ34: 0 | BK34: 0 | BL34: 0 | BM34: 0 | BN34: 0 | BO34: 0 | BP34: 0 | BQ34: 0 | BR34: 0 | BS34: 0 | BT34: 0 | BU34: 0 | BV34: 0 | CA34: 0 | CB34: 0 | CC34: 0 | CD34: 0 | CE34: 0 | CG34: 0 | CH34: 0 | CI34: 0 | CJ34: 0 | CM34: 0 | CN34: 0 | CO34: 0 | CV34: =VLOOKUP(AG34,'Anexo ODS'!$G$3:$P$86,5,0) -> 4 | CW34: =VLOOKUP(AG34,'Anexo ODS'!$G$3:$P$86,6,0) -> El Planeta | CX34: =VLOOKUP(AG34,'Anexo ODS'!$G$3:$P$86,7,0) -> 15 | CY34: =VLOOKUP(AG34,'Anexo ODS'!$G$3:$P$86,8,0) -> Vida de ecosistemas terrestres | CZ34: =VLOOKUP(AG34,'Anexo ODS'!$G$3:$P$86,9,0) -> 15.1 | DA34: =VLOOKUP(AG34,'Anexo ODS'!$G$3:$P$86,10,0) -> De aquí a 2020, asegurar la conservación, el restablecimiento y el uso sostenible de los ecosistemas terrestres y los ecosistemas interiores de agua dulce y sus servicios, en particular los bosques, los humedales, las montañas y las zonas áridas, en consonancia con las obligaciones contraídas en virtud de acuerdos internacionales | DJ34: 340 | DK34: Anexo 2 (15%)
A35: 34 | B35: 1 | C35: Usaquén | D35: 2 | E35: Cambiar nuestros hábitos de vida para reverdecer a Bogotá y adaptarnos y mitigar el cambio climático. | F35: 33 | G35: Más árboles y más y mejor espacio público | L35: 34 | M35: Intervenir 30 Parques vecinales y/o de bolsillo con acciones de mejoramiento, mantenimiento y/o dotación | N35: 1945 | O35: Parques más verdes y activos | P35: INTERVENCIÓN | Q35: Suma | R35: 1 | S35: Intervenir | T35: 30 | U35: Parques | V35: vecinales y/o de bolsillo con acciones de mejoramiento, mantenimiento y/o dotación | W35: Intervenir 30 Parques vecinales y/o de bolsillo con acciones de mejoramiento, mantenimiento y/o dotación | X35: =VLOOKUP(AG35,'Anexo PMR'!$B$4:$G$87,6,0) -> 2_Presupuestos Participativos 50% | Y35: 6 | Z35: Infraestructura | AA35: Construcción, mantenimiento y dotación de parques vecinales y/o de bolsillo. | AB35: 93 | AC35: CULTURA, RECREACIÓN Y DEPORTE | AD35: 20 | AE35: Parques y escenarios deportivos. | AF35: 47 | AG35: Número de Parques vecinales y/o de bolsillo intervenidos en mejoramiento, mantenimiento y/o dotación | AH35: PARQUES | AL35: 7 | AM35: 7 | AN35: 8 | AO35: 8 | AP35: 721240000 | AQ35: 743390000 | AR35: 766880000 | AS35: 791250000 | AT35: 3022760000 | AU35: 1 | AV35: 0 | AW35: 0 | AX35: 0 | AY35: 0 | AZ35: Bajo | BA35: Bajo | BB35: 0.6630677269 | BC35: 0 | BD35: 0 | BH35: 0 | BI35: 2021_1 | BJ35: 7 | BK35: 7 | BL35: 0 | BM35: 0 | BN35: 0 | BO35: 0 | BP35: 0 | BQ35: 0 | BR35: 0 | BS35: 0 | BT35: 0 | BU35: 0 | BV35: 0 | CA35: 700514000 | CB35: 700514000 | CC35: 0 | CD35: 0 | CE35: 0 | CF35: 118400000 | CG35: 0 | CH35: 0 | CI35: 0 | CJ35: 118400000 | CK35: 2786667 | CL35: 2786667 | CM35: 0 | CN35: 0 | CO35: 0 | CP35: Corte 31 marzo de 2021: Las contrataciones adjudicadas no contribuyen al avance directo de la meta. | CV35: =VLOOKUP(AG35,'Anexo ODS'!$G$3:$P$86,5,0) -> 3 | CW35: =VLOOKUP(AG35,'Anexo ODS'!$G$3:$P$86,6,0) -> La Prosperidad | CX35: =VLOOKUP(AG35,'Anexo ODS'!$G$3:$P$86,7,0) -> 11 | CY35: =VLOOKUP(AG35,'Anexo ODS'!$G$3:$P$86,8,0) -> Ciudades y comunidades sostenibles | CZ35: =VLOOKUP(AG35,'Anexo ODS'!$G$3:$P$86,9,0) -> 11.7 | DA35: =VLOOKUP(AG35,'Anexo ODS'!$G$3:$P$86,10,0) -> De aquí a 2030, proporcionar acceso universal a zonas verdes y espacios públicos seguros, inclusivos y accesibles, en particular para las mujeres y los niños, las personas de edad y las personas con discapacidad | DJ35: 30 | DK35: Anexo 1 (85%)
A36: 35 | B36: 1 | C36: Usaquén | D36: 2 | E36: Cambiar nuestros hábitos de vida para reverdecer a Bogotá y adaptarnos y mitigar el cambio climático. | F36: 34 | G36: Bogotá protectora de los animales | L36: 35 | M36: Atender 4000 animales en urgencias, brigadas médicoveterinarias, acciones de esterilización, educación y adopción. | N36: 1933 | O36: Protegemos la vida y el bienestar de nuestros animales | P36: BIENESTAR ANIMAL | Q36: Suma | R36: 1 | S36: Atender | T36: 4000 | U36: Animales | V36: en urgencias, brigadas médicoveterinarias, acciones de esterilización, educación y adopción. | W36: Atender 4000 animales en urgencias, brigadas médicoveterinarias, acciones de esterilización, educación y adopción. | X36: =VLOOKUP(AG36,'Anexo PMR'!$B$4:$G$87,6,0) -> 2_Presupuestos Participativos 50% | Y36: 8 | Z36: Inversiones ambientales sostenibles | AA36: Acuerdos con las redes locales de proteccionistas de animales para urgencias, brigadas médico veterinarias, acciones de esterilización, educación y adopción | AB36: 94 | AC36: AMBIENTE | AD36: 21 | AE36: Servicios de protección y bienestar animal. | AF36: 48 | AG36: Número de animales atendidos | AH36: PROTECCIÓN ANIMAL | AL36: 747 | AM36: 768 | AN36: 1075 | AO36: 1410 | AP36: 500000000 | AQ36: 500000000 | AR36: 700000000 | AS36: 919060000 | AT36: 2619060000 | AU36: 1 | AV36: 0 | AW36: 0 | AX36: 0 | AY36: 0 | AZ36: Bajo | BA36: Bajo | BB36: 1 | BC36: 0 | BD36: 0 | BH36: 0 | BI36: 2021_1 | BJ36: 747 | BK36: 747 | BL36: 0 | BM36: 0 | BN36: 0 | BO36: 0 | BP36: 0 | BQ36: 0 | BR36: 0 | BS36: 0 | BT36: 0 | BU36: 0 | BV36: 0 | CA36: 485631000 | CB36: 485631000 | CC36: 0 | CD36: 0 | CE36: 0 | CF36: 90000000 | CG36: 0 | CH36: 0 | CI36: 0 | CJ36: 90000000 | CK36: 0 | CL36: 0 | CM36: 0 | CN36: 0 | CO36: 0 | CP36: Corte 31 marzo de 2021: Las contrataciones adjudicadas no contribuyen al avance directo de la meta. | CV36: =VLOOKUP(AG36,'Anexo ODS'!$G$3:$P$86,5,0) -> 3 | CW36: =VLOOKUP(AG36,'Anexo ODS'!$G$3:$P$86,6,0) -> La Prosperidad | CX36: =VLOOKUP(AG36,'Anexo ODS'!$G$3:$P$86,7,0) -> 11 | CY36: =VLOOKUP(AG36,'Anexo ODS'!$G$3:$P$86,8,0) -> Ciudades y comunidades sostenibles | CZ36: =VLOOKUP(AG36,'Anexo ODS'!$G$3:$P$86,9,0) -> 11.3 | DA36: =VLOOKUP(AG36,'Anexo ODS'!$G$3:$P$86,10,0) -> De aquí a 2030, aumentar la urbanización inclusiva y sostenible y la capacidad para la planificación y la gestión participativas, integradas y sostenibles de los asentamientos humanos en todos los países | DJ36: 4000 | DK36: Anexo 2 (15%)
A37: 36 | B37: 1 | C37: Usaquén | D37: 2 | E37: Cambiar nuestros hábitos de vida para reverdecer a Bogotá y adaptarnos y mitigar el cambio climático. | F37: 38 | G37: Ecoeficiencia, reciclaje, manejo de residuos e inclusión de la población recicladora | L37: 36 | M37: Capacitar 2500 personas en separación en la fuente y reciclaje. | N37: 1955 | O37: Escuela de economía circular | P37: HÁBITOS DE CONSUMO | Q37: Suma | R37: 1 | S37: Capacitar | T37: 2500 | U37: Personas | V37: en separación en la fuente y reciclaje. | W37: Capacitar 2500 personas en separación en la fuente y reciclaje. | X37: =VLOOKUP(AG37,'Anexo PMR'!$B$4:$G$87,6,0) -> 2_Presupuestos Participativos 50% | Y37: 8 | Z37: Inversiones ambientales sostenibles | AA37: Cambios de hábitos de consumo, separación en la fuente y reciclaje. | AB37: 96 | AC37: HÁBITAT | AD37: 23 | AE37: Manejo integral de residuos sólidos. | AF37: 50 | AG37: Personas capacitadas en separación en la fuente y reciclaje | AH37: RECICLAJE | AL37: 454 | AM37: 511 | AN37: 682 | AO37: 853 | AP37: 400000000 | AQ37: 450000000 | AR37: 600000000 | AS37: 750610000 | AT37: 2200610000 | AU37: 1 | AV37: 0 | AW37: 0 | AX37: 0 | AY37: 0 | AZ37: Bajo | BA37: Bajo | BB37: 1 | BC37: 0 | BD37: 0 | BH37: 0 | BI37: 2021_1 | BJ37: 454 | BK37: 454 | BL37: 0 | BM37: 0 | BN37: 0 | BO37: 0 | BP37: 0 | BQ37: 0 | BR37: 0 | BS37: 0 | BT37: 0 | BU37: 0 | BV37: 0 | CA37: 388505000 | CB37: 388505000 | CC37: 0 | CD37: 0 | CE37: 0 | CF37: 44000000 | CG37: 0 | CH37: 0 | CI37: 0 | CJ37: 44000000 | CK37: 5316667 | CL37: 5316667 | CM37: 0 | CN37: 0 | CO37: 0 | CP37: Corte 31 marzo de 2021: Las contrataciones adjudicadas no contribuyen al avance directo de la meta. | CV37: =VLOOKUP(AG37,'Anexo ODS'!$G$3:$P$86,5,0) -> 4 | CW37: =VLOOKUP(AG37,'Anexo ODS'!$G$3:$P$86,6,0) -> El Planeta | CX37: =VLOOKUP(AG37,'Anexo ODS'!$G$3:$P$86,7,0) -> 12 | CY37: =VLOOKUP(AG37,'Anexo ODS'!$G$3:$P$86,8,0) -> Producción y consumo responsables | CZ37: =VLOOKUP(AG37,'Anexo ODS'!$G$3:$P$86,9,0) -> 12.5 | DA37: =VLOOKUP(AG37,'Anexo ODS'!$G$3:$P$86,10,0) -> De aquí a 2030, reducir considerablemente la generación de desechos mediante actividades de prevención, reducción, reciclado y reutilización | DJ37: 2500 | DK37: Anexo 2 (15%)
A38: 37 | B38: 1 | C38: Usaquén | D38: 3 | E38: Inspirar confianza y legitimidad para vivir sin miedo y ser epicentro de cultura ciudadana, paz y reconciliación. | F38: 39 | G38: Bogotá territorio de paz y atención integral a las víctimas del conflicto armado | L38: 37 | M38: Vincular 150 personas a procesos de construcción de memoria, verdad, reparación integral a víctimas, paz y reconciliación. | N38: 1946 | O38: Usaquén territorio de paz y reconciliación | P38: ENERGÍAS ALTERNATIVAS | Q38: Suma | R38: 2 | S38: Vincular | T38: 150 | U38: Personas | V38: a procesos de construcción de memoria, verdad, reparación integral a víctimas, paz y reconciliación. | W38: Vincular 150 personas a procesos de construcción de memoria, verdad, reparación integral a víctimas, paz y reconciliación. | X38: =VLOOKUP(AG38,'Anexo PMR'!$B$4:$G$87,6,0) -> 2_Presupuestos Participativos 50% | Y38: 7 | Z38: Desarrollo social y cultural | AA38: Construcción de memoria, verdad, reparación, víctimas, paz y reconciliación. | AB38: 85 | AC38: GESTIÓN PÚBLICA | AD38: 25 | AE38: Servicio de apoyo y fortalecimiento a los procesos de construcción de memoria, verdad, reparación integral a víctimas, paz y reconciliación. | AF38: 52 | AG38: Personas vinculadas a procesos de construcción de memoria, verdad, reparación integral a víctimas, paz y reconciliación | AH38: PAZ, MEMORIA Y RECONCILIACIÓN | AL38: 35 | AM38: 38 | AN38: 38 | AO38: 39 | AP38: 200000000 | AQ38: 205000000 | AR38: 210000000 | AS38: 210000000 | AT38: 825000000 | AU38: 1 | AV38: 0 | AW38: 0 | AX38: 0 | AY38: 0 | AZ38: Bajo | BA38: Bajo | BB38: 1 | BC38: 0 | BD38: 0 | BH38: 0 | BI38: 2021_1 | BJ38: 35 | BK38: 35 | BL38: 0 | BM38: 0 | BN38: 0 | BO38: 0 | BP38: 0 | BQ38: 0 | BR38: 0 | BS38: 0 | BT38: 0 | BU38: 0 | BV38: 0 | CA38: 194253000 | CB38: 194253000 | CC38: 0 | CD38: 0 | CE38: 0 | CG38: 0 | CH38: 0 | CI38: 0 | CJ38: 0 | CM38: 0 | CN38: 0 | CO38: 0 | CV38: =VLOOKUP(AG38,'Anexo ODS'!$G$3:$P$86,5,0) -> 2 | CW38: =VLOOKUP(AG38,'Anexo ODS'!$G$3:$P$86,6,0) -> La Paz | CX38: =VLOOKUP(AG38,'Anexo ODS'!$G$3:$P$86,7,0) -> 16 | CY38: =VLOOKUP(AG38,'Anexo ODS'!$G$3:$P$86,8,0) -> Paz, justicia e instituciones sólidas | CZ38: =VLOOKUP(AG38,'Anexo ODS'!$G$3:$P$86,9,0) -> 16.3 | DA38: =VLOOKUP(AG38,'Anexo ODS'!$G$3:$P$86,10,0) -> Promover el estado de derecho en los planos nacional e internacional y garantizar la igualdad en el acceso a la justicia para todos | DJ38: 150 | DK38: Anexo 2 (15%)
A39: 38 | B39: 1 | C39: Usaquén | D39: 3 | E39: Inspirar confianza y legitimidad para vivir sin miedo y ser epicentro de cultura ciudadana, paz y reconciliación. | F39: 40 | G39: Más mujeres viven una vida libre de violencias, se sienten seguras y acceden con confianza al sistema de justicia | L39: 38 | M39: Capacitar 1530 personas para la construcción de ciudadanía y desarrollo de capacidades para el ejercicio de derechos de las mujeres | N39: 1991 | O39: Usaquén territorio de mujeres sin miedo | P39: DESARROLLO DE CAPACIDADES | Q39: Suma | R39: 1 | S39: Capacitar | T39: 1530 | U39: Personas | V39: para la construcción de ciudadanía y desarrollo de capacidades para el ejercicio de derechos de las mujeres | W39: Capacitar 1530 personas para la construcción de ciudadanía y desarrollo de capacidades para el ejercicio de derechos de las mujeres | X39: =VLOOKUP(AG39,'Anexo PMR'!$B$4:$G$87,6,0) -> 2_Presupuestos Participativos 50% | Y39: 7 | Z39: Desarrollo social y cultural | AA39: Construcción de ciudadanía y desarrollo de capacidades para el ejercicio de derechos de las mujeres. | AB39: 100 | AC39: MUJERES | AD39: 26 | AE39: Servicios de promoción y capacitación para la construcción de ciudadanía y desarrollo de capacidades para el ejercicio de derechos de las mujeres. | AF39: 53 | AG39: Personas capacitadas para la construcción de ciudadanía y desarrollo de capacidades para el ejercicio de derechos de las mujeres. | AH39: DERECHOS DE LA MUJER | AL39: 305 | AM39: 343 | AN39: 404 | AO39: 478 | AP39: 250000000 | AQ39: 280000000 | AR39: 330000000 | AS39: 390460000 | AT39: 1250460000 | AU39: 1 | AV39: 0 | AW39: 0 | AX39: 0 | AY39: 0 | AZ39: Bajo | BA39: Bajo | BB39: 0.3215194821 | BC39: 0 | BD39: 0 | BH39: 0 | BI39: 2021_1 | BJ39: 305 | BK39: 305 | BL39: 0 | BM39: 0 | BN39: 0 | BO39: 0 | BP39: 0 | BQ39: 0 | BR39: 0 | BS39: 0 | BT39: 0 | BU39: 0 | BV39: 0 | CA39: 242816000 | CB39: 242816000 | CC39: 0 | CD39: 0 | CE39: 0 | CF39: 26166000 | CG39: 0 | CH39: 0 | CI39: 0 | CJ39: 26166000 | CK39: 0 | CL39: 0 | CM39: 0 | CN39: 0 | CO39: 0 | CP39: Corte 31 marzo 2021: La contratación reportada no contribuye al avance de la magnitud de la meta. | CV39: =VLOOKUP(AG39,'Anexo ODS'!$G$3:$P$86,5,0) -> 1 | CW39: =VLOOKUP(AG39,'Anexo ODS'!$G$3:$P$86,6,0) -> Las Personas | CX39: =VLOOKUP(AG39,'Anexo ODS'!$G$3:$P$86,7,0) -> 5 | CY39: =VLOOKUP(AG39,'Anexo ODS'!$G$3:$P$86,8,0) -> Igualdad de género | CZ39: =VLOOKUP(AG39,'Anexo ODS'!$G$3:$P$86,9,0) -> 5.c | DA39: =VLOOKUP(AG39,'Anexo ODS'!$G$3:$P$86,10,0) -> Aprobar y fortalecer políticas acertadas y leyes aplicables para promover la igualdad de género y el empoderamiento de todas las mujeres y las niñas a todos los niveles | DJ39: 1530 | DK39: Anexo 2 (15%)
A40: 39 | B40: 1 | C40: Usaquén | D40: 3 | E40: Inspirar confianza y legitimidad para vivir sin miedo y ser epicentro de cultura ciudadana, paz y reconciliación. | F40: 40 | G40: Más mujeres viven una vida libre de violencias, se sienten seguras y acceden con confianza al sistema de justicia | L40: 39 | M40: Vincular 2500 personas en acciones para la prevención del feminicidio y la violencia contra la mujer. | N40: 1991 | O40: Usaquén territorio de mujeres sin miedo | P40: PREVENCIÓN | Q40: Suma | R40: 1 | S40: Vincular | T40: 2500 | U40: Personas | V40: en acciones para la prevención del feminicidio y la violencia contra la mujer. | W40: Vincular 2500 personas en acciones para la prevención del feminicidio y la violencia contra la mujer. | X40: =VLOOKUP(AG40,'Anexo PMR'!$B$4:$G$87,6,0) -> 2_Presupuestos Participativos 50% | Y40: 7 | Z40: Desarrollo social y cultural | AA40: Prevención del feminicidio y la violencia contra la mujer. | AB40: 100 | AC40: MUJERES | AD40: 27 | AE40: Prevención, atención y gestión del conflicto en la localidad. | AF40: 54 | AG40: Número de Personas vinculadas en acciones para la prevención del feminicidio y la violencia contra la mujer | AH40: PREVENCIÓN DE LA VIOLENCIA | AL40: 473 | AM40: 569 | AN40: 664 | AO40: 794 | AP40: 500000000 | AQ40: 600000000 | AR40: 700000000 | AS40: 838760000 | AT40: 2638760000 | AU40: 1 | AV40: 0 | AW40: 0 | AX40: 0 | AY40: 0 | AZ40: Bajo | BA40: Bajo | BB40: 0.6784805179 | BC40: 0 | BD40: 0 | BH40: 0 | BI40: 2021_1 | BJ40: 473 | BK40: 473 | BL40: 0 | BM40: 0 | BN40: 0 | BO40: 0 | BP40: 0 | BQ40: 0 | BR40: 0 | BS40: 0 | BT40: 0 | BU40: 0 | BV40: 0 | CA40: 485631000 | CB40: 485631000 | CC40: 0 | CD40: 0 | CE40: 0 | CF40: 46400000 | CG40: 0 | CH40: 0 | CI40: 0 | CJ40: 46400000 | CK40: 0 | CL40: 0 | CM40: 0 | CN40: 0 | CO40: 0 | CP40: Corte 31 marzo 2021: La contratación reportada no contribuye al avance de la magnitud de la meta. | CV40: =VLOOKUP(AG40,'Anexo ODS'!$G$3:$P$86,5,0) -> 1 | CW40: =VLOOKUP(AG40,'Anexo ODS'!$G$3:$P$86,6,0) -> Las Personas | CX40: =VLOOKUP(AG40,'Anexo ODS'!$G$3:$P$86,7,0) -> 5 | CY40: =VLOOKUP(AG40,'Anexo ODS'!$G$3:$P$86,8,0) -> Igualdad de género | CZ40: =VLOOKUP(AG40,'Anexo ODS'!$G$3:$P$86,9,0) -> 5.2 | DA40: =VLOOKUP(AG40,'Anexo ODS'!$G$3:$P$86,10,0) -> Eliminar todas las formas de violencia contra todas las mujeres y las niñas en los ámbitos público y privado, incluidas la trata y la explotación sexual y otros tipos de explotación | DJ40: 2500 | DK40: Anexo 2 (15%)
A41: 40 | B41: 1 | C41: Usaquén | D41: 3 | E41: Inspirar confianza y legitimidad para vivir sin miedo y ser epicentro de cultura ciudadana, paz y reconciliación. | F41: 43 | G41: Cultura ciudadana para la confianza, la convivencia y la participación desde la vida cotidiana | L41: 40 | M41: Implementar 4 estrategias de atención de movilizaciones y aglomeraciones en el territorio a través de equipos de gestores de convivencia bajo el direccionamiento estratégico de la Secretaria de Seguridad, Convivencia y Justicia. | N41: 1948 | O41: Usaquén segura, responsabilidad de todos | P41: GESTORES DE CONVIVENCIA | Q41: Suma | R41: 2 | S41: Vincular | T41: 4 | U41: Estrategias | V41: de atención de movilizaciones y aglomeraciones en el territorio a través de equipos de gestores de convivencia bajo el direccionamiento estratégico de la Secretaria de Seguridad, Convivencia y Justicia. | W41: Implementar 4 estrategias de atención de movilizaciones y aglomeraciones en el territorio a través de equipos de gestores de convivencia bajo el direccionamiento estratégico de la Secretaria de Seguridad, Convivencia y Justicia. | X41: =VLOOKUP(AG41,'Anexo PMR'!$B$4:$G$87,6,0) -> 2_Presupuestos Participativos 50% | Y41: 7 | Z41: Desarrollo social y cultural | AA41: Promoción de la convivencia ciudadana. | AB41: 102 | AC41: SEGURIDAD, CONVIVENCIA Y JUSTICIA | AD41: 27 | AE41: Prevención, atención y gestión del conflicto en la localidad. | AF41: 55 | AG41: Estrategia de atención de movilizaciones y aglomeraciones en el territorio implementada a traves de equipos de gestores de convivencia bajo el direccionamiento estrategico de la Secretaria de Seguridad, Convivencia y Justicia | AH41: ACCIONES DE CONVIVENCIA | AL41: 1 | AM41: 1 | AN41: 1 | AO41: 1 | AP41: 477310000 | AQ41: 491970000 | AR41: 507520000 | AS41: 523650000 | AT41: 2000450000 | AU41: 1 | AV41: 1 | AW41: 0.25 | AX41: 1 | AY41: 0.25 | AZ41: Bajo | BA41: Bajo | BB41: 1 | BC41: 0.25 | BD41: 0.25 | BH41: 0 | BI41: 2021_1 | BJ41: 1 | BK41: 1 | BL41: 0 | BM41: 0 | BN41: 0 | BO41: 1 | BP41: 0 | BQ41: 0 | BR41: 0 | BS41: 1 | BT41: 0 | BU41: 0 | BV41: 0 | BW41: Incompleto | CA41: 463593000 | CB41: 463593000 | CC41: 0 | CD41: 0 | CE41: 0 | CF41: 282000000 | CG41: 0 | CH41: 0 | CI41: 0 | CJ41: 282000000 | CK41: 0 | CL41: 0 | CM41: 0 | CN41: 0 | CO41: 0 | CV41: =VLOOKUP(AG41,'Anexo ODS'!$G$3:$P$86,5,0) -> 2 | CW41: =VLOOKUP(AG41,'Anexo ODS'!$G$3:$P$86,6,0) -> La Paz | CX41: =VLOOKUP(AG41,'Anexo ODS'!$G$3:$P$86,7,0) -> 16 | CY41: =VLOOKUP(AG41,'Anexo ODS'!$G$3:$P$86,8,0) -> Paz, justicia e instituciones sólidas | CZ41: =VLOOKUP(AG41,'Anexo ODS'!$G$3:$P$86,9,0) -> 16.1 | DA41: =VLOOKUP(AG41,'Anexo ODS'!$G$3:$P$86,10,0) -> Reducir significativamente todas las formas de violencia y las correspondientes tasas de mortalidad en todo el mundo | DJ41: 4 | DK41: Anexo 2 (15%)
A42: 41 | B42: 1 | C42: Usaquén | D42: 3 | E42: Inspirar confianza y legitimidad para vivir sin miedo y ser epicentro de cultura ciudadana, paz y reconciliación. | F42: 45 | G42: Espacio público más seguro y construido colectivamente | L42: 41 | M42: Realizar 4 acuerdos para la vinculación de la ciudadanía en los programas adelantados por el IDRD y acuerdos con vendedores informales o estacionarios | N42: 1959 | O42: Usaquén con espacio público inclusivo | P42: ACUERDOS CIUDADANOS | Q42: Suma | R42: 1 | S42: Realizar | T42: 4 | U42: Acuerdos | V42: para la vinculación de la ciudadanía en los programas adelantados por el IDRD y acuerdos con vendedores informales o estacionarios | W42: Realizar 4 acuerdos para la vinculación de la ciudadanía en los programas adelantados por el IDRD y acuerdos con vendedores informales o estacionarios | X42: =VLOOKUP(AG42,'Anexo PMR'!$B$4:$G$87,6,0) -> 2_Presupuestos Participativos 50% | Y42: 7 | Z42: Desarrollo social y cultural | AA42: Acuerdos para mejorar el uso de medios de transporte no motorizados. | AB42: 98 | AC42: GOBIERNO | AD42: 28 | AE42: Acuerdos ciudadanos suscritos. | AF42: 60 | AG42: Acuerdos realizados para la vinculación de la ciudadanía en los programas adelantados por el IDRD y acuerdos con vendedores informales o estacionarios | AH42: ACUERDOS DE ESPACIO PÚBLICO | AL42: 0 | AM42: 1 | AN42: 1 | AO42: 2 | AP42: 0 | AQ42: 200000000 | AR42: 200000000 | AS42: 407380000 | AT42: 807380000 | AU42: 1 | AV42: 0 | AW42: 0 | AX42: 0 | AY42: 0 | AZ42: Bajo | BA42: Bajo | BB42: 0.2955952507 | BC42: 0 | BD42: 0 | BH42: 0 | BI42: 2021_1 | BJ42: 0 | BK42: 0 | BL42: 0 | BM42: 0 | BN42: 0 | BO42: 0 | BP42: 0 | BQ42: 0 | BR42: 0 | BS42: 0 | BT42: 0 | BU42: 0 | BV42: 0 | CA42: 0 | CB42: 0 | CC42: 0 | CD42: 0 | CE42: 0 | CG42: 0 | CH42: 0 | CI42: 0 | CJ42: 0 | CM42: 0 | CN42: 0 | CO42: 0 | CV42: =VLOOKUP(AG42,'Anexo ODS'!$G$3:$P$86,5,0) -> 2 | CW42: =VLOOKUP(AG42,'Anexo ODS'!$G$3:$P$86,6,0) -> La Paz | CX42: =VLOOKUP(AG42,'Anexo ODS'!$G$3:$P$86,7,0) -> 16 | CY42: =VLOOKUP(AG42,'Anexo ODS'!$G$3:$P$86,8,0) -> Paz, justicia e instituciones sólidas | CZ42: =VLOOKUP(AG42,'Anexo ODS'!$G$3:$P$86,9,0) -> 16.1 | DA42: =VLOOKUP(AG42,'Anexo ODS'!$G$3:$P$86,10,0) -> Reducir significativamente todas las formas de violencia y las correspondientes tasas de mortalidad en todo el mundo | DJ42: 4 | DK42: Anexo 2 (15%)
A43: 42 | B43: 1 | C43: Usaquén | D43: 3 | E43: Inspirar confianza y legitimidad para vivir sin miedo y ser epicentro de cultura ciudadana, paz y reconciliación. | F43: 45 | G43: Espacio público más seguro y construido colectivamente | L43: 42 | M43: Realizar 4 acuerdos para el uso del EP con fines culturales, deportivos, recreacionales o de mercados temporales. | N43: 1959 | O43: Usaquén con espacio público inclusivo | P43: ACUERDOS CIUDADANOS | Q43: Suma | R43: 3 | S43: Realizar | T43: 4 | U43: Acuerdos | V43: para el uso del EP con fines culturales, deportivos, recreacionales o de mercados temporales. | W43: Realizar 4 acuerdos para el uso del EP con fines culturales, deportivos, recreacionales o de mercados temporales. | X43: =VLOOKUP(AG43,'Anexo PMR'!$B$4:$G$87,6,0) -> 2_Presupuestos Participativos 50% | Y43: 7 | Z43: Desarrollo social y cultural | AA43: Acuerdos para el uso, acceso y aprovechamiento del espacio público. | AB43: 98 | AC43: GOBIERNO | AD43: 28 | AE43: Acuerdos ciudadanos suscritos. | AF43: 58 | AG43: Acuerdos realizados para el uso del EP con fines culturales, deportivos, recreacionales o de mercados temporales. | AH43: ACUERDOS DE ESPACIO PÚBLICO | AL43: 1 | AM43: 1 | AN43: 1 | AO43: 1 | AP43: 200000000 | AQ43: 200000000 | AR43: 200000000 | AS43: 224000000 | AT43: 824000000 | AU43: 1 | AV43: 0 | AW43: 0 | AX43: 0 | AY43: 0 | AZ43: Bajo | BA43: Bajo | BB43: 0.3016801092 | BC43: 0 | BD43: 0 | BH43: 0 | BI43: 2021_1 | BJ43: 1 | BK43: 1 | BL43: 0 | BM43: 0 | BN43: 0 | BO43: 0 | BP43: 0 | BQ43: 0 | BR43: 0 | BS43: 0 | BT43: 0 | BU43: 0 | BV43: 0 | CA43: 194253000 | CB43: 194253000 | CC43: 0 | CD43: 0 | CE43: 0 | CF43: 28000000 | CG43: 0 | CH43: 0 | CI43: 0 | CJ43: 28000000 | CK43: 0 | CL43: 0 | CM43: 0 | CN43: 0 | CO43: 0 | CP43: Corte 31 marzo de 2021: Las contrataciones adjudicadas no contribuyen al avance directo de la meta. | CV43: =VLOOKUP(AG43,'Anexo ODS'!$G$3:$P$86,5,0) -> 2 | CW43: =VLOOKUP(AG43,'Anexo ODS'!$G$3:$P$86,6,0) -> La Paz | CX43: =VLOOKUP(AG43,'Anexo ODS'!$G$3:$P$86,7,0) -> 16 | CY43: =VLOOKUP(AG43,'Anexo ODS'!$G$3:$P$86,8,0) -> Paz, justicia e instituciones sólidas | CZ43: =VLOOKUP(AG43,'Anexo ODS'!$G$3:$P$86,9,0) -> 16.1 | DA43: =VLOOKUP(AG43,'Anexo ODS'!$G$3:$P$86,10,0) -> Reducir significativamente todas las formas de violencia y las correspondientes tasas de mortalidad en todo el mundo | DJ43: 4 | DK43: Anexo 2 (15%)
A44: 43 | B44: 1 | C44: Usaquén | D44: 3 | E44: Inspirar confianza y legitimidad para vivir sin miedo y ser epicentro de cultura ciudadana, paz y reconciliación. | F44: 45 | G44: Espacio público más seguro y construido colectivamente | L44: 43 | M44: Realizar 1 acuerdo para promover la formalización de vendedores informales a círculos económicos productivos de la ciudad que incluya formación para el trabajo. | N44: 1959 | O44: Usaquén con espacio público inclusivo | P44: ACUERDOS CIUDADANOS | Q44: Suma | R44: 4 | S44: Realizar | T44: 1 | U44: Acuerdos | V44: para promover la formalización de vendedores informales a círculos económicos productivos de la ciudad que incluya formación para el trabajo. | W44: Realizar 1 acuerdo para promover la formalización de vendedores informales a círculos económicos productivos de la ciudad que incluya formación para el trabajo. | X44: =VLOOKUP(AG44,'Anexo PMR'!$B$4:$G$87,6,0) -> 2_Presupuestos Participativos 50% | Y44: 7 | Z44: Desarrollo social y cultural | AA44: Acuerdos para fortalecer la formalidad. | AB44: 98 | AC44: GOBIERNO | AD44: 28 | AE44: Acuerdos ciudadanos suscritos. | AF44: 59 | AG44: Acuerdos realizados para la promover la formalización de vendedores informales a circulos económicos productivos de la ciudad | AH44: ACUERDOS DE ESPACIO PÚBLICO | AL44: 0.25 | AM44: 0.25 | AN44: 0.25 | AO44: 0.25 | AP44: 262460000 | AQ44: 270520000 | AR44: 279070000 | AS44: 287940000 | AT44: 1099990000 | AU44: 1 | AV44: 0 | AW44: 0 | AX44: 0 | AY44: 0 | AZ44: Bajo | BA44: Bajo | BB44: 0.40272464 | BC44: 0 | BD44: 0 | BH44: 0 | BI44: 2021_1 | BJ44: 0.25 | BK44: 0.25 | BL44: 0 | BM44: 0 | BN44: 0 | BO44: 0 | BP44: 0 | BQ44: 0 | BR44: 0 | BS44: 0 | BT44: 0 | BU44: 0 | BV44: 0 | CA44: 254918000 | CB44: 254918000 | CC44: 0 | CD44: 0 | CE44: 0 | CF44: 80400000 | CG44: 0 | CH44: 0 | CI44: 0 | CJ44: 80400000 | CK44: 0 | CL44: 0 | CM44: 0 | CN44: 0 | CO44: 0 | CP44: Corte 31 marzo de 2021: Las contrataciones adjudicadas no contribuyen al avance directo de la meta. | CV44: =VLOOKUP(AG44,'Anexo ODS'!$G$3:$P$86,5,0) -> 2 | CW44: =VLOOKUP(AG44,'Anexo ODS'!$G$3:$P$86,6,0) -> La Paz | CX44: =VLOOKUP(AG44,'Anexo ODS'!$G$3:$P$86,7,0) -> 16 | CY44: =VLOOKUP(AG44,'Anexo ODS'!$G$3:$P$86,8,0) -> Paz, justicia e instituciones sólidas | CZ44: =VLOOKUP(AG44,'Anexo ODS'!$G$3:$P$86,9,0) -> 16.1 | DA44: =VLOOKUP(AG44,'Anexo ODS'!$G$3:$P$86,10,0) -> Reducir significativamente todas las formas de violencia y las correspondientes tasas de mortalidad en todo el mundo | DJ44: 1 | DK44: Anexo 1 (85%)
A45: 44 | B45: 1 | C45: Usaquén | D45: 3 | E45: Inspirar confianza y legitimidad para vivir sin miedo y ser epicentro de cultura ciudadana, paz y reconciliación. | F45: 48 | G45: Plataforma institucional para la seguridad y justicia | L45: 44 | M45: Implementar 2 estrategias locales de acciones pedagógicas del Código Nacional de Seguridad y Convivencia Ciudadana en la localidad. | N45: 1951 | O45: Usaquén con acceso a la justicia | P45: ACCIONES PEDAGÓGICAS | Q45: Suma | R45: 1 | S45: Implementar | T45: 2 | U45: Estrategias | V45: locales de acciones pedagógicas del Código Nacional de Seguridad y Convivencia Ciudadana en la localidad. | W45: Implementar 2 estrategias locales de acciones pedagógicas del Código Nacional de Seguridad y Convivencia Ciudadana en la localidad. | X45: =VLOOKUP(AG45,'Anexo PMR'!$B$4:$G$87,6,0) -> 2_Presupuestos Participativos 50% | Y45: 7 | Z45: Desarrollo social y cultural | AA45: Acceso a la Justicia. | AB45: 102 | AC45: SEGURIDAD, CONVIVENCIA Y JUSTICIA | AD45: 27 | AE45: Prevención, atención y gestión del conflicto en la localidad. | AF45: 64 | AG45: Estrategia local de acciones pedagógicas del Código Nacional de Seguridad y Convivencia Ciudadana implementada en la localidad. | AH45: ACCESO A LA JUSTICIA | AL45: 0 | AM45: 1 | AN45: 1 | AO45: 0 | AP45: 0 | AQ45: 200000000 | AR45: 265230000 | AS45: 0 | AT45: 465230000 | AU45: 1 | AV45: 0 | AW45: 0 | AX45: 0 | AY45: 0 | AZ45: Bajo | BA45: Bajo | BB45: 0.1309964606 | BC45: 0 | BD45: 0 | BH45: 0 | BI45: 2021_1 | BJ45: 0 | BK45: 0 | BL45: 0 | BM45: 0 | BN45: 0 | BO45: 0 | BP45: 0 | BQ45: 0 | BR45: 0 | BS45: 0 | BT45: 0 | BU45: 0 | BV45: 0 | CA45: 0 | CB45: 0 | CC45: 0 | CD45: 0 | CE45: 0 | CG45: 0 | CH45: 0 | CI45: 0 | CJ45: 0 | CM45: 0 | CN45: 0 | CO45: 0 | CV45: =VLOOKUP(AG45,'Anexo ODS'!$G$3:$P$86,5,0) -> 2 | CW45: =VLOOKUP(AG45,'Anexo ODS'!$G$3:$P$86,6,0) -> La Paz | CX45: =VLOOKUP(AG45,'Anexo ODS'!$G$3:$P$86,7,0) -> 16 | CY45: =VLOOKUP(AG45,'Anexo ODS'!$G$3:$P$86,8,0) -> Paz, justicia e instituciones sólidas | CZ45: =VLOOKUP(AG45,'Anexo ODS'!$G$3:$P$86,9,0) -> 16.3 | DA45: =VLOOKUP(AG45,'Anexo ODS'!$G$3:$P$86,10,0) -> Promover el estado de derecho en los planos nacional e internacional y garantizar la igualdad de acceso a la justicia para todos | DJ45: 2 | DK45: Anexo 1 (85%)
A46: 45 | B46: 1 | C46: Usaquén | D46: 3 | E46: Inspirar confianza y legitimidad para vivir sin miedo y ser epicentro de cultura ciudadana, paz y reconciliación. | F46: 48 | G46: Plataforma institucional para la seguridad y justicia | L46: 45 | M46: Atender 150 personas en estrategias de acceso a la justicia integral en la ciudad. | N46: 1951 | O46: Usaquén con acceso a la justicia | P46: JUECES DE PAZ | Q46: Suma | R46: 2 | S46: Atender | T46: 150 | U46: Personas | V46: en estrategias de acceso a la justicia integral en la ciudad. | W46: Atender 150 personas en estrategias de acceso a la justicia integral en la ciudad. | X46: =VLOOKUP(AG46,'Anexo PMR'!$B$4:$G$87,6,0) -> 2_Presupuestos Participativos 50% | Y46: 7 | Z46: Desarrollo social y cultural | AA46: Acceso a la Justicia. | AB46: 102 | AC46: SEGURIDAD, CONVIVENCIA Y JUSTICIA | AD46: 29 | AE46: Bienes y servicios de apoyo para el fortalecimiento de la justicia comunitaria y la justicia integral en la ciudad. | AF46: 62 | AG46: Personas atendidas en estrategias de acceso a la justicia integral en la ciudad. | AH46: ACCESO A LA JUSTICIA | AL46: 0 | AM46: 75 | AN46: 75 | AO46: 0 | AP46: 0 | AQ46: 200000000 | AR46: 265230000 | AS46: 0 | AT46: 465230000 | AU46: 1 | AV46: 0 | AW46: 0 | AX46: 0 | AY46: 0 | AZ46: Bajo | BA46: Bajo | BB46: 0.1309964606 | BC46: 0 | BD46: 0 | BH46: 0 | BI46: 2021_1 | BJ46: 0 | BK46: 0 | BL46: 0 | BM46: 0 | BN46: 0 | BO46: 0 | BP46: 0 | BQ46: 0 | BR46: 0 | BS46: 0 | BT46: 0 | BU46: 0 | BV46: 0 | CA46: 0 | CB46: 0 | CC46: 0 | CD46: 0 | CE46: 0 | CG46: 0 | CH46: 0 | CI46: 0 | CJ46: 0 | CM46: 0 | CN46: 0 | CO46: 0 | CV46: =VLOOKUP(AG46,'Anexo ODS'!$G$3:$P$86,5,0) -> 2 | CW46: =VLOOKUP(AG46,'Anexo ODS'!$G$3:$P$86,6,0) -> La Paz | CX46: =VLOOKUP(AG46,'Anexo ODS'!$G$3:$P$86,7,0) -> 16 | CY46: =VLOOKUP(AG46,'Anexo ODS'!$G$3:$P$86,8,0) -> Paz, justicia e instituciones sólidas | CZ46: =VLOOKUP(AG46,'Anexo ODS'!$G$3:$P$86,9,0) -> 16.3 | DA46: =VLOOKUP(AG46,'Anexo ODS'!$G$3:$P$86,10,0) -> Promover el estado de derecho en los planos nacional e internacional y garantizar la igualdad de acceso a la justicia para todos | DJ46: 150 | DK46: Anexo 1 (85%)
A47: 46 | B47: 1 | C47: Usaquén | D47: 3 | E47: Inspirar confianza y legitimidad para vivir sin miedo y ser epicentro de cultura ciudadana, paz y reconciliación. | F47: 48 | G47: Plataforma institucional para la seguridad y justicia | L47: 46 | M47: Suministrar 1 dotación logística a organismos de seguridad | N47: 1956 | O47: Usaquén fortalecida y segura | P47: DOTACIÓN | Q47: Suma | R47: 1 | S47: Suministrar | T47: 1 | U47: Dotaciones | V47: logística a organismos de seguridad | W47: Suministrar 1 dotación logística a organismos de seguridad | X47: =VLOOKUP(AG47,'Anexo PMR'!$B$4:$G$87,6,0) -> 2_Presupuestos Participativos 50% | Y47: 7 | Z47: Desarrollo social y cultural | AA47: Dotación para instancias de seguridad. | AB47: 102 | AC47: SEGURIDAD, CONVIVENCIA Y JUSTICIA | AD47: 30 | AE47: Infraestructura y dotaciones para seguridad. | AF47: 66 | AG47: Dotaciones logísticas suministradas a organismos de seguridad. | AH47: DOTACIÓN EN SEGURIDAD | AL47: 0 | AM47: 1 | AN47: 0 | AO47: 0 | AP47: 0 | AQ47: 516990000 | AR47: 0 | AS47: 0 | AT47: 516990000 | AU47: 1 | AV47: 0 | AW47: 0 | AX47: 0 | AY47: 0 | AZ47: Bajo | BA47: Bajo | BB47: 0.1455707073 | BC47: 0 | BD47: 0 | BH47: 0 | BI47: 2021_1 | BJ47: 0 | BK47: 0 | BL47: 0 | BM47: 0 | BN47: 0 | BO47: 0 | BP47: 0 | BQ47: 0 | BR47: 0 | BS47: 0 | BT47: 0 | BU47: 0 | BV47: 0 | CA47: 0 | CB47: 0 | CC47: 0 | CD47: 0 | CE47: 0 | CG47: 0 | CH47: 0 | CI47: 0 | CJ47: 0 | CM47: 0 | CN47: 0 | CO47: 0 | CV47: =VLOOKUP(AG47,'Anexo ODS'!$G$3:$P$86,5,0) -> 2 | CW47: =VLOOKUP(AG47,'Anexo ODS'!$G$3:$P$86,6,0) -> La Paz | CX47: =VLOOKUP(AG47,'Anexo ODS'!$G$3:$P$86,7,0) -> 16 | CY47: =VLOOKUP(AG47,'Anexo ODS'!$G$3:$P$86,8,0) -> Paz, justicia e instituciones sólidas | CZ47: =VLOOKUP(AG47,'Anexo ODS'!$G$3:$P$86,9,0) -> 16.a | DA47: =VLOOKUP(AG47,'Anexo ODS'!$G$3:$P$86,10,0) -> Fortalecer las instituciones nacionales pertinentes, incluso mediante la cooperación internacional, para crear a todos los niveles, particularmente en los países en desarrollo, la capacidad de prevenir la violencia y combatir el terrorismo y la delincuencia | DJ47: 1 | DK47: Anexo 1 (85%)
A48: 47 | B48: 1 | C48: Usaquén | D48: 3 | E48: Inspirar confianza y legitimidad para vivir sin miedo y ser epicentro de cultura ciudadana, paz y reconciliación. | F48: 48 | G48: Plataforma institucional para la seguridad y justicia | L48: 47 | M48: Suministrar 2 dotaciones tecnológicas a organismos de seguridad. | N48: 1956 | O48: Usaquén fortalecida y segura | P48: DOTACIÓN | Q48: Suma | R48: 2 | S48: Suministrar | T48: 2 | U48: Dotaciones | V48: tecnológicas a organismos de seguridad. | W48: Suministrar 2 dotaciones tecnológicas a organismos de seguridad. | X48: =VLOOKUP(AG48,'Anexo PMR'!$B$4:$G$87,6,0) -> 2_Presupuestos Participativos 50% | Y48: 7 | Z48: Desarrollo social y cultural | AA48: Dotación para instancias de seguridad. | AB48: 102 | AC48: SEGURIDAD, CONVIVENCIA Y JUSTICIA | AD48: 30 | AE48: Infraestructura y dotaciones para seguridad. | AF48: 65 | AG48: Dotaciones tecnológicas suministradas a organismos de seguridad. | AH48: DOTACIÓN EN SEGURIDAD | AL48: 1 | AM48: 0 | AN48: 1 | AO48: 0 | AP48: 1700000000 | AQ48: 0 | AR48: 404020000 | AS48: 0 | AT48: 2104020000 | AU48: 1 | AV48: 0 | AW48: 0 | AX48: 0 | AY48: 0 | AZ48: Bajo | BA48: Bajo | BB48: 0.5924363714 | BC48: 0 | BD48: 0 | BH48: 0 | BI48: 2021_1 | BJ48: 1 | BK48: 1 | BL48: 0 | BM48: 0 | BN48: 0 | BO48: 0 | BP48: 0 | BQ48: 0 | BR48: 0 | BS48: 0 | BT48: 0 | BU48: 0 | BV48: 0 | CA48: 1651147000 | CB48: 1651147000 | CC48: 0 | CD48: 0 | CE48: 0 | CF48: 355300000 | CG48: 0 | CH48: 0 | CI48: 0 | CJ48: 355300000 | CK48: 9873334 | CL48: 9873334 | CM48: 0 | CN48: 0 | CO48: 0 | CP48: Corte 31 marzo de 2021: Las contrataciones adjudicadas no contribuyen al avance directo de la meta. | CV48: =VLOOKUP(AG48,'Anexo ODS'!$G$3:$P$86,5,0) -> 2 | CW48: =VLOOKUP(AG48,'Anexo ODS'!$G$3:$P$86,6,0) -> La Paz | CX48: =VLOOKUP(AG48,'Anexo ODS'!$G$3:$P$86,7,0) -> 16 | CY48: =VLOOKUP(AG48,'Anexo ODS'!$G$3:$P$86,8,0) -> Paz, justicia e instituciones sólidas | CZ48: =VLOOKUP(AG48,'Anexo ODS'!$G$3:$P$86,9,0) -> 16.a | DA48: =VLOOKUP(AG48,'Anexo ODS'!$G$3:$P$86,10,0) -> Fortalecer las instituciones nacionales pertinentes, incluso mediante la cooperación internacional, para crear a todos los niveles, particularmente en los países en desarrollo, la capacidad de prevenir la violencia y combatir el terrorismo y la delincuencia | DJ48: 2 | DK48: Anexo 1 (85%)
A49: 48 | B49: 1 | C49: Usaquén | D49: 4 | E49: Hacer de Bogotá-región un modelo de movilidad, creatividad y productividad incluyente y sostenible | F49: 49 | G49: Movilidad segura, sostenible y accesible | L49: 48 | M49: Intervenir 1700 metros cuadrados de elementos del sistema de espacio público peatonal con acciones de construcción y/o conservación. | N49: 1954 | O49: Movilidad sostenible local | P49: CONSTRUCCIÓN Y CONSERVACIÓN | Q49: Suma | R49: 2 | S49: Intervenir | T49: 1700 | U49: Metros cuadrados | V49: de elementos del sistema de espacio público peatonal con acciones de construcción y/o conservación. | W49: Intervenir 1700 metros cuadrados de elementos del sistema de espacio público peatonal con acciones de construcción y/o conservación. | X49: =VLOOKUP(AG49,'Anexo PMR'!$B$4:$G$87,6,0) -> 2_Presupuestos Participativos 50% | Y49: 6 | Z49: Infraestructura | AA49: Construcción y/o conservación de elementos del sistema de espacio público peatonal. | AB49: 95 | AC49: MOVILIDAD | AD49: 31 | AE49: Espacio público. | AF49: 69 | AG49: Metros cuadrados construidos y/o conservados de elementos del sistema de espacio público peatonal. | AH49: ESPACIO PÚBLICO | AL49: 0 | AM49: 0 | AN49: 750 | AO49: 950 | AP49: 0 | AQ49: 0 | AR49: 818460000 | AS49: 1200000000 | AT49: 2018460000 | AU49: 1 | AV49: 0 | AW49: 0 | AX49: 0 | AY49: 0 | AZ49: Bajo | BA49: Bajo | BB49: 0.1539078578 | BC49: 0 | BD49: 0 | BH49: 0 | BI49: 2021_1 | BJ49: 0 | BK49: 0 | BL49: 0 | BM49: 0 | BN49: 0 | BO49: 0 | BP49: 0 | BQ49: 0 | BR49: 0 | BS49: 0 | BT49: 0 | BU49: 0 | BV49: 0 | CA49: 0 | CB49: 0 | CC49: 0 | CD49: 0 | CE49: 0 | CG49: 0 | CH49: 0 | CI49: 0 | CJ49: 0 | CM49: 0 | CN49: 0 | CO49: 0 | CV49: =VLOOKUP(AG49,'Anexo ODS'!$G$3:$P$86,5,0) -> 3 | CW49: =VLOOKUP(AG49,'Anexo ODS'!$G$3:$P$86,6,0) -> La Prosperidad | CX49: =VLOOKUP(AG49,'Anexo ODS'!$G$3:$P$86,7,0) -> 11 | CY49: =VLOOKUP(AG49,'Anexo ODS'!$G$3:$P$86,8,0) -> Ciudades y comunidades sostenibles | CZ49: =VLOOKUP(AG49,'Anexo ODS'!$G$3:$P$86,9,0) -> 11.7 | DA49: =VLOOKUP(AG49,'Anexo ODS'!$G$3:$P$86,10,0) -> De aquí a 2030, proporcionar acceso universal a zonas verdes y espacios públicos seguros, inclusivos y accesibles, en particular para las mujeres y los niños, las personas de edad y las personas con discapacidad | DJ49: 1700 | DK49: Anexo 1 (85%)
A50: 49 | B50: 1 | C50: Usaquén | D50: 4 | E50: Hacer de Bogotá-región un modelo de movilidad, creatividad y productividad incluyente y sostenible | F50: 49 | G50: Movilidad segura, sostenible y accesible | L50: 49 | M50: Intervenir 500 metros cuadrados de Puentes vehiculares y/o peatonales de escala local sobre cuerpos de agua con acciones de construcción y/o conservación. | N50: 1954 | O50: Movilidad sostenible local | P50: INTERVENCIÓN PUENTES | Q50: Suma | R50: 3 | S50: Intervenir | T50: 500 | U50: Metros cuadrados | V50: de Puentes vehiculares y/o peatonales de escala local sobre cuerpos de agua con acciones de construcción y/o conservación. | W50: Intervenir 500 metros cuadrados de Puentes vehiculares y/o peatonales de escala local sobre cuerpos de agua con acciones de construcción y/o conservación. | X50: =VLOOKUP(AG50,'Anexo PMR'!$B$4:$G$87,6,0) -> 2_Presupuestos Participativos 50% | Y50: 6 | Z50: Infraestructura | AA50: Construcción y/o conservación de puentes peatonales y/o vehiculares sobre cuerpos de agua (de escala local: urbana y/o rural). | AB50: 95 | AC50: MOVILIDAD | AD50: 31 | AE50: Espacio público. | AF50: 70 | AG50: Metros cuadrados de Puentes vehiculares y/o peatonales de escala local sobre cuerpos de agua construidos y/o intervenidos | AH50: PUENTES | AL50: 0 | AM50: 0 | AN50: 250 | AO50: 250 | AP50: 0 | AQ50: 0 | AR50: 600000000 | AS50: 694750000 | AT50: 1294750000 | AU50: 1 | AV50: 0 | AW50: 0 | AX50: 0 | AY50: 0 | AZ50: Bajo | BA50: Bajo | BB50: 0.09872486891 | BC50: 0 | BD50: 0 | BH50: 0 | BI50: 2021_1 | BJ50: 0 | BK50: 0 | BL50: 0 | BM50: 0 | BN50: 0 | BO50: 0 | BP50: 0 | BQ50: 0 | BR50: 0 | BS50: 0 | BT50: 0 | BU50: 0 | BV50: 0 | CA50: 0 | CB50: 0 | CC50: 0 | CD50: 0 | CE50: 0 | CG50: 0 | CH50: 0 | CI50: 0 | CJ50: 0 | CM50: 0 | CN50: 0 | CO50: 0 | CV50: =VLOOKUP(AG50,'Anexo ODS'!$G$3:$P$86,5,0) -> 3 | CW50: =VLOOKUP(AG50,'Anexo ODS'!$G$3:$P$86,6,0) -> La Prosperidad | CX50: =VLOOKUP(AG50,'Anexo ODS'!$G$3:$P$86,7,0) -> 9 | CY50: =VLOOKUP(AG50,'Anexo ODS'!$G$3:$P$86,8,0) -> Industria, innovación e infraestructura | CZ50: =VLOOKUP(AG50,'Anexo ODS'!$G$3:$P$86,9,0) -> 9.1 | DA50: =VLOOKUP(AG50,'Anexo ODS'!$G$3:$P$86,10,0) -> Desarrollar infraestructuras fiables, sostenibles, resilientes y de calidad, incluidas infraestructuras regionales y transfronterizas, para apoyar el desarrollo económico y el bienestar humano, haciendo especial hincapié en el acceso asequible y equitativo para todos | DJ50: 500 | DK50: Anexo 1 (85%)
A51: 50 | B51: 1 | C51: Usaquén | D51: 4 | E51: Hacer de Bogotá-región un modelo de movilidad, creatividad y productividad incluyente y sostenible | F51: 49 | G51: Movilidad segura, sostenible y accesible | L51: 50 | M51: Intervenir 2 Kilómetros-carril de malla vial urbana (local y/o intermedia) con acciones de construcción y/o conservación. | N51: 1954 | O51: Movilidad sostenible local | P51: INTERVENCIÓN MALLA VIAL LOCAL | Q51: Suma | R51: 4 | S51: Intervenir | T51: 2 | U51: Kilómetros-carril | V51: de malla vial urbana (local y/o intermedia) con acciones de construcción y/o conservación. | W51: Intervenir 2 Kilómetros-carril de malla vial urbana (local y/o intermedia) con acciones de construcción y/o conservación. | X51: =VLOOKUP(AG51,'Anexo PMR'!$B$4:$G$87,6,0) -> 2_Presupuestos Participativos 50% | Y51: 6 | Z51: Infraestructura | AA51: Diseño, construcción y conservación (mantenimiento y rehabilitación) de la malla vial local e intermedia urbana o rural. | AB51: 95 | AC51: MOVILIDAD | AD51: 32 | AE51: Vías locales. | AF51: 71 | AG51: Kilómetros-carril construidos y/o conservados de malla vial urbana (local y/o intermedia) | AH51: MALLA VIAL | AL51: 0.7 | AM51: 0.8 | AN51: 0.5 | AO51: 0 | AP51: 3000000000 | AQ51: 3000000000 | AR51: 2147370000 | AS51: 0 | AT51: 8147370000 | AU51: 1 | AV51: 0 | AW51: 0 | AX51: 0 | AY51: 0 | AZ51: Bajo | BA51: Bajo | BB51: 0.621238104 | BC51: 0 | BD51: 0 | BH51: 0 | BI51: 2021_1 | BJ51: 0.7 | BK51: 0.7 | BL51: 0 | BM51: 0 | BN51: 0 | BO51: 0 | BP51: 0 | BQ51: 0 | BR51: 0 | BS51: 0 | BT51: 0 | BU51: 0 | BV51: 0 | CA51: 2913788000 | CB51: 2913788000 | CC51: 0 | CD51: 0 | CE51: 0 | CF51: 152700000 | CG51: 0 | CH51: 0 | CI51: 0 | CJ51: 152700000 | CK51: 5750000 | CL51: 5750000 | CM51: 0 | CN51: 0 | CO51: 0 | CP51: Corte 31 marzo de 2021: Las contrataciones adjudicadas no contribuyen al avance directo de la meta. | CV51: =VLOOKUP(AG51,'Anexo ODS'!$G$3:$P$86,5,0) -> 3 | CW51: =VLOOKUP(AG51,'Anexo ODS'!$G$3:$P$86,6,0) -> La Prosperidad | CX51: =VLOOKUP(AG51,'Anexo ODS'!$G$3:$P$86,7,0) -> 9 | CY51: =VLOOKUP(AG51,'Anexo ODS'!$G$3:$P$86,8,0) -> Industria, innovación e infraestructura | CZ51: =VLOOKUP(AG51,'Anexo ODS'!$G$3:$P$86,9,0) -> 9.1 | DA51: =VLOOKUP(AG51,'Anexo ODS'!$G$3:$P$86,10,0) -> Desarrollar infraestructuras fiables, sostenibles, resilientes y de calidad, incluidas infraestructuras regionales y transfronterizas, para apoyar el desarrollo económico y el bienestar humano, haciendo especial hincapié en el acceso asequible y equitativo para todos | DJ51: 2 | DK51: Anexo 1 (85%)
A52: 51 | B52: 1 | C52: Usaquén | D52: 4 | E52: Hacer de Bogotá-región un modelo de movilidad, creatividad y productividad incluyente y sostenible | F52: 49 | G52: Movilidad segura, sostenible y accesible | L52: 51 | M52: Intervenir 800 metros lineales de Ciclo-infraestructura con acciones de construcción y/o conservación. | N52: 1954 | O52: Movilidad sostenible local | P52: CICLO INFRAESTRUCTURA | Q52: Suma | R52: 5 | S52: Intervenir | T52: 800 | U52: Metros | V52: lineales de Ciclo-infraestructura con acciones de construcción y/o conservación. | W52: Intervenir 800 metros lineales de Ciclo-infraestructura con acciones de construcción y/o conservación. | X52: =VLOOKUP(AG52,'Anexo PMR'!$B$4:$G$87,6,0) -> 2_Presupuestos Participativos 50% | Y52: 6 | Z52: Infraestructura | AA52: Diseño, construcción y conservación de ciclo-infraestructura. | AB52: 95 | AC52: MOVILIDAD | AD52: 33 | AE52: Ciclo infraestructura construida y/o conservada. | AF52: 73 | AG52: Metros lineales construidos y/o conservados de Ciclo-infraestructura | AH52: CICLO-INFRAESTRUCTURA | AL52: 200 | AM52: 200 | AN52: 200 | AO52: 200 | AP52: 394680000 | AQ52: 406810000 | AR52: 419660000 | AS52: 433000000 | AT52: 1654150000 | AU52: 1 | AV52: 0 | AW52: 0 | AX52: 0 | AY52: 0 | AZ52: Bajo | BA52: Bajo | BB52: 0.1261291693 | BC52: 0 | BD52: 0 | BH52: 0 | BI52: 2021_1 | BJ52: 200 | BK52: 200 | BL52: 0 | BM52: 0 | BN52: 0 | BO52: 0 | BP52: 0 | BQ52: 0 | BR52: 0 | BS52: 0 | BT52: 0 | BU52: 0 | BV52: 0 | CA52: 383338000 | CB52: 383338000 | CC52: 0 | CD52: 0 | CE52: 0 | CF52: 35319280 | CG52: 0 | CH52: 0 | CI52: 0 | CJ52: 35319280 | CK52: 2207455 | CL52: 2207455 | CM52: 0 | CN52: 0 | CO52: 0 | CP52: Corte 31 marzo de 2021: Las contrataciones adjudicadas no contribuyen al avance directo de la meta. | CV52: =VLOOKUP(AG52,'Anexo ODS'!$G$3:$P$86,5,0) -> 3 | CW52: =VLOOKUP(AG52,'Anexo ODS'!$G$3:$P$86,6,0) -> La Prosperidad | CX52: =VLOOKUP(AG52,'Anexo ODS'!$G$3:$P$86,7,0) -> 11 | CY52: =VLOOKUP(AG52,'Anexo ODS'!$G$3:$P$86,8,0) -> Ciudades y comunidades sostenibles | CZ52: =VLOOKUP(AG52,'Anexo ODS'!$G$3:$P$86,9,0) -> 11.2 | DA52: =VLOOKUP(AG52,'Anexo ODS'!$G$3:$P$86,10,0) -> De aquí a 2030, proporcionar acceso a sistemas de transporte seguros, asequibles, accesibles y sostenibles para todos y mejorar la seguridad vial, en particular mediante la ampliación del transporte público, prestando especial atención a las necesidades de las personas en situación de vulnerabilidad, las mujeres, los niños, las personas con discapacidad y las personas de edad | DJ52: 800 | DK52: Anexo 1 (85%)
A53: 52 | B53: 1 | C53: Usaquén | D53: 5 | E53: Construir Bogotá-región con gobierno abierto, transparente y ciudadanía consciente. | F53: 55 | G53: Fortalecimiento de Cultura Ciudadana y su institucionalidad | L53: 52 | M53: Capacitar 734 personas a través de procesos de formación para la participación de manera virtual y presencial. | N53: 1950 | O53: Usaquén fortalece la participación ciudadana | P53: FORMACIÓN | Q53: Suma | R53: 1 | S53: Capacitar | T53: 734 | U53: Personas | V53: a través de procesos de formación para la participación de manera virtual y presencial. | W53: Capacitar 734 personas a través de procesos de formación para la participación de manera virtual y presencial. | X53: =VLOOKUP(AG53,'Anexo PMR'!$B$4:$G$87,6,0) -> 2_Presupuestos Participativos 50% | Y53: 7 | Z53: Desarrollo social y cultural | AA53: Escuelas y procesos de formación para la participación ciudadana y/u organizaciones para los procesos de presupuestos participativos. | AB53: 98 | AC53: GOBIERNO | AD53: 35 | AE53: Espacios y procesos de participación ciudadana fortalecidos. | AF53: 78 | AG53: Número de Personas capacitadas a través de procesos de formación para la participación de manera virtual y presencial. | AH53: FORMACIÓN CIUDADANA | AL53: 180 | AM53: 186 | AN53: 186 | AO53: 182 | AP53: 308930000 | AQ53: 318420000 | AR53: 328480000 | AS53: 338920000 | AT53: 1294750000 | AU53: 1 | AV53: 120 | AW53: 0.1634877384 | AX53: 0 | AY53: 0 | AZ53: Bajo | BA53: Bajo | BB53: 0.2697238494 | BC53: 0.04409654214 | BD53: 0 | BH53: 0 | BI53: 2021_1 | BJ53: 180 | BK53: 180 | BL53: 0 | BM53: 0 | BN53: 0 | BO53: 120 | BP53: 0 | BQ53: 0 | BR53: 0 | BS53: 0 | BT53: 0 | BU53: 0 | BV53: 0 | BW53: Incompleto | CA53: 300052000 | CB53: 300052000 | CC53: 0 | CD53: 0 | CE53: 0 | CF53: 204373280 | CG53: 0 | CH53: 0 | CI53: 0 | CJ53: 204373280 | CK53: 0 | CL53: 0 | CM53: 0 | CN53: 0 | CO53: 0 | CV53: =VLOOKUP(AG53,'Anexo ODS'!$G$3:$P$86,5,0) -> 2 | CW53: =VLOOKUP(AG53,'Anexo ODS'!$G$3:$P$86,6,0) -> La Paz | CX53: =VLOOKUP(AG53,'Anexo ODS'!$G$3:$P$86,7,0) -> 16 | CY53: =VLOOKUP(AG53,'Anexo ODS'!$G$3:$P$86,8,0) -> Paz, justicia e instituciones sólidas | CZ53: =VLOOKUP(AG53,'Anexo ODS'!$G$3:$P$86,9,0) -> 16.7 | DA53: =VLOOKUP(AG53,'Anexo ODS'!$G$3:$P$86,10,0) -> Garantizar la adopción en todos los niveles de decisiones inclusivas, participativas y representativas que respondan a las necesidades | DJ53: 734 | DK53: Anexo 1 (85%)
A54: 53 | B54: 1 | C54: Usaquén | D54: 5 | E54: Construir Bogotá-región con gobierno abierto, transparente y ciudadanía consciente. | F54: 55 | G54: Fortalecimiento de Cultura Ciudadana y su institucionalidad | L54: 53 | M54: Intervenir 3 sedes de salones comunales | N54: 1950 | O54: Usaquén fortalece la participación ciudadana | P54: INTERVENCIÓN | Q54: Suma | R54: 1 | S54: Intervenir | T54: 3 | U54: Sedes | V54: de salones comunales | W54: Intervenir 3 sedes de salones comunales | X54: =VLOOKUP(AG54,'Anexo PMR'!$B$4:$G$87,6,0) -> 2_Presupuestos Participativos 50% | Y54: 6 | Z54: Infraestructura | AA54: Intervención y dotación de salones comunales. | AB54: 98 | AC54: GOBIERNO | AD54: 35 | AE54: Espacios y procesos de participación ciudadana fortalecidos. | AF54: 75 | AG54: Sedes intervenidas de salones comunales. | AH54: SALONES COMUNALES | AL54: 0 | AM54: 0 | AN54: 3 | AO54: 0 | AP54: 0 | AQ54: 0 | AR54: 200000000 | AS54: 0 | AT54: 200000000 | AU54: 1 | AV54: 0 | AW54: 0 | AX54: 0 | AY54: 0 | AZ54: Bajo | BA54: Bajo | BB54: 0.04166423625 | BC54: 0 | BD54: 0 | BH54: 0 | BI54: 2021_1 | BJ54: 0 | BK54: 0 | BL54: 0 | BM54: 0 | BN54: 0 | BO54: 0 | BP54: 0 | BQ54: 0 | BR54: 0 | BS54: 0 | BT54: 0 | BU54: 0 | BV54: 0 | CA54: 0 | CB54: 0 | CC54: 0 | CD54: 0 | CE54: 0 | CG54: 0 | CH54: 0 | CI54: 0 | CJ54: 0 | CM54: 0 | CN54: 0 | CO54: 0 | CV54: =VLOOKUP(AG54,'Anexo ODS'!$G$3:$P$86,5,0) -> 3 | CW54: =VLOOKUP(AG54,'Anexo ODS'!$G$3:$P$86,6,0) -> La Prosperidad | CX54: =VLOOKUP(AG54,'Anexo ODS'!$G$3:$P$86,7,0) -> 11 | CY54: =VLOOKUP(AG54,'Anexo ODS'!$G$3:$P$86,8,0) -> Ciudades y comunidades sostenibles | CZ54: =VLOOKUP(AG54,'Anexo ODS'!$G$3:$P$86,9,0) -> 11.3 | DA54: =VLOOKUP(AG54,'Anexo ODS'!$G$3:$P$86,10,0) -> De aquí a 2030, aumentar la urbanización inclusiva y sostenible y la capacidad para la planificación y la gestión participativas, integradas y sostenibles de los asentamientos humanos en todos los países | DJ54: 3 | DK54: Anexo 1 (85%)
A55: 54 | B55: 1 | C55: Usaquén | D55: 5 | E55: Construir Bogotá-región con gobierno abierto, transparente y ciudadanía consciente. | F55: 55 | G55: Fortalecimiento de Cultura Ciudadana y su institucionalidad | L55: 54 | M55: Dotar 38 sedes de salones comunales | N55: 1950 | O55: Usaquén fortalece la participación ciudadana | P55: DOTACIÓN | Q55: Suma | R55: 2 | S55: Dotar | T55: 38 | U55: Sedes | V55: de salones comunales | W55: Dotar 38 sedes de salones comunales | X55: =VLOOKUP(AG55,'Anexo PMR'!$B$4:$G$87,6,0) -> 2_Presupuestos Participativos 50% | Y55: 6 | Z55: Infraestructura | AA55: Intervención y dotación de salones comunales. | AB55: 98 | AC55: GOBIERNO | AD55: 35 | AE55: Espacios y procesos de participación ciudadana fortalecidos. | AF55: 76 | AG55: Sedes dotadas de salones comunales. | AH55: SALONES COMUNALES | AL55: 0 | AM55: 19 | AN55: 0 | AO55: 19 | AP55: 0 | AQ55: 450000000 | AR55: 0 | AS55: 458000000 | AT55: 908000000 | AU55: 1 | AV55: 0 | AW55: 0 | AX55: 0 | AY55: 0 | AZ55: Bajo | BA55: Bajo | BB55: 0.1891556326 | BC55: 0 | BD55: 0 | BH55: 0 | BI55: 2021_1 | BJ55: 0 | BK55: 0 | BL55: 0 | BM55: 0 | BN55: 0 | BO55: 0 | BP55: 0 | BQ55: 0 | BR55: 0 | BS55: 0 | BT55: 0 | BU55: 0 | BV55: 0 | CA55: 0 | CB55: 0 | CC55: 0 | CD55: 0 | CE55: 0 | CG55: 0 | CH55: 0 | CI55: 0 | CJ55: 0 | CM55: 0 | CN55: 0 | CO55: 0 | CV55: =VLOOKUP(AG55,'Anexo ODS'!$G$3:$P$86,5,0) -> 3 | CW55: =VLOOKUP(AG55,'Anexo ODS'!$G$3:$P$86,6,0) -> La Prosperidad | CX55: =VLOOKUP(AG55,'Anexo ODS'!$G$3:$P$86,7,0) -> 11 | CY55: =VLOOKUP(AG55,'Anexo ODS'!$G$3:$P$86,8,0) -> Ciudades y comunidades sostenibles | CZ55: =VLOOKUP(AG55,'Anexo ODS'!$G$3:$P$86,9,0) -> 11.3 | DA55: =VLOOKUP(AG55,'Anexo ODS'!$G$3:$P$86,10,0) -> De aquí a 2030, aumentar la urbanización inclusiva y sostenible y la capacidad para la planificación y la gestión participativas, integradas y sostenibles de los asentamientos humanos en todos los países | DJ55: 38 | DK55: Anexo 2 (15%)
A56: 55 | B56: 1 | C56: Usaquén | D56: 5 | E56: Construir Bogotá-región con gobierno abierto, transparente y ciudadanía consciente. | F56: 55 | G56: Fortalecimiento de Cultura Ciudadana y su institucionalidad | L56: 55 | M56: Fortalecer 43 Organizaciones, JAC e Instancias de participación ciudadana | N56: 1950 | O56: Usaquén fortalece la participación ciudadana | P56: FORTALECIMIENTO ORGANIZATIVO | Q56: Suma | R56: 2 | S56: Fortalecer | T56: 43 | U56: Organizaciones | V56: , JAC e Instancias de participación ciudadana | W56: Fortalecer 43 Organizaciones, JAC e Instancias de participación ciudadana | X56: =VLOOKUP(AG56,'Anexo PMR'!$B$4:$G$87,6,0) -> 2_Presupuestos Participativos 50% | Y56: 7 | Z56: Desarrollo social y cultural | AA56: Fortalecimiento de organizaciones sociales, comunitarias, comunales, propiedad horizontal e instancias y mecanismos de participación, con énfasis en jóvenes y asociatividad productiva. | AB56: 98 | AC56: GOBIERNO | AD56: 35 | AE56: Espacios y procesos de participación ciudadana fortalecidos. | AF56: 79 | AG56: Número de Organizaciones, JAC e Instancias de participación ciudadana fortalecidas. | AH56: FORTALECIMIENTO ORGANIZATIVO | AL56: 10 | AM56: 10 | AN56: 10 | AO56: 13 | AP56: 429840000 | AQ56: 470160000 | AR56: 518700000 | AS56: 978830000 | AT56: 2397530000 | AU56: 1 | AV56: 0 | AW56: 0 | AX56: 0 | AY56: 0 | AZ56: Bajo | BA56: Bajo | BB56: 0.4994562817 | BC56: 0 | BD56: 0 | BH56: 0 | BI56: 2021_1 | BJ56: 10 | BK56: 10 | BL56: 0 | BM56: 0 | BN56: 0 | BO56: 0 | BP56: 0 | BQ56: 0 | BR56: 0 | BS56: 0 | BT56: 0 | BU56: 0 | BV56: 0 | CA56: 417488000 | CB56: 417488000 | CC56: 0 | CD56: 0 | CE56: 0 | CF56: 100000000 | CG56: 0 | CH56: 0 | CI56: 0 | CJ56: 100000000 | CK56: 4766667 | CL56: 4766667 | CM56: 0 | CN56: 0 | CO56: 0 | CP56: Corte 31 marzo de 2021: Las contrataciones adjudicadas no contribuyen al avance directo de la meta. | CV56: =VLOOKUP(AG56,'Anexo ODS'!$G$3:$P$86,5,0) -> 2 | CW56: =VLOOKUP(AG56,'Anexo ODS'!$G$3:$P$86,6,0) -> La Paz | CX56: =VLOOKUP(AG56,'Anexo ODS'!$G$3:$P$86,7,0) -> 16 | CY56: =VLOOKUP(AG56,'Anexo ODS'!$G$3:$P$86,8,0) -> Paz, justicia e instituciones sólidas | CZ56: =VLOOKUP(AG56,'Anexo ODS'!$G$3:$P$86,9,0) -> 16.7 | DA56: =VLOOKUP(AG56,'Anexo ODS'!$G$3:$P$86,10,0) -> Garantizar la adopción en todos los niveles de decisiones inclusivas, participativas y representativas que respondan a las necesidades | DJ56: 43 | DK56: Anexo 2 (15%)
A57: 56 | B57: 1 | C57: Usaquén | D57: 5 | E57: Construir Bogotá-región con gobierno abierto, transparente y ciudadanía consciente. | F57: 56 | G57: Gestión pública efectiva | L57: 56 | M57: Construir 1 sede administrativa local | N57: 0 | P57: SEDE ADMINISTRATIVA | Q57: Suma | R57: 1 | S57: Construir | T57: 1 | U57: Sedes | V57: administrativa local | W57: Construir 1 sede administrativa local | X57: =VLOOKUP(AG57,'Anexo PMR'!$B$4:$G$87,6,0) -> 1_Inflexible 45% | Y57: 1 | Z57: Gestión pública local | AA57: Terminación de infraestructuras (sedes administrativas locales). | AB57: 98 | AC57: GOBIERNO | AD57: 36 | AE57: Infraestructura para la atención de servicio al ciudadano. | AF57: 81 | AG57: Sedes administrativas locales construidas. | AH57: FORTALECIMIENTO ORGANIZATIVO | AL57: 0 | AM57: 0 | AN57: 0 | AO57: 0 | AP57: 0 | AQ57: 0 | AR57: 0 | AS57: 0 | AT57: 0 | AU57: 1 | AV57: 0 | AW57: 0 | AX57: 0 | AY57: 0 | AZ57: Bajo | BA57: Bajo | BB57: 0 | BC57: 0 | BD57: 0 | BH57: 0 | BI57: 2021_1 | BJ57: 0 | BK57: 0 | BL57: 0 | BM57: 0 | BN57: 0 | BO57: 0 | BP57: 0 | BQ57: 0 | BR57: 0 | BS57: 0 | BT57: 0 | BU57: 0 | BV57: 0 | CA57: 0 | CB57: 0 | CC57: 0 | CD57: 0 | CE57: 0 | CG57: 0 | CH57: 0 | CI57: 0 | CJ57: 0 | CM57: 0 | CN57: 0 | CO57: 0 | CV57: =VLOOKUP(AG57,'Anexo ODS'!$G$3:$P$86,5,0) -> 3 | CW57: =VLOOKUP(AG57,'Anexo ODS'!$G$3:$P$86,6,0) -> La Prosperidad | CX57: =VLOOKUP(AG57,'Anexo ODS'!$G$3:$P$86,7,0) -> 9 | CY57: =VLOOKUP(AG57,'Anexo ODS'!$G$3:$P$86,8,0) -> Industria, innovación e infraestructura | CZ57: =VLOOKUP(AG57,'Anexo ODS'!$G$3:$P$86,9,0) -> 9.1 | DA57: =VLOOKUP(AG57,'Anexo ODS'!$G$3:$P$86,10,0) -> Desarrollar infraestructuras fiables, sostenibles, resilientes y de calidad, incluidas infraestructuras regionales y transfronterizas, para apoyar el desarrollo económico y el bienestar humano, haciendo especial hincapié en el acceso asequible y equitativo para todos | DJ57: 1 | DK57: Anexo 1 (85%)
A58: 57 | B58: 1 | C58: Usaquén | D58: 5 | E58: Construir Bogotá-región con gobierno abierto, transparente y ciudadanía consciente. | F58: 57 | G58: Gestión Pública Local | L58: 57 | M58: Realizar 4 estrategias de fortalecimiento institucional. | N58: 1949 | O58: Fortalecimiento local y participativo | P58: FORTALECIMIENTO LOCAL | Q58: Suma | R58: 2 | S58: Realizar | T58: 4 | U58: Estrategias | V58: de fortalecimiento institucional. | W58: Realizar 4 estrategias de fortalecimiento institucional. | X58: =VLOOKUP(AG58,'Anexo PMR'!$B$4:$G$87,6,0) -> 1_Inflexible 45% | Y58: 1 | Z58: Gestión pública local | AA58: Fortalecimiento institucional. | AB58: 98 | AC58: GOBIERNO | AD58: 37 | AE58: Fortalecimiento institucional. | AF58: 82 | AG58: Estrategias de fortalecimiento institucional realizadas | AH58: FORTALECIMIENTO LOCAL | AL58: 1 | AM58: 1 | AN58: 1 | AO58: 1 | AP58: 5566800000 | AQ58: 5737770000 | AR58: 5919090000 | AS58: 6107200000 | AT58: 23330860000 | AU58: 1 | AV58: 1 | AW58: 0.25 | AX58: 1 | AY58: 0.25 | AZ58: Bajo | BA58: Bajo | BB58: =AT58/SUMIF($F$2:$F$60,F58,$AT$2:$AT$60) -> 0.7861747522 | BC58: 0.196543688 | BD58: 0.196543688 | BH58: 0 | BI58: 2021_1 | BJ58: 1 | BK58: 1 | BL58: 0 | BM58: 0 | BN58: 0 | BO58: 1 | BP58: 0 | BQ58: 0 | BR58: 0 | BS58: 1 | BT58: 0 | BU58: 0 | BV58: 0 | BW58: Incompleto | CA58: 5406826000 | CB58: 5406826000 | CC58: 0 | CD58: 0 | CE58: 0 | CF58: 2643777464 | CG58: 0 | CH58: 0 | CI58: 0 | CJ58: 2643777464 | CK58: 90863412 | CL58: 90863412 | CM58: 0 | CN58: 0 | CO58: 0 | CV58: =VLOOKUP(AG58,'Anexo ODS'!$G$3:$P$86,5,0) -> 2 | CW58: =VLOOKUP(AG58,'Anexo ODS'!$G$3:$P$86,6,0) -> La Paz | CX58: =VLOOKUP(AG58,'Anexo ODS'!$G$3:$P$86,7,0) -> 16 | CY58: =VLOOKUP(AG58,'Anexo ODS'!$G$3:$P$86,8,0) -> Paz, justicia e instituciones sólidas | CZ58: =VLOOKUP(AG58,'Anexo ODS'!$G$3:$P$86,9,0) -> 16.6 | DA58: =VLOOKUP(AG58,'Anexo ODS'!$G$3:$P$86,10,0) -> Garantizar el acceso público a la información y proteger las libertades fundamentales, de conformidad con las leyes nacionales y los acuerdos internacionales | DJ58: 4 | DK58: Anexo 1 (85%)
A59: 58 | B59: 1 | C59: Usaquén | D59: 5 | E59: Construir Bogotá-región con gobierno abierto, transparente y ciudadanía consciente. | F59: 57 | G59: Gestión Pública Local | L59: 58 | M59: Realizar 1 rendición de cuenta anual | N59: 1949 | O59: Fortalecimiento local y participativo | P59: TRANSPARENCIA Y CONTROL SOCIAL | Q59: Constante | R59: 3 | S59: Realizar | T59: 1 | U59: Rendicion de cuenta | V59: anual | W59: Realizar 1 rendición de cuenta anual | X59: =VLOOKUP(AG59,'Anexo PMR'!$B$4:$G$87,6,0) -> 3_Flexible 5% | Y59: 10 | Z59: Participación Ciudadana y construcción de confianza. | AA59: Transparencia, control social y rendición de cuentas del Gobierno Local. | AB59: 98 | AC59: GOBIERNO | AD59: 35 | AE59: Espacios y procesos de participación ciudadana fortalecidos. | AF59: 83 | AG59: Número de Rendiciones de cuentas anuales. | AH59: TRANSPARENCIA Y CONTROL SOCIAL | AL59: 1 | AM59: 1 | AN59: 1 | AO59: 1 | AP59: 29590000 | AQ59: 30500000 | AR59: 31460000 | AS59: 32460000 | AT59: 124010000 | AU59: 1 | AV59: 0.25 | AW59: 0.25 | AX59: 0.25 | AY59: 0.25 | AZ59: Bajo | BA59: Bajo | BB59: =AT59/SUMIF($F$2:$F$60,F59,$AT$2:$AT$60) -> 0.004178737132 | BC59: 0.001044684283 | BD59: 0.001044684283 | BH59: 0 | BI59: 2021_1 | BJ59: 1 | BK59: 1 | BL59: 0 | BM59: 0 | BN59: 0 | BO59: 1 | BP59: 0 | BQ59: 0 | BR59: 0 | BS59: 1 | BT59: 0 | BU59: 0 | BV59: 0 | BW59: Completo | CA59: 28735000 | CB59: 28735000 | CC59: 0 | CD59: 0 | CE59: 0 | CG59: 0 | CH59: 0 | CI59: 0 | CJ59: 0 | CM59: 0 | CN59: 0 | CO59: 0 | CP59: Corte 31 de marzo: La meta fue ejecutada por gestión. | CV59: =VLOOKUP(AG59,'Anexo ODS'!$G$3:$P$86,5,0) -> 2 | CW59: =VLOOKUP(AG59,'Anexo ODS'!$G$3:$P$86,6,0) -> La Paz | CX59: =VLOOKUP(AG59,'Anexo ODS'!$G$3:$P$86,7,0) -> 16 | CY59: =VLOOKUP(AG59,'Anexo ODS'!$G$3:$P$86,8,0) -> Paz, justicia e instituciones sólidas | CZ59: =VLOOKUP(AG59,'Anexo ODS'!$G$3:$P$86,9,0) -> 16.6 | DA59: =VLOOKUP(AG59,'Anexo ODS'!$G$3:$P$86,10,0) -> Garantizar el acceso público a la información y proteger las libertades fundamentales, de conformidad con las leyes nacionales y los acuerdos internacionales | DJ59: 1 | DK59: Anexo 1 (85%)
A60: 59 | B60: 1 | C60: Usaquén | D60: 5 | E60: Construir Bogotá-región con gobierno abierto, transparente y ciudadanía consciente. | F60: 57 | G60: Gestión Pública Local | L60: 59 | M60: Realizar 4 acciones de inspección, vigilancia y control. | N60: 1952 | O60: Inspección vigilancia y control local | P60: IVC | Q60: Suma | R60: 1 | S60: Realizar | T60: 4 | U60: Acciones | V60: de inspección, vigilancia y control. | W60: Realizar 4 acciones de inspección, vigilancia y control. | X60: =VLOOKUP(AG60,'Anexo PMR'!$B$4:$G$87,6,0) -> 1_Inflexible 45% | Y60: 2 | Z60: Inspección, vigilancia y control | AA60: Inspección, vigilancia y control. | AB60: 98 | AC60: GOBIERNO | AD60: 38 | AE60: Inspección, vigilancia y control (IVC). | AF60: 84 | AG60: Acciones de inspección, vigilancia y control realizadas | AH60: IVC | AL60: 1 | AM60: 1 | AN60: 1 | AO60: 1 | AP60: 1484480000 | AQ60: 1530070000 | AR60: 1578420000 | AS60: 1628590000 | AT60: 6221560000 | AU60: 1 | AV60: 1 | AW60: 0.25 | AX60: 1 | AY60: 0.25 | AZ60: Bajo | BA60: Bajo | BB60: =AT60/SUMIF($F$2:$F$60,F60,$AT$2:$AT$60) -> 0.2096465107 | BC60: 0.05241162768 | BD60: 0.05241162768 | BH60: 0 | BI60: 2021_1 | BJ60: 1 | BK60: 1 | BL60: 0 | BM60: 0 | BN60: 0 | BO60: 1 | BP60: 0 | BQ60: 0 | BR60: 0 | BS60: 1 | BT60: 0 | BU60: 0 | BV60: 0 | BW60: Incompleto | CA60: 1441820000 | CB60: 1441820000 | CC60: 0 | CD60: 0 | CE60: 0 | CF60: 1614222380 | CG60: 0 | CH60: 0 | CI60: 0 | CJ60: 1614222380 | CK60: 11893206 | CL60: 11893206 | CM60: 0 | CN60: 0 | CO60: 0 | CV60: =VLOOKUP(AG60,'Anexo ODS'!$G$3:$P$86,5,0) -> 2 | CW60: =VLOOKUP(AG60,'Anexo ODS'!$G$3:$P$86,6,0) -> La Paz | CX60: =VLOOKUP(AG60,'Anexo ODS'!$G$3:$P$86,7,0) -> 16 | CY60: =VLOOKUP(AG60,'Anexo ODS'!$G$3:$P$86,8,0) -> Paz, justicia e instituciones sólidas | CZ60: =VLOOKUP(AG60,'Anexo ODS'!$G$3:$P$86,9,0) -> 16.6 | DA60: =VLOOKUP(AG60,'Anexo ODS'!$G$3:$P$86,10,0) -> Garantizar el acceso público a la información y proteger las libertades fundamentales, de conformidad con las leyes nacionales y los acuerdos internacionales | DJ60: 4 | DK60: Anexo 2 (15%)
A61: 60 | B61: 2 | C61: Chapinero | D61: 1 | E61: Hacer un nuevo contrato social con igualdad de oportunidades para la inclusión social, productiva y política | F61: 1 | G61: Subsidios y transferencias para la equidad | L61: 60 | M61: Beneficiar 431 personas mayores con apoyo económico tipo C. | N61: 1815 | O61: CHAPINERO TERRITORIO DE INCLUSIÓN SOCIAL Y EQUIDAD | P61: SUBSIDIO TIPO C | Q61: Constante | R61: 1 | S61: Beneficiar | T61: 431 | U61: Personas | V61: mayores con apoyo económico tipo C. | W61: Beneficiar 431 personas mayores con apoyo económico tipo C. | X61: =VLOOKUP(AG61,'Anexo PMR'!$B$4:$G$87,6,0) -> 1_Inflexible 45% | Y61: 3 | Z61: Sistema Bogotá Solidaria (20%) | AA61: Subsidio tipo C adulto mayor. | AB61: 92 | AC61: INTEGRACIÓN SOCIAL | AD61: 1 | AE61: Protección integral a personas y familias en situación de vulneración. | AF61: 2 | AG61: Número de personas mayores con apoyo económico tipo C | AH61: SUBSIDIO TIPO C | AL61: 431 | AM61: 431 | AN61: 431 | AO61: 431 | AP61: 790000000 | AQ61: 817000000 | AR61: 925000000 | AS61: 1170000000 | AT61: 3702000000 | AU61: 1 | AV61: 107.75 | AW61: 0.25 | AX61: 107.75 | AY61: 0.25 | AZ61: Bajo | BA61: Bajo | BB61: =AT61/SUMIF($F$61:$F$132,F61,$AT$61:$AT$132) -> 0.2558573502 | BC61: 0.06396433755 | BD61: 0.06396433755 | BH61: 0 | BI61: 2021_1 | BJ61: 431 | BK61: 431 | BL61: 0 | BM61: 0 | BN61: 0 | BO61: 431 | BP61: 0 | BQ61: 0 | BR61: 0 | BS61: 431 | BT61: 0 | BU61: 0 | BV61: 0 | BW61: Incompleto | CA61: 727160000 | CB61: 727160000 | CC61: 0 | CD61: 0 | CE61: 0 | CF61: 290719000 | CG61: 0 | CH61: 0 | CI61: 0 | CJ61: 290719000 | CK61: 107750000 | CL61: 107750000 | CM61: 0 | CN61: 0 | CO61: 0 | CP61: Contratacion de meta constante se dio ejecución al primer trimestre queda pendiente los proximos 3 trimestres | CV61: =VLOOKUP(AG61,'Anexo ODS'!$G$3:$P$86,5,0) -> 1 | CW61: =VLOOKUP(AG61,'Anexo ODS'!$G$3:$P$86,6,0) -> Las Personas | CX61: =VLOOKUP(AG61,'Anexo ODS'!$G$3:$P$86,7,0) -> 1 | CY61: =VLOOKUP(AG61,'Anexo ODS'!$G$3:$P$86,8,0) -> Fin de la pobreza | CZ61: =VLOOKUP(AG61,'Anexo ODS'!$G$3:$P$86,9,0) -> 1.2 | DA61: =VLOOKUP(AG61,'Anexo ODS'!$G$3:$P$86,10,0) -> De aquí a 2030, reducir al menos a la mitad la proporción de hombres, mujeres y niños de todas las edades que viven en la pobreza en todas sus dimensiones con arreglo a las definiciones nacionales | DJ61: 431 | DK61: Anexo 2 (15%)
A62: 61 | B62: 2 | C62: Chapinero | D62: 1 | E62: Hacer un nuevo contrato social con igualdad de oportunidades para la inclusión social, productiva y política | F62: 1 | G62: Subsidios y transferencias para la equidad | L62: 61 | M62: Atender 2960 hogares con apoyos que contribuyan al ingreso mínimo garantizado. | N62: 1815 | O62: CHAPINERO TERRITORIO DE INCLUSIÓN SOCIAL Y EQUIDAD | P62: INGRESO MÍNIMO | Q62: Suma | R62: 2 | S62: Atender | T62: 2960 | U62: Hogares | V62: con apoyos que contribuyan al ingreso mínimo garantizado. | W62: Atender 2960 hogares con apoyos que contribuyan al ingreso mínimo garantizado. | X62: =VLOOKUP(AG62,'Anexo PMR'!$B$4:$G$87,6,0) -> 1_Inflexible 45% | Y62: 3 | Z62: Sistema Bogotá Solidaria (20%) | AA62: Ingreso mínimo garantizado | AB62: 92 | AC62: INTEGRACIÓN SOCIAL | AD62: 1 | AE62: Protección integral a personas y familias en situación de vulneración. | AF62: 1 | AG62: Hogares atendidos con apoyos que contribuyan al ingreso mínimo garantizado | AH62: INGRESO MÍNIMO | AL62: 732 | AM62: 754 | AN62: 754 | AO62: 720 | AP62: 2662000000 | AQ62: 2741000000 | AR62: 2746000000 | AS62: 2618000000 | AT62: 10767000000 | AU62: 1 | AV62: 732 | AW62: 0.2472972973 | AX62: 0 | AY62: 0 | AZ62: Bajo | BA62: Bajo | BB62: 0.7441426498 | BC62: 0.1840244661 | BD62: 0 | BH62: 0 | BI62: 2021_1 | BJ62: 732 | BK62: 732 | BL62: 0 | BM62: 0 | BN62: 0 | BO62: 732 | BP62: 0 | BQ62: 0 | BR62: 0 | BS62: 0 | BT62: 0 | BU62: 0 | BV62: 0 | BW62: Incompleto | CA62: 2450254000 | CB62: 2450254000 | CC62: 0 | CD62: 0 | CE62: 0 | CF62: 1959840000 | CG62: 0 | CH62: 0 | CI62: 0 | CJ62: 1959840000 | CK62: 1959840000 | CL62: 1959840000 | CM62: 0 | CN62: 0 | CO62: 0 | CP62: Se realizo la transferencia de recursos a nivel central y queda pendiente la confirmación de la ejecución por parte de integración social | CV62: =VLOOKUP(AG62,'Anexo ODS'!$G$3:$P$86,5,0) -> 1 | CW62: =VLOOKUP(AG62,'Anexo ODS'!$G$3:$P$86,6,0) -> Las Personas | CX62: =VLOOKUP(AG62,'Anexo ODS'!$G$3:$P$86,7,0) -> 1 | CY62: =VLOOKUP(AG62,'Anexo ODS'!$G$3:$P$86,8,0) -> Fin de la pobreza | CZ62: =VLOOKUP(AG62,'Anexo ODS'!$G$3:$P$86,9,0) -> 1.2 | DA62: =VLOOKUP(AG62,'Anexo ODS'!$G$3:$P$86,10,0) -> De aquí a 2030, reducir al menos a la mitad la proporción de hombres, mujeres y niños de todas las edades que viven en la pobreza en todas sus dimensiones con arreglo a las definiciones nacionales | DJ62: 2960
A63: 62 | B63: 2 | C63: Chapinero | D63: 1 | E63: Hacer un nuevo contrato social con igualdad de oportunidades para la inclusión social, productiva y política | F63: 6 | G63: Sistema Distrital de Cuidado | L63: 62 | M63: Apoyar 200 Mipymes y/o emprendimientos culturales y creativos. | N63: 1671 | O63: CHAPINERO PRODUCTIVO Y EMPRENDEDOR | P63: FORTALECIMIENTO MIPYMES | Q63: Suma | R63: 1 | S63: Apoyar | T63: 200 | U63: Mipymes | V63: y/o emprendimientos culturales y creativos. | W63: Apoyar 200 Mipymes y/o emprendimientos culturales y creativos. | X63: =VLOOKUP(AG63,'Anexo PMR'!$B$4:$G$87,6,0) -> 2_Presupuestos Participativos 50% | Y63: 5 | Z63: Desarrollo de la Economía Local | AA63: Apoyo a industrias culturales y creativas. | AB63: 89 | AC63: DESARROLLO ECONÓMICO, INDUSTRIA Y TURISMO | AD63: 14 | AE63: Servicios de asesoría, asistencia técnica integral, dotación y/o apoyo financiero a Mipymes y/o emprendimientos. | AF63: 21 | AG63: Número de Mipymes y/o emprendimientos culturales y creativos apoyados | AH63: DESARROLLO DE LA ECONOMÍA LOCAL | AL63: 42 | AM63: 44 | AN63: 57 | AO63: 57 | AP63: 250000000 | AQ63: 240000000 | AR63: 314000000 | AS63: 315000000 | AT63: 1119000000 | AU63: 1 | AV63: 0 | AW63: 0 | AX63: 0 | AY63: 0 | AZ63: Bajo | BA63: Bajo | BB63: 0.1374017682 | BC63: 0 | BD63: 0 | BH63: 0 | BI63: 2021_1 | BJ63: 42 | BK63: 42 | BL63: 0 | BM63: 0 | BN63: 0 | BO63: 0 | BP63: 0 | BQ63: 0 | BR63: 0 | BS63: 0 | BT63: 0 | BU63: 0 | BV63: 0 | BW63: No mueve meta | CA63: 230114000 | CB63: 230114000 | CC63: 0 | CD63: 0 | CE63: 0 | CF63: 18021925 | CG63: 0 | CH63: 0 | CI63: 0 | CJ63: 18021925 | CK63: 981666 | CL63: 981666 | CM63: 0 | CN63: 0 | CO63: 0 | CP63: Recursos humanos institucionales requeridos para el cumplimiento de la meta | CV63: =VLOOKUP(AG63,'Anexo ODS'!$G$3:$P$86,5,0) -> 3 | CW63: =VLOOKUP(AG63,'Anexo ODS'!$G$3:$P$86,6,0) -> La Prosperidad | CX63: =VLOOKUP(AG63,'Anexo ODS'!$G$3:$P$86,7,0) -> 8 | CY63: =VLOOKUP(AG63,'Anexo ODS'!$G$3:$P$86,8,0) -> Trabajo decente y crecimiento económico | CZ63: =VLOOKUP(AG63,'Anexo ODS'!$G$3:$P$86,9,0) -> 8.3 | DA63: =VLOOKUP(AG63,'Anexo ODS'!$G$3:$P$86,10,0) -> Promover políticas orientadas al desarrollo que apoyen las actividades productivas, la creación de puestos de trabajo decentes, el emprendimiento, la creatividad y la innovación, y fomentar la formalización y el crecimiento de las microempresas y las pequeñas y medianas empresas, incluso mediante el acceso a servicios financieros | DJ63: 200
A64: 63 | B64: 2 | C64: Chapinero | D64: 1 | E64: Hacer un nuevo contrato social con igualdad de oportunidades para la inclusión social, productiva y política | F64: 6 | G64: Sistema Distrital de Cuidado | L64: 63 | M64: Promover en 150 Mipymes y/o emprendimientos procesos de reconversión hacia actividades sostenibles. | N64: 1671 | O64: CHAPINERO PRODUCTIVO Y EMPRENDEDOR | P64: REACTIVACIÓN | Q64: Suma | R64: 2 | S64: Promover | T64: 150 | U64: Mipymes | V64: y/o emprendimientos procesos de reconversión hacia actividades sostenibles. | W64: Promover en 150 Mipymes y/o emprendimientos procesos de reconversión hacia actividades sostenibles. | X64: =VLOOKUP(AG64,'Anexo PMR'!$B$4:$G$87,6,0) -> 2_Presupuestos Participativos 50% | Y64: 5 | Z64: Desarrollo de la Economía Local | AA64: Reactivación y reconversión verde | AB64: 89 | AC64: DESARROLLO ECONÓMICO, INDUSTRIA Y TURISMO | AD64: 14 | AE64: Servicios de asesoría, asistencia técnica integral, dotación y/o apoyo financiero a Mipymes y/o emprendimientos. | AF64: 22 | AG64: Número de Mipymes y/o emprendimientos con procesos de reconversión hacia actividades sostenibles | AH64: DESARROLLO DE LA ECONOMÍA LOCAL | AL64: 48 | AM64: 49 | AN64: 0 | AO64: 53 | AP64: 291000000 | AQ64: 281000000 | AR64: 0 | AS64: 303000000 | AT64: 875000000 | AU64: 1 | AV64: 0 | AW64: 0 | AX64: 0 | AY64: 0 | AZ64: Bajo | BA64: Bajo | BB64: 0.1074410609 | BC64: 0 | BD64: 0 | BH64: 0 | BI64: 2021_1 | BJ64: 48 | BK64: 48 | BL64: 0 | BM64: 0 | BN64: 0 | BO64: 0 | BP64: 0 | BQ64: 0 | BR64: 0 | BS64: 0 | BT64: 0 | BU64: 0 | BV64: 0 | BW64: No mueve meta | CA64: 267853000 | CB64: 267853000 | CC64: 0 | CD64: 0 | CE64: 0 | CF64: 18021925 | CG64: 0 | CH64: 0 | CI64: 0 | CJ64: 18021925 | CK64: 981666 | CL64: 981666 | CM64: 0 | CN64: 0 | CO64: 0 | CP64: Recursos humanos institucionales requeridos para el cumplimiento de la meta | CV64: =VLOOKUP(AG64,'Anexo ODS'!$G$3:$P$86,5,0) -> 3 | CW64: =VLOOKUP(AG64,'Anexo ODS'!$G$3:$P$86,6,0) -> La Prosperidad | CX64: =VLOOKUP(AG64,'Anexo ODS'!$G$3:$P$86,7,0) -> 8 | CY64: =VLOOKUP(AG64,'Anexo ODS'!$G$3:$P$86,8,0) -> Trabajo decente y crecimiento económico | CZ64: =VLOOKUP(AG64,'Anexo ODS'!$G$3:$P$86,9,0) -> 8.3 | DA64: =VLOOKUP(AG64,'Anexo ODS'!$G$3:$P$86,10,0) -> Promover políticas orientadas al desarrollo que apoyen las actividades productivas, la creación de puestos de trabajo decentes, el emprendimiento, la creatividad y la innovación, y fomentar la formalización y el crecimiento de las microempresas y las pequeñas y medianas empresas, incluso mediante el acceso a servicios financieros | DJ64: 150
A65: 64 | B65: 2 | C65: Chapinero | D65: 1 | E65: Hacer un nuevo contrato social con igualdad de oportunidades para la inclusión social, productiva y política | F65: 6 | G65: Sistema Distrital de Cuidado | L65: 64 | M65: Promover en 160 Mipymes y/o emprendimientos la transformación empresarial, productiva y/o turística | N65: 1671 | O65: CHAPINERO PRODUCTIVO Y EMPRENDEDOR | P65: TRANSFORMACIÓN PRODUCTIVA | Q65: Suma | R65: 3 | S65: Promover | T65: 160 | U65: Mipymes | V65: y/o emprendimientos la transformación empresarial, productiva y/o turística | W65: Promover en 160 Mipymes y/o emprendimientos la transformación empresarial, productiva y/o turística | X65: =VLOOKUP(AG65,'Anexo PMR'!$B$4:$G$87,6,0) -> 2_Presupuestos Participativos 50% | Y65: 5 | Z65: Desarrollo de la Economía Local | AA65: Transformación productiva y formación de capacidades | AB65: 89 | AC65: DESARROLLO ECONÓMICO, INDUSTRIA Y TURISMO | AD65: 14 | AE65: Servicios de asesoría, asistencia técnica integral, dotación y/o apoyo financiero a Mipymes y/o emprendimientos. | AF65: 23 | AG65: Número de Mipymes y/o emprendimientos con transformacion empresarial y/o productiva | AH65: DESARROLLO DE LA ECONOMÍA LOCAL | AL65: 52 | AM65: 52 | AN65: 0 | AO65: 56 | AP65: 309000000 | AQ65: 299000000 | AR65: 0 | AS65: 320000000 | AT65: 928000000 | AU65: 1 | AV65: 0 | AW65: 0 | AX65: 0 | AY65: 0 | AZ65: Bajo | BA65: Bajo | BB65: 0.1139489194 | BC65: 0 | BD65: 0 | BH65: 0 | BI65: 2021_1 | BJ65: 52 | BK65: 52 | BL65: 0 | BM65: 0 | BN65: 0 | BO65: 0 | BP65: 0 | BQ65: 0 | BR65: 0 | BS65: 0 | BT65: 0 | BU65: 0 | BV65: 0 | BW65: No mueve meta | CA65: 284421000 | CB65: 284421000 | CC65: 0 | CD65: 0 | CE65: 0 | CF65: 18021925 | CG65: 0 | CH65: 0 | CI65: 0 | CJ65: 18021925 | CK65: 981666 | CL65: 981666 | CM65: 0 | CN65: 0 | CO65: 0 | CP65: Recursos humanos institucionales requeridos para el cumplimiento de la meta | CV65: =VLOOKUP(AG65,'Anexo ODS'!$G$3:$P$86,5,0) -> 3 | CW65: =VLOOKUP(AG65,'Anexo ODS'!$G$3:$P$86,6,0) -> La Prosperidad | CX65: =VLOOKUP(AG65,'Anexo ODS'!$G$3:$P$86,7,0) -> 8 | CY65: =VLOOKUP(AG65,'Anexo ODS'!$G$3:$P$86,8,0) -> Trabajo decente y crecimiento económico | CZ65: =VLOOKUP(AG65,'Anexo ODS'!$G$3:$P$86,9,0) -> 8.3 | DA65: =VLOOKUP(AG65,'Anexo ODS'!$G$3:$P$86,10,0) -> Promover políticas orientadas al desarrollo que apoyen las actividades productivas, la creación de puestos de trabajo decentes, el emprendimiento, la creatividad y la innovación, y fomentar la formalización y el crecimiento de las microempresas y las pequeñas y medianas empresas, incluso mediante el acceso a servicios financieros | DJ65: 160
